Workbook

Sheet Společná data
A1: Výhřevnost uhlí [GJ/t] | B1: 13.929
A2: Účinnost kotlů při spalování uhlí | B2: =0.8685 -> 0.8685
A3: Vyrobené teplo K1 a K4 [GJ] | B3: =0.1923*3937052 -> 757095.0996
A4: Cena uhlí [Kč] | B4: 450
A5: Emisní faktor uhlí [t/GJ] | B5: 0.1005860996
A6: Potřebné vápno na tunu uhlí [t] | B6: 0.026
A7: Cena vápna [Kč/t] | B7: 3000
A8: Produkce škváry [t] | B8: 0.026
A9: Cena škváry [Kč/t] | B9: 300
A10: Účinnost kotlů při spoluspalování | B10: 0.879
A11: Poměr spalování uhlí ku biomase | B11: 0.7
A12: Výhřevnost biomasy [GJ/t] | B12: 13.24
A13: Cena biomasy [Kč/t] | B13: 1450
A14: Emisní faktor biomasy [t/GJ] | B14: 0
A15: Účinnost plynového kotle | B15: 0.97
A16: Výhřevnost plynu [GJ/m3] | B16: 0.03348
A17: Cena plynu [Kč] | B17: 7.6
A18: Emisní faktor plynu [t/GJ] | B18: 0.06
A19: Počet let odpisování [roky] | B19: 10
A20: Úroková sazba | B20: =C36 -> 0.023
A21: Doba splácení dluhu [roky] | B21: 10
A22: Daňová sazba | B22: 0.19
A23: Diskontní míra | B23: =C37 -> 0.08
A24: Vyrobená eletřiny K1 a K4 [MWh] | B24: =(152014*100/520) -> 29233.46154
A25: Podpora na jednotku | B25: 0
A26: WACC
B27: ČEZ | C27: ČEZ Teplárenská | D27: Poznámky
A28: Betaunlevered | B28: 0.38 | C28: 0.38 | D28: Power
A29: Equity | B29: =424432000000 -> 424432000000 | C29: 2262501756
A30: Debt | B30: 173671000000 | C30: 843784000
A31: Tax rate | B31: 0.19 | C31: 0.19
A32: Betalevered | B32: =B28*(1+(B29/B30)*(1-B31)) -> 1.132227888 | C32: =C28*(1+(C29/C30)*(1-C31)) -> 1.205327383
A33: rf | B33: 0.0143 | C33: 0.0143 | D33: https://tradingeconomics.com/czech-republic/government-bond-yield | E33: 2020-05-01
A34: rm | B34: 0.058 | C34: 0.0694 | D34: http://people.stern.nyu.edu/adamodar/New_Home_Page/datafile/ctryprem.html
A35: re | B35: =B33+B32*(B34-B33) -> 0.06377835872 | C35: =C33+C32*(C34-C33) -> 0.0807135388
A36: rd | B36: 0.0306 | C36: 0.023 | D36: Tepl.-PRIBOR+0,3%
A37: WACC | B37: =B35*(B29/SUM(B29:B30))+B36*(B30/SUM(B29:B30))*(1-B31) -> 0.05245615848 | C37: 0.08 | D37: Úvaha
A38: PRIBOR | B38: 0.02 | C38: =C35*(C29/SUM(C29:C30))+C36*(C30/SUM(C29:C30))*(1-C31) -> 0.06384931547 | D38: Výpočet | I38: 0.06384931547
C39: 0
C40: 167522655 | D40: 12 | E40: =C40*D40 -> 2010271860
C41: 28025544 | D41: 9 | E41: =C41*D41 -> 252229896
E42: =E40+E41 -> 2262501756
B44: 0 | C44: 1 | D44: 2 | E44: 3 | F44: 4 | G44: 5 | H44: 6 | I44: 7 | J44: 8 | K44: 9 | L44: 10 | M44: 11 | N44: 12 | O44: 13 | P44: 14 | Q44: 15 | R44: 16 | S44: 17 | T44: 18 | U44: 19 | V44: 20
A45: rok | B45: 2020 | C45: 2021 | D45: 2022 | E45: 2023 | F45: 2024 | G45: 2025 | H45: 2026 | I45: 2027 | J45: 2028 | K45: 2029 | L45: 2030 | M45: 2031 | N45: 2032 | O45: 2033 | P45: 2034 | Q45: 2035 | R45: 2036 | S45: 2037 | T45: 2038 | U45: 2039 | V45: 2040 | X45: Covid pokles
A46: cena [Kč] | B46: =B49*B48 -> 640.75 | C46: 589.49 | D46: =C48*C49*(1+D51) -> 606.58521 | E46: =D48*D49*(1+E51) -> 624.1761811 | F46: 642.2772903 | G46: 660.9033318 | H46: 680.0695284 | I46: 699.7915447 | J46: 720.0854995 | K46: 740.967979 | L46: 762.4560504 | M46: 784.5672758 | N46: 807.3197268 | O46: 830.7319989 | P46: =O48*O49*(1+P51) -> 854.8232269 | Q46: 879.6131005 | R46: 905.1218804 | S46: 931.3704149 | T46: 958.3801569 | U46: 986.1731815 | V46: 1014.772204 | X46: https://s3-eu-west-1.amazonaws.com/cjp-rbi-icis/wp-content/uploads/sites/7/2020/04/14165046/WP_300320_Power-Carbon-COVID-19.pdf
A47: % nárůst | C47: 0.029 | D47: =C47 -> 0.029 | E47: =D47 -> 0.029 | F47: 0.029 | G47: 0.029 | H47: 0.029 | I47: 0.029 | J47: 0.029 | K47: 0.029 | L47: 0.029 | M47: 0.029 | N47: 0.029 | O47: 0.029 | P47: 0.029 | Q47: 0.029 | R47: 0.029 | S47: 0.029 | T47: 0.029 | U47: 0.029 | V47: 0.029
A48: EUR [CZK] | B48: 25.63 | C48: =B48 -> 25.63 | D48: =C48 -> 25.63 | E48: 25.63 | F48: 25.63 | G48: 25.63 | H48: 25.63 | I48: 25.63 | J48: 25.63 | K48: 25.63 | L48: 25.63 | M48: 25.63 | N48: 25.63 | O48: 25.63 | P48: 25.63 | Q48: 25.63 | R48: 25.63 | S48: 25.63 | T48: 25.63 | U48: 25.63 | V48: 25.63
A49: cena [EUR] | B49: 25 | C49: 23 | D49: =D46/D48 -> 23.667 | E49: =E46/E48 -> 24.353343 | F49: 25.05958995 | G49: 25.78631806 | H49: 26.53412128 | I49: 27.3036108 | J49: 28.09541551 | K49: 28.91018256 | L49: 29.74857785 | M49: 30.61128661 | N49: 31.49901392 | O49: 32.41248533 | P49: 33.3524474 | Q49: 34.31966838 | R49: 35.31493876 | S49: 36.33907198 | T49: 37.39290507 | U49: 38.47729932 | V49: 39.593141
C50: 0 | D50: =C50 -> 0 | E50: =D50 -> 0 | F50: 0 | G50: 0 | H50: 0 | I50: 0 | J50: 0 | K50: 0 | L50: 0 | M50: 0 | N50: 0 | O50: 0 | P50: 0 | Q50: 0 | R50: 0 | S50: 0 | T50: 0 | U50: 0 | V50: 0
B51: nárůst povolenek | C51: 0.029 | D51: =C51 -> 0.029 | E51: 0.029 | F51: 0.029 | G51: 0.029 | H51: 0.029 | I51: 0.029 | J51: 0.029 | K51: 0.029 | L51: 0.029 | M51: 0.029 | N51: 0.029 | O51: 0.029 | P51: 0.029 | Q51: 0.029 | R51: 0.029 | S51: 0.029 | T51: 0.029 | U51: 0.029 | V51: 0.029
A52: Průměrný kurz eura za poslední rok
A53: https://www.kurzy.cz/kurzy-men/historie/EUR-euro/
B55: 2015 | C55: 2016 | D55: 2017 | E55: 2018 | F55: 2019 | G55: 2020 | H55: 2021
A56: Inflace | B56: 0.003 | C56: 0.007 | D56: 0.025 | E56: 0.021 | F56: 0.028 | G56: 0.029 | H56: 0.023
A57: https://www.kurzy.cz/makroekonomika/inflace/
A58: Prognóza 2021
A59: https://www.cnb.cz/cs/menova-politika/prognoza/
A61: Kurz | B61: 2015 | C61: 2016 | D61: 2017 | E61: 2018 | F61: 2019 | G61: 2020 | H61: 2021
B62: 27.283 | C62: 27.033 | D62: 26.33 | E62: 25.643 | F62: 25.672 | G62: 25.63
A63: https://www.kurzy.cz/kurzy-men/historie/EUR-euro/2020/
F65: =SUM(B62:G62)/6 -> 26.26516667

Sheet Uhlí
C2: 0 | D2: 1 | E2: 2 | F2: 3 | G2: 4 | H2: 5 | I2: 6 | J2: 7 | K2: 8 | L2: 9 | M2: 10 | N2: 11 | O2: 12 | P2: 13 | Q2: 14 | R2: 15 | S2: 16 | T2: 17 | U2: 18 | V2: 19 | W2: 20
B3: Investice [Kč] | C3: 400000000 | D3: 0 | E3: 0 | F3: 0 | G3: 0 | H3: 0 | I3: 0 | J3: 0 | K3: 0 | L3: 0 | M3: 180000000 | N3: 0 | O3: 0 | P3: 0 | Q3: 0 | R3: 0 | S3: 0 | T3: 0 | U3: 0 | V3: 0 | W3: 0
B5: Cena uhlí [Kč/t] | C5: ='Společná data'!$B$4 -> 450 | D5: ='Společná data'!$B$4 -> 450 | E5: ='Společná data'!$B$4 -> 450 | F5: ='Společná data'!$B$4 -> 450 | G5: ='Společná data'!$B$4 -> 450 | H5: ='Společná data'!$B$4 -> 450 | I5: ='Společná data'!$B$4 -> 450 | J5: ='Společná data'!$B$4 -> 450 | K5: ='Společná data'!$B$4 -> 450 | L5: ='Společná data'!$B$4 -> 450 | M5: =C5+150 -> 600 | N5: =D5+150 -> 600 | O5: 600 | P5: 600 | Q5: 600 | R5: 600 | S5: 600 | T5: 600 | U5: 600 | V5: 600 | W5: =M5 -> 600
B6: Množství spáleného uhlí [t] | C6: ='Společná data'!$B$3/('Společná data'!$B$1*'Společná data'!$B$2) -> 62583.6191 | D6: ='Společná data'!$B$3/('Společná data'!$B$1*'Společná data'!$B$2) -> 62583.6191 | E6: ='Společná data'!$B$3/('Společná data'!$B$1*'Společná data'!$B$2) -> 62583.6191 | F6: ='Společná data'!$B$3/('Společná data'!$B$1*'Společná data'!$B$2) -> 62583.6191 | G6: ='Společná data'!$B$3/('Společná data'!$B$1*'Společná data'!$B$2) -> 62583.6191 | H6: ='Společná data'!$B$3/('Společná data'!$B$1*'Společná data'!$B$2) -> 62583.6191 | I6: ='Společná data'!$B$3/('Společná data'!$B$1*'Společná data'!$B$2) -> 62583.6191 | J6: ='Společná data'!$B$3/('Společná data'!$B$1*'Společná data'!$B$2) -> 62583.6191 | K6: ='Společná data'!$B$3/('Společná data'!$B$1*'Společná data'!$B$2) -> 62583.6191 | L6: ='Společná data'!$B$3/('Společná data'!$B$1*'Společná data'!$B$2) -> 62583.6191 | M6: ='Společná data'!$B$3/('Společná data'!$B$1*'Společná data'!$B$2) -> 62583.6191 | N6: ='Společná data'!$B$3/('Společná data'!$B$1*'Společná data'!$B$2) -> 62583.6191 | O6: ='Společná data'!$B$3/('Společná data'!$B$1*'Společná data'!$B$2) -> 62583.6191 | P6: ='Společná data'!$B$3/('Společná data'!$B$1*'Společná data'!$B$2) -> 62583.6191 | Q6: ='Společná data'!$B$3/('Společná data'!$B$1*'Společná data'!$B$2) -> 62583.6191 | R6: ='Společná data'!$B$3/('Společná data'!$B$1*'Společná data'!$B$2) -> 62583.6191 | S6: ='Společná data'!$B$3/('Společná data'!$B$1*'Společná data'!$B$2) -> 62583.6191 | T6: ='Společná data'!$B$3/('Společná data'!$B$1*'Společná data'!$B$2) -> 62583.6191 | U6: ='Společná data'!$B$3/('Společná data'!$B$1*'Společná data'!$B$2) -> 62583.6191 | V6: ='Společná data'!$B$3/('Společná data'!$B$1*'Společná data'!$B$2) -> 62583.6191 | W6: ='Společná data'!$B$3/('Společná data'!$B$1*'Společná data'!$B$2) -> 62583.6191
B7: Cena odebraného uhlí [Kč] | C7: =C6*C5 -> 28162628.59 | D7: =D6*D5 -> 28162628.59 | E7: 28162628.59 | F7: 28162628.59 | G7: 28162628.59 | H7: 28162628.59 | I7: 28162628.59 | J7: 28162628.59 | K7: 28162628.59 | L7: 28162628.59 | M7: 37550171.46 | N7: 37550171.46 | O7: 37550171.46 | P7: 37550171.46 | Q7: 37550171.46 | R7: 37550171.46 | S7: 37550171.46 | T7: 37550171.46 | U7: 37550171.46 | V7: 37550171.46 | W7: 37550171.46
B9: Cena použitých emisních povolenek [Kč] | C9: ='Společná data'!$B$3*'Společná data'!$B$5*HLOOKUP(Uhlí!C2,'Společná data'!$B$44:$V$46,3,0) -> 48795190.5 | D9: ='Společná data'!$B$3*'Společná data'!$B$5*HLOOKUP(Uhlí!D2,'Společná data'!$B$44:$V$46,3,0) -> 44891575.26 | E9: ='Společná data'!$B$3*'Společná data'!$B$5*HLOOKUP(Uhlí!E2,'Společná data'!$B$44:$V$46,3,0) -> 46193430.94 | F9: ='Společná data'!$B$3*'Společná data'!$B$5*HLOOKUP(Uhlí!F2,'Společná data'!$B$44:$V$46,3,0) -> 47533040.44 | G9: ='Společná data'!$B$3*'Společná data'!$B$5*HLOOKUP(Uhlí!G2,'Společná data'!$B$44:$V$46,3,0) -> 48911498.61 | H9: ='Společná data'!$B$3*'Společná data'!$B$5*HLOOKUP(Uhlí!H2,'Společná data'!$B$44:$V$46,3,0) -> 50329932.07 | I9: ='Společná data'!$B$3*'Společná data'!$B$5*HLOOKUP(Uhlí!I2,'Společná data'!$B$44:$V$46,3,0) -> 51789500.1 | J9: ='Společná data'!$B$3*'Společná data'!$B$5*HLOOKUP(Uhlí!J2,'Společná data'!$B$44:$V$46,3,0) -> 53291395.6 | K9: ='Společná data'!$B$3*'Společná data'!$B$5*HLOOKUP(Uhlí!K2,'Společná data'!$B$44:$V$46,3,0) -> 54836846.07 | L9: ='Společná data'!$B$3*'Společná data'!$B$5*HLOOKUP(Uhlí!L2,'Společná data'!$B$44:$V$46,3,0) -> 56427114.61 | M9: ='Společná data'!$B$3*'Společná data'!$B$5*HLOOKUP(Uhlí!M2,'Společná data'!$B$44:$V$46,3,0) -> 58063500.93 | N9: ='Společná data'!$B$3*'Společná data'!$B$5*HLOOKUP(Uhlí!N2,'Společná data'!$B$44:$V$46,3,0) -> 59747342.46 | O9: ='Společná data'!$B$3*'Společná data'!$B$5*HLOOKUP(Uhlí!O2,'Společná data'!$B$44:$V$46,3,0) -> 61480015.39 | P9: ='Společná data'!$B$3*'Společná data'!$B$5*HLOOKUP(Uhlí!P2,'Společná data'!$B$44:$V$46,3,0) -> 63262935.84 | Q9: ='Společná data'!$B$3*'Společná data'!$B$5*HLOOKUP(Uhlí!Q2,'Společná data'!$B$44:$V$46,3,0) -> 65097560.98 | R9: ='Společná data'!$B$3*'Společná data'!$B$5*HLOOKUP(Uhlí!R2,'Společná data'!$B$44:$V$46,3,0) -> 66985390.24 | S9: ='Společná data'!$B$3*'Společná data'!$B$5*HLOOKUP(Uhlí!S2,'Společná data'!$B$44:$V$46,3,0) -> 68927966.56 | T9: ='Společná data'!$B$3*'Společná data'!$B$5*HLOOKUP(Uhlí!T2,'Společná data'!$B$44:$V$46,3,0) -> 70926877.59 | U9: ='Společná data'!$B$3*'Společná data'!$B$5*HLOOKUP(Uhlí!U2,'Společná data'!$B$44:$V$46,3,0) -> 72983757.04 | V9: ='Společná data'!$B$3*'Společná data'!$B$5*HLOOKUP(Uhlí!V2,'Společná data'!$B$44:$V$46,3,0) -> 75100286 | W9: ='Společná data'!$B$3*'Společná data'!$B$5*HLOOKUP(Uhlí!W2,'Společná data'!$B$44:$V$46,3,0) -> 77278194.29
B11: Cena odebráného vápna [Kč] | C11: =C6*'Společná data'!$B$6*'Společná data'!$B$7*POWER(1+'Společná data'!$C$47,C2) -> 4881522.29 | D11: =D6*'Společná data'!$B$6*'Společná data'!$B$7*POWER(1+'Společná data'!$C$47,D2) -> 5023086.436 | E11: =E6*'Společná data'!$B$6*'Společná data'!$B$7*POWER(1+'Společná data'!$C$47,E2) -> 5168755.943 | F11: =F6*'Společná data'!$B$6*'Společná data'!$B$7*POWER(1+'Společná data'!$C$47,F2) -> 5318649.865 | G11: =G6*'Společná data'!$B$6*'Společná data'!$B$7*POWER(1+'Společná data'!$C$47,G2) -> 5472890.711 | H11: =H6*'Společná data'!$B$6*'Společná data'!$B$7*POWER(1+'Společná data'!$C$47,H2) -> 5631604.542 | I11: =I6*'Společná data'!$B$6*'Společná data'!$B$7*POWER(1+'Společná data'!$C$47,I2) -> 5794921.073 | J11: =J6*'Společná data'!$B$6*'Společná data'!$B$7*POWER(1+'Společná data'!$C$47,J2) -> 5962973.784 | K11: =K6*'Společná data'!$B$6*'Společná data'!$B$7*POWER(1+'Společná data'!$C$47,K2) -> 6135900.024 | L11: =L6*'Společná data'!$B$6*'Společná data'!$B$7*POWER(1+'Společná data'!$C$47,L2) -> 6313841.125 | M11: =M6*'Společná data'!$B$6*'Společná data'!$B$7*POWER(1+'Společná data'!$C$47,M2) -> 6496942.518 | N11: =N6*'Společná data'!$B$6*'Společná data'!$B$7*POWER(1+'Společná data'!$C$47,N2) -> 6685353.851 | O11: =O6*'Společná data'!$B$6*'Společná data'!$B$7*POWER(1+'Společná data'!$C$47,O2) -> 6879229.112 | P11: =P6*'Společná data'!$B$6*'Společná data'!$B$7*POWER(1+'Společná data'!$C$47,P2) -> 7078726.756 | Q11: =Q6*'Společná data'!$B$6*'Společná data'!$B$7*POWER(1+'Společná data'!$C$47,Q2) -> 7284009.832 | R11: =R6*'Společná data'!$B$6*'Společná data'!$B$7*POWER(1+'Společná data'!$C$47,R2) -> 7495246.118 | S11: =S6*'Společná data'!$B$6*'Společná data'!$B$7*POWER(1+'Společná data'!$C$47,S2) -> 7712608.255 | T11: =T6*'Společná data'!$B$6*'Společná data'!$B$7*POWER(1+'Společná data'!$C$47,T2) -> 7936273.894 | U11: =U6*'Společná data'!$B$6*'Společná data'!$B$7*POWER(1+'Společná data'!$C$47,U2) -> 8166425.837 | V11: =V6*'Společná data'!$B$6*'Společná data'!$B$7*POWER(1+'Společná data'!$C$47,V2) -> 8403252.187 | W11: =W6*'Společná data'!$B$6*'Společná data'!$B$7*POWER(1+'Společná data'!$C$47,W2) -> 8646946.5
B13: Údržba [Kč] | C13: 10000000 | D13: =C13*(1+'Společná data'!$C$47) -> 10290000 | E13: =D13*(1+'Společná data'!$C$47) -> 10588410 | F13: =E13*(1+'Společná data'!$C$47) -> 10895473.89 | G13: =F13*(1+'Společná data'!$C$47) -> 11211442.63 | H13: =G13*(1+'Společná data'!$C$47) -> 11536574.47 | I13: =H13*(1+'Společná data'!$C$47) -> 11871135.13 | J13: =I13*(1+'Společná data'!$C$47) -> 12215398.05 | K13: =J13*(1+'Společná data'!$C$47) -> 12569644.59 | L13: =K13*(1+'Společná data'!$C$47) -> 12934164.28 | M13: =L13*(1+'Společná data'!$C$47) -> 13309255.05 | N13: =M13*(1+'Společná data'!$C$47) -> 13695223.44 | O13: =N13*(1+'Společná data'!$C$47) -> 14092384.92 | P13: =O13*(1+'Společná data'!$C$47) -> 14501064.09 | Q13: =P13*(1+'Společná data'!$C$47) -> 14921594.95 | R13: =Q13*(1+'Společná data'!$C$47) -> 15354321.2 | S13: =R13*(1+'Společná data'!$C$47) -> 15799596.51 | T13: =S13*(1+'Společná data'!$C$47) -> 16257784.81 | U13: =T13*(1+'Společná data'!$C$47) -> 16729260.57 | V13: =U13*(1+'Společná data'!$C$47) -> 17214409.13 | W13: =V13*(1+'Společná data'!$C$47) -> 17713626.99
B15: Výše lineárního odpisu [Kč] | C15: 0 | D15: =IF(D2=1,0.055,0.105)*$C$3 -> 22000000 | E15: 42000000 | F15: 42000000 | G15: 42000000 | H15: 42000000 | I15: 42000000 | J15: 42000000 | K15: 42000000 | L15: 42000000 | M15: 42000000 | N15: =IF(N2=11,0.055,0.105)*$M$3 -> 9900000 | O15: 18900000 | P15: 18900000 | Q15: 18900000 | R15: 18900000 | S15: 18900000 | T15: 18900000 | U15: 18900000 | V15: 18900000 | W15: 18900000
B17: Výše zrychleného odpisu [Kč] | C17: 0 | D17: =IF(D2=1,$C$3/10,(($C$3-(SUM($C$17:C17)))*2)/('Společná data'!$B$19+1-C2)) -> 40000000 | E17: =IF(E2=1,$C$3/10,(($C$3-(SUM($C$17:D17)))*2)/('Společná data'!$B$19+1-D2)) -> 72000000 | F17: =IF(F2=1,$C$3/10,(($C$3-(SUM($C$17:E17)))*2)/('Společná data'!$B$19+1-E2)) -> 64000000 | G17: =IF(G2=1,$C$3/10,(($C$3-(SUM($C$17:F17)))*2)/('Společná data'!$B$19+1-F2)) -> 56000000 | H17: =IF(H2=1,$C$3/10,(($C$3-(SUM($C$17:G17)))*2)/('Společná data'!$B$19+1-G2)) -> 48000000 | I17: =IF(I2=1,$C$3/10,(($C$3-(SUM($C$17:H17)))*2)/('Společná data'!$B$19+1-H2)) -> 40000000 | J17: =IF(J2=1,$C$3/10,(($C$3-(SUM($C$17:I17)))*2)/('Společná data'!$B$19+1-I2)) -> 32000000 | K17: =IF(K2=1,$C$3/10,(($C$3-(SUM($C$17:J17)))*2)/('Společná data'!$B$19+1-J2)) -> 24000000 | L17: =IF(L2=1,$C$3/10,(($C$3-(SUM($C$17:K17)))*2)/('Společná data'!$B$19+1-K2)) -> 16000000 | M17: =IF(M2=1,$C$3/10,(($C$3-(SUM($C$17:L17)))*2)/('Společná data'!$B$19+1-L2)) -> 8000000 | N17: =IF(N2=11,$M$3/10,(($M$3-(SUM($N$17:N17)))*2)/('Společná data'!$B$19+1-C2)) -> 18000000 | O17: =IF(O2=11,$M$3/10,(($M$3-(SUM($N$17:N17)))*2)/('Společná data'!$B$19+1-D2)) -> 32400000 | P17: =IF(P2=11,$M$3/10,(($M$3-(SUM($N$17:O17)))*2)/('Společná data'!$B$19+1-E2)) -> 28800000 | Q17: =IF(Q2=11,$M$3/10,(($M$3-(SUM($N$17:P17)))*2)/('Společná data'!$B$19+1-F2)) -> 25200000 | R17: =IF(R2=11,$M$3/10,(($M$3-(SUM($N$17:Q17)))*2)/('Společná data'!$B$19+1-G2)) -> 21600000 | S17: =IF(S2=11,$M$3/10,(($M$3-(SUM($N$17:R17)))*2)/('Společná data'!$B$19+1-H2)) -> 18000000 | T17: =IF(T2=11,$M$3/10,(($M$3-(SUM($N$17:S17)))*2)/('Společná data'!$B$19+1-I2)) -> 14400000 | U17: =IF(U2=11,$M$3/10,(($M$3-(SUM($N$17:T17)))*2)/('Společná data'!$B$19+1-J2)) -> 10800000 | V17: =IF(V2=11,$M$3/10,(($M$3-(SUM($N$17:U17)))*2)/('Společná data'!$B$19+1-K2)) -> 7200000 | W17: =IF(W2=11,$M$3/10,(($M$3-(SUM($N$17:V17)))*2)/('Společná data'!$B$19+1-L2)) -> 3600000
B19: Úmor [Kč] | C19: 0 | D19: =$C$3/'Společná data'!$B$21 -> 40000000 | E19: =$C$3/'Společná data'!$B$21 -> 40000000 | F19: =$C$3/'Společná data'!$B$21 -> 40000000 | G19: =$C$3/'Společná data'!$B$21 -> 40000000 | H19: =$C$3/'Společná data'!$B$21 -> 40000000 | I19: =$C$3/'Společná data'!$B$21 -> 40000000 | J19: =$C$3/'Společná data'!$B$21 -> 40000000 | K19: =$C$3/'Společná data'!$B$21 -> 40000000 | L19: =$C$3/'Společná data'!$B$21 -> 40000000 | M19: =$C$3/'Společná data'!$B$21 -> 40000000 | N19: =$M$3/'Společná data'!$B$21 -> 18000000 | O19: =$M$3/'Společná data'!$B$21 -> 18000000 | P19: =$M$3/'Společná data'!$B$21 -> 18000000 | Q19: =$M$3/'Společná data'!$B$21 -> 18000000 | R19: =$M$3/'Společná data'!$B$21 -> 18000000 | S19: =$M$3/'Společná data'!$B$21 -> 18000000 | T19: =$M$3/'Společná data'!$B$21 -> 18000000 | U19: =$M$3/'Společná data'!$B$21 -> 18000000 | V19: =$M$3/'Společná data'!$B$21 -> 18000000 | W19: =$M$3/'Společná data'!$B$21 -> 18000000
B21: Úrok [Kč] | C21: 0 | D21: =($C$3-SUM($C$19:C19))*'Společná data'!$B$20 -> 9200000 | E21: =($C$3-SUM($C$19:D19))*'Společná data'!$B$20 -> 8280000 | F21: =($C$3-SUM($C$19:E19))*'Společná data'!$B$20 -> 7360000 | G21: =($C$3-SUM($C$19:F19))*'Společná data'!$B$20 -> 6440000 | H21: =($C$3-SUM($C$19:G19))*'Společná data'!$B$20 -> 5520000 | I21: =($C$3-SUM($C$19:H19))*'Společná data'!$B$20 -> 4600000 | J21: =($C$3-SUM($C$19:I19))*'Společná data'!$B$20 -> 3680000 | K21: =($C$3-SUM($C$19:J19))*'Společná data'!$B$20 -> 2760000 | L21: =($C$3-SUM($C$19:K19))*'Společná data'!$B$20 -> 1840000 | M21: =($C$3-SUM($C$19:L19))*'Společná data'!$B$20 -> 920000 | N21: =($M$3)*'Společná data'!$B$20 -> 4140000 | O21: =($M$3-SUM($N$19:N19))*'Společná data'!$B$20 -> 3726000 | P21: =($M$3-SUM($N$19:O19))*'Společná data'!$B$20 -> 3312000 | Q21: =($M$3-SUM($N$19:P19))*'Společná data'!$B$20 -> 2898000 | R21: =($M$3-SUM($N$19:Q19))*'Společná data'!$B$20 -> 2484000 | S21: =($M$3-SUM($N$19:R19))*'Společná data'!$B$20 -> 2070000 | T21: =($M$3-SUM($N$19:S19))*'Společná data'!$B$20 -> 1656000 | U21: =($M$3-SUM($N$19:T19))*'Společná data'!$B$20 -> 1242000 | V21: =($M$3-SUM($N$19:U19))*'Společná data'!$B$20 -> 828000 | W21: =($M$3-SUM($N$19:V19))*'Společná data'!$B$20 -> 414000
B23: Náklady při lineárních odpisech [Kč] | C23: =SUM(C7,C9,C11,C13,C15,C19,C21) -> 91839341.38 | D23: =SUM(D7,D9,D11,D13,D15,D19,D21) -> 159567290.3 | E23: 180393225.5 | F23: 181269792.8 | G23: 182198460.5 | H23: 183180739.7 | I23: 184218184.9 | J23: 185312396 | K23: 186465019.3 | L23: 187677748.6 | M23: 198339870 | N23: 149718091.2 | O23: 160627800.9 | P23: 162604898.1 | Q23: 164651337.2 | R23: 166769129 | S23: 168960342.8 | T23: 171227107.8 | U23: 173571614.9 | V23: 175996118.8 | W23: 178502939.2
B25: Náklady při zrychlených odpisech [Kč] | C25: =SUM(C7,C9,C11,C13,C17,C19,C21) -> 91839341.38 | D25: =SUM(D7,D9,D11,D13,D17,D19,D21) -> 177567290.3 | E25: 210393225.5 | F25: 203269792.8 | G25: 196198460.5 | H25: 189180739.7 | I25: 182218184.9 | J25: 175312396 | K25: 168465019.3 | L25: 161677748.6 | M25: 164339870 | N25: 157818091.2 | O25: 174127800.9 | P25: 172504898.1 | Q25: 170951337.2 | R25: 169469129 | S25: 168060342.8 | T25: 166727107.8 | U25: 165471614.9 | V25: 164296118.8 | W25: 163202939.2
B27: Náklady při lineárních odpisech bez půjčky [Kč] | C27: =C23-C21-C19 -> 91839341.38 | D27: =D23-D21-D19 -> 110367290.3 | E27: 132113225.5 | F27: 133909792.8 | G27: 135758460.5 | H27: 137660739.7 | I27: 139618184.9 | J27: 141632396 | K27: 143705019.3 | L27: 145837748.6 | M27: 157419870 | N27: 127578091.2 | O27: 138901800.9 | P27: 141292898.1 | Q27: 143753337.2 | R27: 146285129 | S27: 148890342.8 | T27: 151571107.8 | U27: 154329614.9 | V27: 157168118.8 | W27: 160088939.2
B29: Náklady při zrychlených odpisech bez půjčky [Kč] | C29: =C25-C21-C19 -> 91839341.38 | D29: =D25-D21-D19 -> 128367290.3 | E29: 162113225.5 | F29: 155909792.8 | G29: 149758460.5 | H29: 143660739.7 | I29: 137618184.9 | J29: 131632396 | K29: 125705019.3 | L29: 119837748.6 | M29: 123419870 | N29: 135678091.2 | O29: 152401800.9 | P29: 151192898.1 | Q29: 150053337.2 | R29: 148985129 | S29: 147990342.8 | T29: 147071107.8 | U29: 146229614.9 | V29: 145468118.8 | W29: 144788939.2
B31: Tržby ze škváry [Kč] | C31: =C6*'Společná data'!$B$8*'Společná data'!$B$9*POWER(1+'Společná data'!$C$47,C2) -> 488152.229 | D31: =D6*'Společná data'!$B$8*'Společná data'!$B$9*POWER(1+'Společná data'!$C$47,D2) -> 502308.6436 | E31: =E6*'Společná data'!$B$8*'Společná data'!$B$9*POWER(1+'Společná data'!$C$47,E2) -> 516875.5943 | F31: =F6*'Společná data'!$B$8*'Společná data'!$B$9*POWER(1+'Společná data'!$C$47,F2) -> 531864.9865 | G31: =G6*'Společná data'!$B$8*'Společná data'!$B$9*POWER(1+'Společná data'!$C$47,G2) -> 547289.0711 | H31: =H6*'Společná data'!$B$8*'Společná data'!$B$9*POWER(1+'Společná data'!$C$47,H2) -> 563160.4542 | I31: =I6*'Společná data'!$B$8*'Společná data'!$B$9*POWER(1+'Společná data'!$C$47,I2) -> 579492.1073 | J31: =J6*'Společná data'!$B$8*'Společná data'!$B$9*POWER(1+'Společná data'!$C$47,J2) -> 596297.3784 | K31: =K6*'Společná data'!$B$8*'Společná data'!$B$9*POWER(1+'Společná data'!$C$47,K2) -> 613590.0024 | L31: =L6*'Společná data'!$B$8*'Společná data'!$B$9*POWER(1+'Společná data'!$C$47,L2) -> 631384.1125 | M31: =M6*'Společná data'!$B$8*'Společná data'!$B$9*POWER(1+'Společná data'!$C$47,M2) -> 649694.2518 | N31: =N6*'Společná data'!$B$8*'Společná data'!$B$9*POWER(1+'Společná data'!$C$47,N2) -> 668535.3851 | O31: =O6*'Společná data'!$B$8*'Společná data'!$B$9*POWER(1+'Společná data'!$C$47,O2) -> 687922.9112 | P31: =P6*'Společná data'!$B$8*'Společná data'!$B$9*POWER(1+'Společná data'!$C$47,P2) -> 707872.6756 | Q31: =Q6*'Společná data'!$B$8*'Společná data'!$B$9*POWER(1+'Společná data'!$C$47,Q2) -> 728400.9832 | R31: =R6*'Společná data'!$B$8*'Společná data'!$B$9*POWER(1+'Společná data'!$C$47,R2) -> 749524.6118 | S31: =S6*'Společná data'!$B$8*'Společná data'!$B$9*POWER(1+'Společná data'!$C$47,S2) -> 771260.8255 | T31: =T6*'Společná data'!$B$8*'Společná data'!$B$9*POWER(1+'Společná data'!$C$47,T2) -> 793627.3894 | U31: =U6*'Společná data'!$B$8*'Společná data'!$B$9*POWER(1+'Společná data'!$C$47,U2) -> 816642.5837 | V31: =V6*'Společná data'!$B$8*'Společná data'!$B$9*POWER(1+'Společná data'!$C$47,V2) -> 840325.2187 | W31: =W6*'Společná data'!$B$8*'Společná data'!$B$9*POWER(1+'Společná data'!$C$47,W2) -> 864694.65
B33: Daňový štít při lineárních odpisech [Kč] | C33: =C15*'Společná data'!$B$22 -> 0 | D33: =D15*'Společná data'!$B$22 -> 4180000 | E33: =E15*'Společná data'!$B$22 -> 7980000 | F33: =F15*'Společná data'!$B$22 -> 7980000 | G33: =G15*'Společná data'!$B$22 -> 7980000 | H33: =H15*'Společná data'!$B$22 -> 7980000 | I33: =I15*'Společná data'!$B$22 -> 7980000 | J33: =J15*'Společná data'!$B$22 -> 7980000 | K33: =K15*'Společná data'!$B$22 -> 7980000 | L33: =L15*'Společná data'!$B$22 -> 7980000 | M33: =M15*'Společná data'!$B$22 -> 7980000 | N33: =N15*'Společná data'!$B$22 -> 1881000 | O33: =O15*'Společná data'!$B$22 -> 3591000 | P33: =P15*'Společná data'!$B$22 -> 3591000 | Q33: =Q15*'Společná data'!$B$22 -> 3591000 | R33: =R15*'Společná data'!$B$22 -> 3591000 | S33: =S15*'Společná data'!$B$22 -> 3591000 | T33: =T15*'Společná data'!$B$22 -> 3591000 | U33: =U15*'Společná data'!$B$22 -> 3591000 | V33: =V15*'Společná data'!$B$22 -> 3591000 | W33: =W15*'Společná data'!$B$22 -> 3591000
B35: Daňový štít při zrychlených odpisech [Kč] | C35: =C17*'Společná data'!$B$22 -> 0 | D35: =D17*'Společná data'!$B$22 -> 7600000 | E35: =E17*'Společná data'!$B$22 -> 13680000 | F35: =F17*'Společná data'!$B$22 -> 12160000 | G35: =G17*'Společná data'!$B$22 -> 10640000 | H35: =H17*'Společná data'!$B$22 -> 9120000 | I35: =I17*'Společná data'!$B$22 -> 7600000 | J35: =J17*'Společná data'!$B$22 -> 6080000 | K35: =K17*'Společná data'!$B$22 -> 4560000 | L35: =L17*'Společná data'!$B$22 -> 3040000 | M35: =M17*'Společná data'!$B$22 -> 1520000 | N35: =N17*'Společná data'!$B$22 -> 3420000 | O35: =O17*'Společná data'!$B$22 -> 6156000 | P35: =P17*'Společná data'!$B$22 -> 5472000 | Q35: =Q17*'Společná data'!$B$22 -> 4788000 | R35: =R17*'Společná data'!$B$22 -> 4104000 | S35: =S17*'Společná data'!$B$22 -> 3420000 | T35: =T17*'Společná data'!$B$22 -> 2736000 | U35: =U17*'Společná data'!$B$22 -> 2052000 | V35: =V17*'Společná data'!$B$22 -> 1368000 | W35: =W17*'Společná data'!$B$22 -> 684000
B37: Diskontované roční výdaje při lineárních odpisech [Kč] | C37: =(C23-C15-C31+C31*'Společná data'!$B$22-C33)/(POWER(1+'Společná data'!$C$37,Uhlí!C2)) -> 91443938.07 | D37: =(D23-D15-D31+D31*'Společná data'!$B$22-D33)/(POWER(1+'Společná data'!$C$37,Uhlí!D2)) -> 123130018.8 | E37: =(E23-E15-E31+E31*'Společná data'!$B$22-E33)/(POWER(1+'Společná data'!$C$37,Uhlí!E2)) -> 111449379.5 | F37: =(F23-F15-F31+F31*'Společná data'!$B$22-F33)/(POWER(1+'Společná data'!$C$37,Uhlí!F2)) -> 103880079.1 | G37: =(G23-G15-G31+G31*'Společná data'!$B$22-G33)/(POWER(1+'Společná data'!$C$37,Uhlí!G2)) -> 96858673.81 | H37: =(H23-H15-H31+H31*'Společná data'!$B$22-H33)/(POWER(1+'Společná data'!$C$37,Uhlí!H2)) -> 90343730.44 | I37: =(I23-I15-I31+I31*'Společná data'!$B$22-I33)/(POWER(1+'Společná data'!$C$37,Uhlí!I2)) -> 84297032.44 | J37: =(J23-J15-J31+J31*'Společná data'!$B$22-J33)/(POWER(1+'Společná data'!$C$37,Uhlí!J2)) -> 78683326.88 | K37: =(K23-K15-K31+K31*'Společná data'!$B$22-K33)/(POWER(1+'Společná data'!$C$37,Uhlí!K2)) -> 73470091.21 | L37: =(L23-L15-L31+L31*'Společná data'!$B$22-L33)/(POWER(1+'Společná data'!$C$37,Uhlí!L2)) -> 68627318.63 | M37: =(M23-M15-M31+M31*'Společná data'!$B$22-M33)/(POWER(1+'Společná data'!$C$37,Uhlí!M2)) -> 68475569 | N37: =(N23-N15-N31+N31*'Společná data'!$B$22-N33)/(POWER(1+'Společná data'!$C$37,Uhlí!N2)) -> 58926608.16 | O37: =(O23-O15-O31+O31*'Společná data'!$B$22-O33)/(POWER(1+'Společná data'!$C$37,Uhlí!O2)) -> 54634745.45 | P37: =(P23-P15-P31+P31*'Společná data'!$B$22-P33)/(POWER(1+'Společná data'!$C$37,Uhlí!P2)) -> 51308760.08 | Q37: =(Q23-Q15-Q31+Q31*'Společná data'!$B$22-Q33)/(POWER(1+'Společná data'!$C$37,Uhlí!Q2)) -> 48199182.8 | R37: =(R23-R15-R31+R31*'Společná data'!$B$22-R33)/(POWER(1+'Společná data'!$C$37,Uhlí!R2)) -> 45291095.43 | S37: =(S23-S15-S31+S31*'Společná data'!$B$22-S33)/(POWER(1+'Společná data'!$C$37,Uhlí!S2)) -> 42570654.77 | T37: =(T23-T15-T31+T31*'Společná data'!$B$22-T33)/(POWER(1+'Společná data'!$C$37,Uhlí!T2)) -> 40025012.68 | U37: =(U23-U15-U31+U31*'Společná data'!$B$22-U33)/(POWER(1+'Společná data'!$C$37,Uhlí!U2)) -> 37642242.35 | V37: =(V23-V15-V31+V31*'Společná data'!$B$22-V33)/(POWER(1+'Společná data'!$C$37,Uhlí!V2)) -> 35411269.98 | W37: =(W23-W15-W31+W31*'Společná data'!$B$22-W33)/(POWER(1+'Společná data'!$C$37,Uhlí!W2)) -> 33321811.76
B39: Diskontované roční výdaje při zrychlených odpisech [Kč] | C39: =(C25-C17-C31+C31*'Společná data'!$B$22-C35)/POWER(1+'Společná data'!$C$37,C2) -> 91443938.07 | D39: =(D25-D17-D31+D31*'Společná data'!$B$22-D35)/POWER(1+'Společná data'!$C$37,D2) -> 119963352.1 | E39: =(E25-E17-E31+E31*'Společná data'!$B$22-E35)/POWER(1+'Společná data'!$C$37,E2) -> 106562548.2 | F39: =(F25-F17-F31+F31*'Společná data'!$B$22-F35)/POWER(1+'Společná data'!$C$37,F2) -> 100561860.3 | G39: =(G25-G17-G31+G31*'Společná data'!$B$22-G35)/POWER(1+'Společná data'!$C$37,G2) -> 94903494.4 | H39: =(H25-H17-H31+H31*'Společná data'!$B$22-H35)/POWER(1+'Společná data'!$C$37,H2) -> 89567865.6 | I39: =(I25-I17-I31+I31*'Společná data'!$B$22-I35)/POWER(1+'Společná data'!$C$37,I2) -> 84536496.9 | J39: =(J25-J17-J31+J31*'Společná data'!$B$22-J35)/POWER(1+'Společná data'!$C$37,J2) -> 79791958.63 | K39: =(K25-K17-K31+K31*'Společná data'!$B$22-K35)/POWER(1+'Společná data'!$C$37,K2) -> 75317810.8 | L39: =(L25-L17-L31+L31*'Společná data'!$B$22-L35)/POWER(1+'Společná data'!$C$37,L2) -> 71098548.52 | M39: =(M25-M17-M31+M31*'Společná data'!$B$22-M35)/POWER(1+'Společná data'!$C$37,M2) -> 71467798.93 | N39: =(N25-N17-N31+N31*'Společná data'!$B$22-N35)/POWER(1+'Společná data'!$C$37,N2) -> 58266557.44 | O39: =(O25-O17-O31+O31*'Společná data'!$B$22-O35)/POWER(1+'Společná data'!$C$37,O2) -> 53616148.66 | P39: =(P25-P17-P31+P31*'Společná data'!$B$22-P35)/POWER(1+'Společná data'!$C$37,P2) -> 50617120.28 | Q39: =(Q25-Q17-Q31+Q31*'Společná data'!$B$22-Q35)/POWER(1+'Společná data'!$C$37,Q2) -> 47791650.93 | R39: =(R25-R17-R31+R31*'Společná data'!$B$22-R35)/POWER(1+'Společná data'!$C$37,R2) -> 45129376.44 | S39: =(S25-S17-S31+S31*'Společná data'!$B$22-S35)/POWER(1+'Společná data'!$C$37,S2) -> 42620568.04 | T39: =(T25-T17-T31+T31*'Společná data'!$B$22-T35)/POWER(1+'Společná data'!$C$37,T2) -> 40256092.64 | U39: =(U25-U17-U31+U31*'Společná data'!$B$22-U35)/POWER(1+'Společná data'!$C$37,U2) -> 38027375.6 | V39: =(V25-V17-V31+V31*'Společná data'!$B$22-V35)/POWER(1+'Společná data'!$C$37,V2) -> 35926365.89 | W39: =(W25-W17-W31+W31*'Společná data'!$B$22-W35)/POWER(1+'Společná data'!$C$37,W2) -> 33945503.4
B41: Diskontované roční výdaje při lineárních odpisech bez půjčky [Kč] | C41: =(C27-C15+C3-C31+C31*'Společná data'!$B$22-C33)/POWER(1+'Společná data'!$C$37,Uhlí!C2) -> 491443938.1 | D41: =(D27-D15+D3-D31+D31*'Společná data'!$B$22-D33)/POWER(1+'Společná data'!$C$37,Uhlí!D2) -> 77574463.23 | E41: =(E27-E15+E3-E31+E31*'Společná data'!$B$22-E33)/POWER(1+'Společná data'!$C$37,Uhlí!E2) -> 70057061.25 | F41: =(F27-F15+F3-F31+F31*'Společná data'!$B$22-F33)/POWER(1+'Společná data'!$C$37,Uhlí!F2) -> 66284184.12 | G41: =(G27-G15+G3-G31+G31*'Společná data'!$B$22-G33)/POWER(1+'Společná data'!$C$37,Uhlí!G2) -> 62723887.45 | H41: =(H27-H15+H3-H31+H31*'Společná data'!$B$22-H33)/POWER(1+'Společná data'!$C$37,Uhlí!H2) -> 59363583.31 | I41: =(I27-I15+I3-I31+I31*'Společná data'!$B$22-I33)/POWER(1+'Společná data'!$C$37,Uhlí!I2) -> 56191467.09 | J41: =(J27-J15+J3-J31+J31*'Společná data'!$B$22-J33)/POWER(1+'Společná data'!$C$37,Uhlí!J2) -> 53196466.41 | K41: =(K27-K15+K3-K31+K31*'Společná data'!$B$22-K33)/POWER(1+'Společná data'!$C$37,Uhlí!K2) -> 50368193.71 | L41: =(L27-L15+L3-L31+L31*'Společná data'!$B$22-L33)/POWER(1+'Společná data'!$C$37,Uhlí!L2) -> 47696901.84 | M41: =(M27-M15+M3-M31+M31*'Společná data'!$B$22-M33)/POWER(1+'Společná data'!$C$37,Uhlí!M2) -> 132896519.3 | N41: =(N27-N15+N3-N31+N31*'Společná data'!$B$22-N33)/POWER(1+'Společná data'!$C$37,Uhlí!N2) -> 49431141.65 | O41: =(O27-O15+O3-O31+O31*'Společná data'!$B$22-O33)/POWER(1+'Společná data'!$C$37,Uhlí!O2) -> 46007051.93 | P41: =(P27-P15+P3-P31+P31*'Společná data'!$B$22-P33)/POWER(1+'Společná data'!$C$37,Uhlí!P2) -> 43472381.91 | Q41: =(Q27-Q15+Q3-Q31+Q31*'Společná data'!$B$22-Q33)/POWER(1+'Společná data'!$C$37,Uhlí!Q2) -> 41084227.96 | R41: =(R27-R15+R3-R31+R31*'Společná data'!$B$22-R33)/POWER(1+'Společná data'!$C$37,Uhlí!R2) -> 38833684.35 | S41: =(S27-S15+S3-S31+S31*'Společná data'!$B$22-S33)/POWER(1+'Společná data'!$C$37,Uhlí!S2) -> 36712413.08 | T41: =(T27-T15+T3-T31+T31*'Společná data'!$B$22-T33)/POWER(1+'Společná data'!$C$37,Uhlí!T2) -> 34712606.17 | U41: =(U27-U15+U3-U31+U31*'Společná data'!$B$22-U33)/POWER(1+'Společná data'!$C$37,Uhlí!U2) -> 32826950.53 | V41: =(V27-V15+V3-V31+V31*'Společná data'!$B$22-V33)/POWER(1+'Společná data'!$C$37,Uhlí!V2) -> 31048595.24 | W41: =(W27-W15+W3-W31+W31*'Společná data'!$B$22-W33)/POWER(1+'Společná data'!$C$37,Uhlí!W2) -> 29371121.07
B43: Diskontované roční výdaje při zrychlených odpisech bez půjčky [Kč] | C43: =(C29-C17+C3-C31+C31*'Společná data'!$B$22-C35)/POWER(1+'Společná data'!$C$37,Uhlí!C2) -> 491443938.1 | D43: =(D29-D17+D3-D31+D31*'Společná data'!$B$22-D35)/POWER(1+'Společná data'!$C$37,Uhlí!D2) -> 74407796.56 | E43: =(E29-E17+E3-E31+E31*'Společná data'!$B$22-E35)/POWER(1+'Společná data'!$C$37,Uhlí!E2) -> 65170229.97 | F43: =(F29-F17+F3-F31+F31*'Společná data'!$B$22-F35)/POWER(1+'Společná data'!$C$37,Uhlí!F2) -> 62965965.35 | G43: =(G29-G17+G3-G31+G31*'Společná data'!$B$22-G35)/POWER(1+'Společná data'!$C$37,Uhlí!G2) -> 60768708.04 | H43: =(H29-H17+H3-H31+H31*'Společná data'!$B$22-H35)/POWER(1+'Společná data'!$C$37,Uhlí!H2) -> 58587718.47 | I43: =(I29-I17+I3-I31+I31*'Společná data'!$B$22-I35)/POWER(1+'Společná data'!$C$37,Uhlí!I2) -> 56430931.54 | J43: =(J29-J17+J3-J31+J31*'Společná data'!$B$22-J35)/POWER(1+'Společná data'!$C$37,Uhlí!J2) -> 54305098.16 | K43: =(K29-K17+K3-K31+K31*'Společná data'!$B$22-K35)/POWER(1+'Společná data'!$C$37,Uhlí!K2) -> 52215913.3 | L43: =(L29-L17+L3-L31+L31*'Společná data'!$B$22-L35)/POWER(1+'Společná data'!$C$37,Uhlí!L2) -> 50168131.74 | M43: =(M29-M17+M3-M31+M31*'Společná data'!$B$22-M35)/POWER(1+'Společná data'!$C$37,Uhlí!M2) -> 135888749.3 | N43: =(N29-N17+N3-N31+N31*'Společná data'!$B$22-N35)/POWER(1+'Společná data'!$C$37,Uhlí!N2) -> 48771090.93 | O43: =(O29-O17+O3-O31+O31*'Společná data'!$B$22-O35)/POWER(1+'Společná data'!$C$37,Uhlí!O2) -> 44988455.14 | P43: =(P29-P17+P3-P31+P31*'Společná data'!$B$22-P35)/POWER(1+'Společná data'!$C$37,Uhlí!P2) -> 42780742.11 | Q43: =(Q29-Q17+Q3-Q31+Q31*'Společná data'!$B$22-Q35)/POWER(1+'Společná data'!$C$37,Uhlí!Q2) -> 40676696.09 | R43: =(R29-R17+R3-R31+R31*'Společná data'!$B$22-R35)/POWER(1+'Společná data'!$C$37,Uhlí!R2) -> 38671965.35 | S43: =(S29-S17+S3-S31+S31*'Společná data'!$B$22-S35)/POWER(1+'Společná data'!$C$37,Uhlí!S2) -> 36762326.35 | T43: =(T29-T17+T3-T31+T31*'Společná data'!$B$22-T35)/POWER(1+'Společná data'!$C$37,Uhlí!T2) -> 34943686.13 | U43: =(U29-U17+U3-U31+U31*'Společná data'!$B$22-U35)/POWER(1+'Společná data'!$C$37,Uhlí!U2) -> 33212083.79 | V43: =(V29-V17+V3-V31+V31*'Společná data'!$B$22-V35)/POWER(1+'Společná data'!$C$37,Uhlí!V2) -> 31563691.15 | W43: =(W29-W17+W3-W31+W31*'Společná data'!$B$22-W35)/POWER(1+'Společná data'!$C$37,Uhlí!W2) -> 29994812.71
B45: Výsledky
B46: S půjčkou
B47: Bilance při lineárních odpisech [Kč] | C47: =SUM(C37:W37) -> 1437990541
B49: Bilance při zrychlených odpisech [Kč] | C49: =SUM(C39:W39) -> 1431412432
B50: Bez půjčky
B51: Bilance při lineárních odpisech bez půjčky [Kč] | C51: =SUM(C41:W41) -> 1551296840
B53: Bilance při zrychlených odpisech bez půjčky [Kč] | C53: =SUM(C43:W43) -> 1544718730

Sheet Biomasa
C2: 0 | D2: 1 | E2: 2 | F2: 3 | G2: 4 | H2: 5 | I2: 6 | J2: 7 | K2: 8 | L2: 9 | M2: 10 | N2: 11 | O2: 12 | P2: 13 | Q2: 14 | R2: 15 | S2: 16 | T2: 17 | U2: 18 | V2: 19 | W2: 20
B3: Investice [Kč] | C3: 415000000 | D3: 0 | E3: 0 | F3: 0 | G3: 0 | H3: 0 | I3: 0 | J3: 0 | K3: 0 | L3: 0 | M3: 190000000 | N3: 0 | O3: 0 | P3: 0 | Q3: 0 | R3: 0 | S3: 0 | T3: 0 | U3: 0 | V3: 0 | W3: 0
B5: Cena uhlí [Kč/t] | C5: ='Společná data'!B4 -> 450 | D5: =C5 -> 450 | E5: =D5 -> 450 | F5: 450 | G5: 450 | H5: 450 | I5: 450 | J5: 450 | K5: 450 | L5: 450 | M5: =C5+150 -> 600 | N5: =D5+150 -> 600 | O5: 600 | P5: 600 | Q5: 600 | R5: 600 | S5: 600 | T5: 600 | U5: 600 | V5: 600 | W5: =M5 -> 600
B6: Množství spáleného uhlí [t] | C6: ='Společná data'!$B$3*'Společná data'!$B$11/('Společná data'!$B$1*'Společná data'!$B$10) -> 43285.22324 | D6: ='Společná data'!$B$3*'Společná data'!$B$11/('Společná data'!$B$1*'Společná data'!$B$10) -> 43285.22324 | E6: ='Společná data'!$B$3*'Společná data'!$B$11/('Společná data'!$B$1*'Společná data'!$B$10) -> 43285.22324 | F6: ='Společná data'!$B$3*'Společná data'!$B$11/('Společná data'!$B$1*'Společná data'!$B$10) -> 43285.22324 | G6: ='Společná data'!$B$3*'Společná data'!$B$11/('Společná data'!$B$1*'Společná data'!$B$10) -> 43285.22324 | H6: ='Společná data'!$B$3*'Společná data'!$B$11/('Společná data'!$B$1*'Společná data'!$B$10) -> 43285.22324 | I6: ='Společná data'!$B$3*'Společná data'!$B$11/('Společná data'!$B$1*'Společná data'!$B$10) -> 43285.22324 | J6: ='Společná data'!$B$3*'Společná data'!$B$11/('Společná data'!$B$1*'Společná data'!$B$10) -> 43285.22324 | K6: ='Společná data'!$B$3*'Společná data'!$B$11/('Společná data'!$B$1*'Společná data'!$B$10) -> 43285.22324 | L6: ='Společná data'!$B$3*'Společná data'!$B$11/('Společná data'!$B$1*'Společná data'!$B$10) -> 43285.22324 | M6: ='Společná data'!$B$3*'Společná data'!$B$11/('Společná data'!$B$1*'Společná data'!$B$10) -> 43285.22324 | N6: ='Společná data'!$B$3*'Společná data'!$B$11/('Společná data'!$B$1*'Společná data'!$B$10) -> 43285.22324 | O6: ='Společná data'!$B$3*'Společná data'!$B$11/('Společná data'!$B$1*'Společná data'!$B$10) -> 43285.22324 | P6: ='Společná data'!$B$3*'Společná data'!$B$11/('Společná data'!$B$1*'Společná data'!$B$10) -> 43285.22324 | Q6: ='Společná data'!$B$3*'Společná data'!$B$11/('Společná data'!$B$1*'Společná data'!$B$10) -> 43285.22324 | R6: ='Společná data'!$B$3*'Společná data'!$B$11/('Společná data'!$B$1*'Společná data'!$B$10) -> 43285.22324 | S6: ='Společná data'!$B$3*'Společná data'!$B$11/('Společná data'!$B$1*'Společná data'!$B$10) -> 43285.22324 | T6: ='Společná data'!$B$3*'Společná data'!$B$11/('Společná data'!$B$1*'Společná data'!$B$10) -> 43285.22324 | U6: ='Společná data'!$B$3*'Společná data'!$B$11/('Společná data'!$B$1*'Společná data'!$B$10) -> 43285.22324 | V6: ='Společná data'!$B$3*'Společná data'!$B$11/('Společná data'!$B$1*'Společná data'!$B$10) -> 43285.22324 | W6: ='Společná data'!$B$3*'Společná data'!$B$11/('Společná data'!$B$1*'Společná data'!$B$10) -> 43285.22324
B7: Cena odebraného uhlí [Kč] | C7: =C6*C5 -> 19478350.46 | D7: =D6*D5 -> 19478350.46 | E7: 19478350.46 | F7: 19478350.46 | G7: 19478350.46 | H7: 19478350.46 | I7: 19478350.46 | J7: 19478350.46 | K7: 19478350.46 | L7: 19478350.46 | M7: 25971133.95 | N7: 25971133.95 | O7: 25971133.95 | P7: 25971133.95 | Q7: 25971133.95 | R7: 25971133.95 | S7: 25971133.95 | T7: 25971133.95 | U7: 25971133.95 | V7: 25971133.95 | W7: 25971133.95
B9: Cena biomasy [Kč/t] | C9: ='Společná data'!$B$13 -> 1450 | D9: ='Společná data'!$B$13 -> 1450 | E9: ='Společná data'!$B$13 -> 1450 | F9: ='Společná data'!$B$13 -> 1450 | G9: ='Společná data'!$B$13 -> 1450 | H9: ='Společná data'!$B$13 -> 1450 | I9: ='Společná data'!$B$13 -> 1450 | J9: ='Společná data'!$B$13 -> 1450 | K9: ='Společná data'!$B$13 -> 1450 | L9: ='Společná data'!$B$13 -> 1450 | M9: =C9+500 -> 1950 | N9: =D9+500 -> 1950 | O9: 1950 | P9: 1950 | Q9: 1950 | R9: 1950 | S9: 1950 | T9: 1950 | U9: 1950 | V9: 1950 | W9: =M9 -> 1950
B10: Množství spálené biomasy [t] | C10: =((Uhlí!C6-Biomasa!C6)*'Společná data'!$B$1)/('Společná data'!$B$12*'Společná data'!$B$10) -> 23097.46346 | D10: =((Uhlí!D6-Biomasa!D6)*'Společná data'!$B$1)/('Společná data'!$B$12*'Společná data'!$B$10) -> 23097.46346 | E10: =((Uhlí!E6-Biomasa!E6)*'Společná data'!$B$1)/('Společná data'!$B$12*'Společná data'!$B$10) -> 23097.46346 | F10: =((Uhlí!F6-Biomasa!F6)*'Společná data'!$B$1)/('Společná data'!$B$12*'Společná data'!$B$10) -> 23097.46346 | G10: =((Uhlí!G6-Biomasa!G6)*'Společná data'!$B$1)/('Společná data'!$B$12*'Společná data'!$B$10) -> 23097.46346 | H10: =((Uhlí!H6-Biomasa!H6)*'Společná data'!$B$1)/('Společná data'!$B$12*'Společná data'!$B$10) -> 23097.46346 | I10: =((Uhlí!I6-Biomasa!I6)*'Společná data'!$B$1)/('Společná data'!$B$12*'Společná data'!$B$10) -> 23097.46346 | J10: =((Uhlí!J6-Biomasa!J6)*'Společná data'!$B$1)/('Společná data'!$B$12*'Společná data'!$B$10) -> 23097.46346 | K10: =((Uhlí!K6-Biomasa!K6)*'Společná data'!$B$1)/('Společná data'!$B$12*'Společná data'!$B$10) -> 23097.46346 | L10: =((Uhlí!L6-Biomasa!L6)*'Společná data'!$B$1)/('Společná data'!$B$12*'Společná data'!$B$10) -> 23097.46346 | M10: =((Uhlí!M6-Biomasa!M6)*'Společná data'!$B$1)/('Společná data'!$B$12*'Společná data'!$B$10) -> 23097.46346 | N10: =((Uhlí!N6-Biomasa!N6)*'Společná data'!$B$1)/('Společná data'!$B$12*'Společná data'!$B$10) -> 23097.46346 | O10: =((Uhlí!O6-Biomasa!O6)*'Společná data'!$B$1)/('Společná data'!$B$12*'Společná data'!$B$10) -> 23097.46346 | P10: =((Uhlí!P6-Biomasa!P6)*'Společná data'!$B$1)/('Společná data'!$B$12*'Společná data'!$B$10) -> 23097.46346 | Q10: =((Uhlí!Q6-Biomasa!Q6)*'Společná data'!$B$1)/('Společná data'!$B$12*'Společná data'!$B$10) -> 23097.46346 | R10: =((Uhlí!R6-Biomasa!R6)*'Společná data'!$B$1)/('Společná data'!$B$12*'Společná data'!$B$10) -> 23097.46346 | S10: =((Uhlí!S6-Biomasa!S6)*'Společná data'!$B$1)/('Společná data'!$B$12*'Společná data'!$B$10) -> 23097.46346 | T10: =((Uhlí!T6-Biomasa!T6)*'Společná data'!$B$1)/('Společná data'!$B$12*'Společná data'!$B$10) -> 23097.46346 | U10: =((Uhlí!U6-Biomasa!U6)*'Společná data'!$B$1)/('Společná data'!$B$12*'Společná data'!$B$10) -> 23097.46346 | V10: =((Uhlí!V6-Biomasa!V6)*'Společná data'!$B$1)/('Společná data'!$B$12*'Společná data'!$B$10) -> 23097.46346 | W10: =((Uhlí!W6-Biomasa!W6)*'Společná data'!$B$1)/('Společná data'!$B$12*'Společná data'!$B$10) -> 23097.46346
B11: Cena odebrané biomasy [Kč] | C11: =C10*C9 -> 33491322.02 | D11: =D10*D9 -> 33491322.02 | E11: 33491322.02 | F11: 33491322.02 | G11: 33491322.02 | H11: 33491322.02 | I11: 33491322.02 | J11: 33491322.02 | K11: 33491322.02 | L11: 33491322.02 | M11: 45040053.75 | N11: 45040053.75 | O11: 45040053.75 | P11: 45040053.75 | Q11: 45040053.75 | R11: 45040053.75 | S11: 45040053.75 | T11: 45040053.75 | U11: 45040053.75 | V11: 45040053.75 | W11: 45040053.75
B13: Cena použitých emisních povolenek [Kč] | C13: =(Biomasa!$C$6/(Biomasa!$C$6+Biomasa!$C$10)*'Společná data'!$B$5*'Společná data'!$B$3+Biomasa!$C$10/(Biomasa!$C$6+Biomasa!$C$10)*'Společná data'!$B$14*'Společná data'!$B$3)*HLOOKUP(Biomasa!C2,'Společná data'!$B$44:$V$46,3,0) -> 31817192.38 | D13: =(Biomasa!$C$6/(Biomasa!$C$6+Biomasa!$C$10)*'Společná data'!$B$5*'Společná data'!$B$3+Biomasa!$C$10/(Biomasa!$C$6+Biomasa!$C$10)*'Společná data'!$B$14*'Společná data'!$B$3)*HLOOKUP(Biomasa!D2,'Společná data'!$B$44:$V$46,3,0) -> 29271816.99 | E13: =(Biomasa!$C$6/(Biomasa!$C$6+Biomasa!$C$10)*'Společná data'!$B$5*'Společná data'!$B$3+Biomasa!$C$10/(Biomasa!$C$6+Biomasa!$C$10)*'Společná data'!$B$14*'Společná data'!$B$3)*HLOOKUP(Biomasa!E2,'Společná data'!$B$44:$V$46,3,0) -> 30120699.69 | F13: =(Biomasa!$C$6/(Biomasa!$C$6+Biomasa!$C$10)*'Společná data'!$B$5*'Společná data'!$B$3+Biomasa!$C$10/(Biomasa!$C$6+Biomasa!$C$10)*'Společná data'!$B$14*'Společná data'!$B$3)*HLOOKUP(Biomasa!F2,'Společná data'!$B$44:$V$46,3,0) -> 30994199.98 | G13: =(Biomasa!$C$6/(Biomasa!$C$6+Biomasa!$C$10)*'Společná data'!$B$5*'Společná data'!$B$3+Biomasa!$C$10/(Biomasa!$C$6+Biomasa!$C$10)*'Společná data'!$B$14*'Společná data'!$B$3)*HLOOKUP(Biomasa!G2,'Společná data'!$B$44:$V$46,3,0) -> 31893031.78 | H13: =(Biomasa!$C$6/(Biomasa!$C$6+Biomasa!$C$10)*'Společná data'!$B$5*'Společná data'!$B$3+Biomasa!$C$10/(Biomasa!$C$6+Biomasa!$C$10)*'Společná data'!$B$14*'Společná data'!$B$3)*HLOOKUP(Biomasa!H2,'Společná data'!$B$44:$V$46,3,0) -> 32817929.7 | I13: =(Biomasa!$C$6/(Biomasa!$C$6+Biomasa!$C$10)*'Společná data'!$B$5*'Společná data'!$B$3+Biomasa!$C$10/(Biomasa!$C$6+Biomasa!$C$10)*'Společná data'!$B$14*'Společná data'!$B$3)*HLOOKUP(Biomasa!I2,'Společná data'!$B$44:$V$46,3,0) -> 33769649.66 | J13: =(Biomasa!$C$6/(Biomasa!$C$6+Biomasa!$C$10)*'Společná data'!$B$5*'Společná data'!$B$3+Biomasa!$C$10/(Biomasa!$C$6+Biomasa!$C$10)*'Společná data'!$B$14*'Společná data'!$B$3)*HLOOKUP(Biomasa!J2,'Společná data'!$B$44:$V$46,3,0) -> 34748969.5 | K13: =(Biomasa!$C$6/(Biomasa!$C$6+Biomasa!$C$10)*'Společná data'!$B$5*'Společná data'!$B$3+Biomasa!$C$10/(Biomasa!$C$6+Biomasa!$C$10)*'Společná data'!$B$14*'Společná data'!$B$3)*HLOOKUP(Biomasa!K2,'Společná data'!$B$44:$V$46,3,0) -> 35756689.61 | L13: =(Biomasa!$C$6/(Biomasa!$C$6+Biomasa!$C$10)*'Společná data'!$B$5*'Společná data'!$B$3+Biomasa!$C$10/(Biomasa!$C$6+Biomasa!$C$10)*'Společná data'!$B$14*'Společná data'!$B$3)*HLOOKUP(Biomasa!L2,'Společná data'!$B$44:$V$46,3,0) -> 36793633.61 | M13: =(Biomasa!$C$6/(Biomasa!$C$6+Biomasa!$C$10)*'Společná data'!$B$5*'Společná data'!$B$3+Biomasa!$C$10/(Biomasa!$C$6+Biomasa!$C$10)*'Společná data'!$B$14*'Společná data'!$B$3)*HLOOKUP(Biomasa!M2,'Společná data'!$B$44:$V$46,3,0) -> 37860648.99 | N13: =(Biomasa!$C$6/(Biomasa!$C$6+Biomasa!$C$10)*'Společná data'!$B$5*'Společná data'!$B$3+Biomasa!$C$10/(Biomasa!$C$6+Biomasa!$C$10)*'Společná data'!$B$14*'Společná data'!$B$3)*HLOOKUP(Biomasa!N2,'Společná data'!$B$44:$V$46,3,0) -> 38958607.81 | O13: =(Biomasa!$C$6/(Biomasa!$C$6+Biomasa!$C$10)*'Společná data'!$B$5*'Společná data'!$B$3+Biomasa!$C$10/(Biomasa!$C$6+Biomasa!$C$10)*'Společná data'!$B$14*'Společná data'!$B$3)*HLOOKUP(Biomasa!O2,'Společná data'!$B$44:$V$46,3,0) -> 40088407.43 | P13: =(Biomasa!$C$6/(Biomasa!$C$6+Biomasa!$C$10)*'Společná data'!$B$5*'Společná data'!$B$3+Biomasa!$C$10/(Biomasa!$C$6+Biomasa!$C$10)*'Společná data'!$B$14*'Společná data'!$B$3)*HLOOKUP(Biomasa!P2,'Společná data'!$B$44:$V$46,3,0) -> 41250971.25 | Q13: =(Biomasa!$C$6/(Biomasa!$C$6+Biomasa!$C$10)*'Společná data'!$B$5*'Společná data'!$B$3+Biomasa!$C$10/(Biomasa!$C$6+Biomasa!$C$10)*'Společná data'!$B$14*'Společná data'!$B$3)*HLOOKUP(Biomasa!Q2,'Společná data'!$B$44:$V$46,3,0) -> 42447249.42 | R13: =(Biomasa!$C$6/(Biomasa!$C$6+Biomasa!$C$10)*'Společná data'!$B$5*'Společná data'!$B$3+Biomasa!$C$10/(Biomasa!$C$6+Biomasa!$C$10)*'Společná data'!$B$14*'Společná data'!$B$3)*HLOOKUP(Biomasa!R2,'Společná data'!$B$44:$V$46,3,0) -> 43678219.65 | S13: =(Biomasa!$C$6/(Biomasa!$C$6+Biomasa!$C$10)*'Společná data'!$B$5*'Společná data'!$B$3+Biomasa!$C$10/(Biomasa!$C$6+Biomasa!$C$10)*'Společná data'!$B$14*'Společná data'!$B$3)*HLOOKUP(Biomasa!S2,'Společná data'!$B$44:$V$46,3,0) -> 44944888.02 | T13: =(Biomasa!$C$6/(Biomasa!$C$6+Biomasa!$C$10)*'Společná data'!$B$5*'Společná data'!$B$3+Biomasa!$C$10/(Biomasa!$C$6+Biomasa!$C$10)*'Společná data'!$B$14*'Společná data'!$B$3)*HLOOKUP(Biomasa!T2,'Společná data'!$B$44:$V$46,3,0) -> 46248289.77 | U13: =(Biomasa!$C$6/(Biomasa!$C$6+Biomasa!$C$10)*'Společná data'!$B$5*'Společná data'!$B$3+Biomasa!$C$10/(Biomasa!$C$6+Biomasa!$C$10)*'Společná data'!$B$14*'Společná data'!$B$3)*HLOOKUP(Biomasa!U2,'Společná data'!$B$44:$V$46,3,0) -> 47589490.17 | V13: =(Biomasa!$C$6/(Biomasa!$C$6+Biomasa!$C$10)*'Společná data'!$B$5*'Společná data'!$B$3+Biomasa!$C$10/(Biomasa!$C$6+Biomasa!$C$10)*'Společná data'!$B$14*'Společná data'!$B$3)*HLOOKUP(Biomasa!V2,'Společná data'!$B$44:$V$46,3,0) -> 48969585.39 | W13: =(Biomasa!$C$6/(Biomasa!$C$6+Biomasa!$C$10)*'Společná data'!$B$5*'Společná data'!$B$3+Biomasa!$C$10/(Biomasa!$C$6+Biomasa!$C$10)*'Společná data'!$B$14*'Společná data'!$B$3)*HLOOKUP(Biomasa!W2,'Společná data'!$B$44:$V$46,3,0) -> 50389703.37
B15: Cena odebráného vápna [Kč] | C15: =C6*'Společná data'!$B$6*'Společná data'!$B$7*POWER(1+'Společná data'!$C$47,C2) -> 3376247.413 | D15: =D6*'Společná data'!$B$6*'Společná data'!$B$7*POWER(1+'Společná data'!$C$47,D2) -> 3474158.588 | E15: =E6*'Společná data'!$B$6*'Společná data'!$B$7*POWER(1+'Společná data'!$C$47,E2) -> 3574909.187 | F15: =F6*'Společná data'!$B$6*'Společná data'!$B$7*POWER(1+'Společná data'!$C$47,F2) -> 3678581.553 | G15: =G6*'Společná data'!$B$6*'Společná data'!$B$7*POWER(1+'Společná data'!$C$47,G2) -> 3785260.418 | H15: =H6*'Společná data'!$B$6*'Společná data'!$B$7*POWER(1+'Společná data'!$C$47,H2) -> 3895032.971 | I15: =I6*'Společná data'!$B$6*'Společná data'!$B$7*POWER(1+'Společná data'!$C$47,I2) -> 4007988.927 | J15: =J6*'Společná data'!$B$6*'Společná data'!$B$7*POWER(1+'Společná data'!$C$47,J2) -> 4124220.606 | K15: =K6*'Společná data'!$B$6*'Společná data'!$B$7*POWER(1+'Společná data'!$C$47,K2) -> 4243823.003 | L15: =L6*'Společná data'!$B$6*'Společná data'!$B$7*POWER(1+'Společná data'!$C$47,L2) -> 4366893.87 | M15: =M6*'Společná data'!$B$6*'Společná data'!$B$7*POWER(1+'Společná data'!$C$47,M2) -> 4493533.792 | N15: =N6*'Společná data'!$B$6*'Společná data'!$B$7*POWER(1+'Společná data'!$C$47,N2) -> 4623846.272 | O15: =O6*'Společná data'!$B$6*'Společná data'!$B$7*POWER(1+'Společná data'!$C$47,O2) -> 4757937.814 | P15: =P6*'Společná data'!$B$6*'Společná data'!$B$7*POWER(1+'Společná data'!$C$47,P2) -> 4895918.011 | Q15: =Q6*'Společná data'!$B$6*'Společná data'!$B$7*POWER(1+'Společná data'!$C$47,Q2) -> 5037899.633 | R15: =R6*'Společná data'!$B$6*'Společná data'!$B$7*POWER(1+'Společná data'!$C$47,R2) -> 5183998.723 | S15: =S6*'Společná data'!$B$6*'Společná data'!$B$7*POWER(1+'Společná data'!$C$47,S2) -> 5334334.686 | T15: =T6*'Společná data'!$B$6*'Společná data'!$B$7*POWER(1+'Společná data'!$C$47,T2) -> 5489030.391 | U15: =U6*'Společná data'!$B$6*'Společná data'!$B$7*POWER(1+'Společná data'!$C$47,U2) -> 5648212.273 | V15: =V6*'Společná data'!$B$6*'Společná data'!$B$7*POWER(1+'Společná data'!$C$47,V2) -> 5812010.429 | W15: =W6*'Společná data'!$B$6*'Společná data'!$B$7*POWER(1+'Společná data'!$C$47,W2) -> 5980558.731
B17: Údržba [Kč] | C17: 11000000 | D17: =C17*(1+'Společná data'!$C$47) -> 11319000 | E17: =D17*(1+'Společná data'!$C$47) -> 11647251 | F17: =E17*(1+'Společná data'!$C$47) -> 11985021.28 | G17: =F17*(1+'Společná data'!$C$47) -> 12332586.9 | H17: =G17*(1+'Společná data'!$C$47) -> 12690231.92 | I17: =H17*(1+'Společná data'!$C$47) -> 13058248.64 | J17: =I17*(1+'Společná data'!$C$47) -> 13436937.85 | K17: =J17*(1+'Společná data'!$C$47) -> 13826609.05 | L17: =K17*(1+'Společná data'!$C$47) -> 14227580.71 | M17: =L17*(1+'Společná data'!$C$47) -> 14640180.55 | N17: =M17*(1+'Společná data'!$C$47) -> 15064745.79 | O17: =N17*(1+'Společná data'!$C$47) -> 15501623.42 | P17: =O17*(1+'Společná data'!$C$47) -> 15951170.5 | Q17: =P17*(1+'Společná data'!$C$47) -> 16413754.44 | R17: =Q17*(1+'Společná data'!$C$47) -> 16889753.32 | S17: =R17*(1+'Společná data'!$C$47) -> 17379556.17 | T17: =S17*(1+'Společná data'!$C$47) -> 17883563.29 | U17: =T17*(1+'Společná data'!$C$47) -> 18402186.63 | V17: =U17*(1+'Společná data'!$C$47) -> 18935850.04 | W17: =V17*(1+'Společná data'!$C$47) -> 19484989.69
B19: Výše lineárního odpisu [Kč] | C19: 0 | D19: =IF(D2=1,0.055,0.105)*$C$3 -> 22825000 | E19: 43575000 | F19: 43575000 | G19: 43575000 | H19: 43575000 | I19: 43575000 | J19: 43575000 | K19: 43575000 | L19: 43575000 | M19: 43575000 | N19: =IF(N2=11,0.055,0.105)*$M$3 -> 10450000 | O19: 19950000 | P19: 19950000 | Q19: 19950000 | R19: 19950000 | S19: 19950000 | T19: 19950000 | U19: 19950000 | V19: 19950000 | W19: 19950000
B21: Výše zrychleného odpisu [Kč] | C21: 0 | D21: =IF(D2=1,$C$3/10,(($C$3-(SUM($C$21:C21)))*2)/('Společná data'!$B$19+1-C2)) -> 41500000 | E21: =IF(E2=1,$C$3/10,(($C$3-(SUM($C$21:D21)))*2)/('Společná data'!$B$19+1-D2)) -> 74700000 | F21: =IF(F2=1,$C$3/10,(($C$3-(SUM($C$21:E21)))*2)/('Společná data'!$B$19+1-E2)) -> 66400000 | G21: =IF(G2=1,$C$3/10,(($C$3-(SUM($C$21:F21)))*2)/('Společná data'!$B$19+1-F2)) -> 58100000 | H21: =IF(H2=1,$C$3/10,(($C$3-(SUM($C$21:G21)))*2)/('Společná data'!$B$19+1-G2)) -> 49800000 | I21: =IF(I2=1,$C$3/10,(($C$3-(SUM($C$21:H21)))*2)/('Společná data'!$B$19+1-H2)) -> 41500000 | J21: =IF(J2=1,$C$3/10,(($C$3-(SUM($C$21:I21)))*2)/('Společná data'!$B$19+1-I2)) -> 33200000 | K21: =IF(K2=1,$C$3/10,(($C$3-(SUM($C$21:J21)))*2)/('Společná data'!$B$19+1-J2)) -> 24900000 | L21: =IF(L2=1,$C$3/10,(($C$3-(SUM($C$21:K21)))*2)/('Společná data'!$B$19+1-K2)) -> 16600000 | M21: =IF(M2=1,$C$3/10,(($C$3-(SUM($C$21:L21)))*2)/('Společná data'!$B$19+1-L2)) -> 8300000 | N21: =IF(N2=11,$M$3/10,(($M$3-(SUM($N$21:N21)))*2)/('Společná data'!$B$19+1-C2)) -> 19000000 | O21: =IF(O2=11,$M$3/10,(($M$3-(SUM($N$21:N21)))*2)/('Společná data'!$B$19+1-D2)) -> 34200000 | P21: =IF(P2=11,$M$3/10,(($M$3-(SUM($N$21:O21)))*2)/('Společná data'!$B$19+1-E2)) -> 30400000 | Q21: =IF(Q2=11,$M$3/10,(($M$3-(SUM($N$21:P21)))*2)/('Společná data'!$B$19+1-F2)) -> 26600000 | R21: =IF(R2=11,$M$3/10,(($M$3-(SUM($N$21:Q21)))*2)/('Společná data'!$B$19+1-G2)) -> 22800000 | S21: =IF(S2=11,$M$3/10,(($M$3-(SUM($N$21:R21)))*2)/('Společná data'!$B$19+1-H2)) -> 19000000 | T21: =IF(T2=11,$M$3/10,(($M$3-(SUM($N$21:S21)))*2)/('Společná data'!$B$19+1-I2)) -> 15200000 | U21: =IF(U2=11,$M$3/10,(($M$3-(SUM($N$21:T21)))*2)/('Společná data'!$B$19+1-J2)) -> 11400000 | V21: =IF(V2=11,$M$3/10,(($M$3-(SUM($N$21:U21)))*2)/('Společná data'!$B$19+1-K2)) -> 7600000 | W21: =IF(W2=11,$M$3/10,(($M$3-(SUM($N$21:V21)))*2)/('Společná data'!$B$19+1-L2)) -> 3800000
B23: Úmor [Kč] | C23: 0 | D23: =$C$3/'Společná data'!$B$21 -> 41500000 | E23: =$C$3/'Společná data'!$B$21 -> 41500000 | F23: =$C$3/'Společná data'!$B$21 -> 41500000 | G23: =$C$3/'Společná data'!$B$21 -> 41500000 | H23: =$C$3/'Společná data'!$B$21 -> 41500000 | I23: =$C$3/'Společná data'!$B$21 -> 41500000 | J23: =$C$3/'Společná data'!$B$21 -> 41500000 | K23: =$C$3/'Společná data'!$B$21 -> 41500000 | L23: =$C$3/'Společná data'!$B$21 -> 41500000 | M23: =$C$3/'Společná data'!$B$21 -> 41500000 | N23: =$M$3/'Společná data'!$B$21 -> 19000000 | O23: =$M$3/'Společná data'!$B$21 -> 19000000 | P23: =$M$3/'Společná data'!$B$21 -> 19000000 | Q23: =$M$3/'Společná data'!$B$21 -> 19000000 | R23: =$M$3/'Společná data'!$B$21 -> 19000000 | S23: =$M$3/'Společná data'!$B$21 -> 19000000 | T23: =$M$3/'Společná data'!$B$21 -> 19000000 | U23: =$M$3/'Společná data'!$B$21 -> 19000000 | V23: =$M$3/'Společná data'!$B$21 -> 19000000 | W23: =$M$3/'Společná data'!$B$21 -> 19000000
B25: Úrok [Kč] | C25: 0 | D25: =($C$3-SUM($C$23:C23))*'Společná data'!$B$20 -> 9545000 | E25: =($C$3-SUM($C$23:D23))*'Společná data'!$B$20 -> 8590500 | F25: =($C$3-SUM($C$23:E23))*'Společná data'!$B$20 -> 7636000 | G25: =($C$3-SUM($C$23:F23))*'Společná data'!$B$20 -> 6681500 | H25: =($C$3-SUM($C$23:G23))*'Společná data'!$B$20 -> 5727000 | I25: =($C$3-SUM($C$23:H23))*'Společná data'!$B$20 -> 4772500 | J25: =($C$3-SUM($C$23:I23))*'Společná data'!$B$20 -> 3818000 | K25: =($C$3-SUM($C$23:J23))*'Společná data'!$B$20 -> 2863500 | L25: =($C$3-SUM($C$23:K23))*'Společná data'!$B$20 -> 1909000 | M25: =($C$3-SUM($C$23:L23))*'Společná data'!$B$20 -> 954500 | N25: =($M$3)*'Společná data'!$B$20 -> 4370000 | O25: =($M$3-SUM($N$23:N23))*'Společná data'!$B$20 -> 3933000 | P25: =($M$3-SUM($N$23:O23))*'Společná data'!$B$20 -> 3496000 | Q25: =($M$3-SUM($N$23:P23))*'Společná data'!$B$20 -> 3059000 | R25: =($M$3-SUM($N$23:Q23))*'Společná data'!$B$20 -> 2622000 | S25: =($M$3-SUM($N$23:R23))*'Společná data'!$B$20 -> 2185000 | T25: =($M$3-SUM($N$23:S23))*'Společná data'!$B$20 -> 1748000 | U25: =($M$3-SUM($N$23:T23))*'Společná data'!$B$20 -> 1311000 | V25: =($M$3-SUM($N$23:U23))*'Společná data'!$B$20 -> 874000 | W25: =($M$3-SUM($N$23:V23))*'Společná data'!$B$20 -> 437000
B27: Náklady při lineárních odpisech [Kč] | C27: =SUM(C7,C13,C15,C17,C19,C23,C25,C11) -> 99163112.27 | D27: =SUM(D7,D13,D15,D17,D19,D23,D25,D11) -> 170904648.1 | E27: 191978032.3 | F27: 192338475.3 | G27: 192737051.6 | H27: 193174867.1 | I27: 193653059.7 | J27: 194172800.4 | K27: 194735294.1 | L27: 195341780.7 | M27: 214035051 | N27: 163478387.6 | O27: 174242156.4 | P27: 175555247.5 | Q27: 176919091.2 | R27: 178335159.4 | S27: 179804966.6 | T27: 181330071.2 | U27: 182912076.8 | V27: 184552633.6 | W27: 186253439.5
B29: Náklady při zrychlených odpisech [Kč] | C29: =SUM(C7,C13,C15,C17,C21,C23,C25,C11) -> 99163112.27 | D29: =SUM(D7,D13,D15,D17,D21,D23,D25,D11) -> 189579648.1 | E29: 223103032.3 | F29: 215163475.3 | G29: 207262051.6 | H29: 199399867.1 | I29: 191578059.7 | J29: 183797800.4 | K29: 176060294.1 | L29: 168366780.7 | M29: 178760051 | N29: 172028387.6 | O29: 188492156.4 | P29: 186005247.5 | Q29: 183569091.2 | R29: 181185159.4 | S29: 178854966.6 | T29: 176580071.2 | U29: 174362076.8 | V29: 172202633.6 | W29: 170103439.5
B31: Náklady při lineárních odpisech bez půjčky [Kč] | C31: =C27-C25-C23 -> 99163112.27 | D31: =D27-D25-D23 -> 119859648.1 | E31: 141887532.3 | F31: 143202475.3 | G31: 144555551.6 | H31: 145947867.1 | I31: 147380559.7 | J31: 148854800.4 | K31: 150371794.1 | L31: 151932780.7 | M31: 171580551 | N31: 140108387.6 | O31: 151309156.4 | P31: 153059247.5 | Q31: 154860091.2 | R31: 156713159.4 | S31: 158619966.6 | T31: 160582071.2 | U31: 162601076.8 | V31: 164678633.6 | W31: 166816439.5
B33: Náklady při zrychlených odpisech bez půjčky [Kč] | C33: =C29-C25-C23 -> 99163112.27 | D33: =D29-D25-D23 -> 138534648.1 | E33: 173012532.3 | F33: 166027475.3 | G33: 159080551.6 | H33: 152172867.1 | I33: 145305559.7 | J33: 138479800.4 | K33: 131696794.1 | L33: 124957780.7 | M33: 136305551 | N33: 148658387.6 | O33: 165559156.4 | P33: 163509247.5 | Q33: 161510091.2 | R33: 159563159.4 | S33: 157669966.6 | T33: 155832071.2 | U33: 154051076.8 | V33: 152328633.6 | W33: 150666439.5
B35: Tržby ze škváry [Kč] | C35: =C6*'Společná data'!$B$8*'Společná data'!$B$9*POWER(1+'Společná data'!$C$47,C2) -> 337624.7413 | D35: =D6*'Společná data'!$B$8*'Společná data'!$B$9*POWER(1+'Společná data'!$C$47,D2) -> 347415.8588 | E35: =E6*'Společná data'!$B$8*'Společná data'!$B$9*POWER(1+'Společná data'!$C$47,E2) -> 357490.9187 | F35: =F6*'Společná data'!$B$8*'Společná data'!$B$9*POWER(1+'Společná data'!$C$47,F2) -> 367858.1553 | G35: =G6*'Společná data'!$B$8*'Společná data'!$B$9*POWER(1+'Společná data'!$C$47,G2) -> 378526.0418 | H35: =H6*'Společná data'!$B$8*'Společná data'!$B$9*POWER(1+'Společná data'!$C$47,H2) -> 389503.2971 | I35: =I6*'Společná data'!$B$8*'Společná data'!$B$9*POWER(1+'Společná data'!$C$47,I2) -> 400798.8927 | J35: =J6*'Společná data'!$B$8*'Společná data'!$B$9*POWER(1+'Společná data'!$C$47,J2) -> 412422.0606 | K35: =K6*'Společná data'!$B$8*'Společná data'!$B$9*POWER(1+'Společná data'!$C$47,K2) -> 424382.3003 | L35: =L6*'Společná data'!$B$8*'Společná data'!$B$9*POWER(1+'Společná data'!$C$47,L2) -> 436689.387 | M35: =M6*'Společná data'!$B$8*'Společná data'!$B$9*POWER(1+'Společná data'!$C$47,M2) -> 449353.3792 | N35: =N6*'Společná data'!$B$8*'Společná data'!$B$9*POWER(1+'Společná data'!$C$47,N2) -> 462384.6272 | O35: =O6*'Společná data'!$B$8*'Společná data'!$B$9*POWER(1+'Společná data'!$C$47,O2) -> 475793.7814 | P35: =P6*'Společná data'!$B$8*'Společná data'!$B$9*POWER(1+'Společná data'!$C$47,P2) -> 489591.8011 | Q35: =Q6*'Společná data'!$B$8*'Společná data'!$B$9*POWER(1+'Společná data'!$C$47,Q2) -> 503789.9633 | R35: =R6*'Společná data'!$B$8*'Společná data'!$B$9*POWER(1+'Společná data'!$C$47,R2) -> 518399.8723 | S35: =S6*'Společná data'!$B$8*'Společná data'!$B$9*POWER(1+'Společná data'!$C$47,S2) -> 533433.4686 | T35: =T6*'Společná data'!$B$8*'Společná data'!$B$9*POWER(1+'Společná data'!$C$47,T2) -> 548903.0391 | U35: =U6*'Společná data'!$B$8*'Společná data'!$B$9*POWER(1+'Společná data'!$C$47,U2) -> 564821.2273 | V35: =V6*'Společná data'!$B$8*'Společná data'!$B$9*POWER(1+'Společná data'!$C$47,V2) -> 581201.0429 | W35: =W6*'Společná data'!$B$8*'Společná data'!$B$9*POWER(1+'Společná data'!$C$47,W2) -> 598055.8731
B37: Dotace na elektřinu [Kč] | C37: ='Společná data'!$B$24*'Společná data'!$B$25 -> 0 | D37: ='Společná data'!$B$24*'Společná data'!$B$25 -> 0 | E37: ='Společná data'!$B$24*'Společná data'!$B$25 -> 0 | F37: ='Společná data'!$B$24*'Společná data'!$B$25 -> 0 | G37: ='Společná data'!$B$24*'Společná data'!$B$25 -> 0 | H37: ='Společná data'!$B$24*'Společná data'!$B$25 -> 0 | I37: ='Společná data'!$B$24*'Společná data'!$B$25 -> 0 | J37: ='Společná data'!$B$24*'Společná data'!$B$25 -> 0 | K37: ='Společná data'!$B$24*'Společná data'!$B$25 -> 0 | L37: ='Společná data'!$B$24*'Společná data'!$B$25 -> 0 | M37: ='Společná data'!$B$24*'Společná data'!$B$25 -> 0 | N37: ='Společná data'!$B$24*'Společná data'!$B$25 -> 0 | O37: ='Společná data'!$B$24*'Společná data'!$B$25 -> 0 | P37: ='Společná data'!$B$24*'Společná data'!$B$25 -> 0 | Q37: ='Společná data'!$B$24*'Společná data'!$B$25 -> 0 | R37: ='Společná data'!$B$24*'Společná data'!$B$25 -> 0 | S37: ='Společná data'!$B$24*'Společná data'!$B$25 -> 0 | T37: ='Společná data'!$B$24*'Společná data'!$B$25 -> 0 | U37: ='Společná data'!$B$24*'Společná data'!$B$25 -> 0 | V37: ='Společná data'!$B$24*'Společná data'!$B$25 -> 0 | W37: ='Společná data'!$B$24*'Společná data'!$B$25 -> 0
B39: Daňový štít při lineárních odpisech [Kč] | C39: =C19*'Společná data'!$B$22 -> 0 | D39: =D19*'Společná data'!$B$22 -> 4336750 | E39: =E19*'Společná data'!$B$22 -> 8279250 | F39: =F19*'Společná data'!$B$22 -> 8279250 | G39: =G19*'Společná data'!$B$22 -> 8279250 | H39: =H19*'Společná data'!$B$22 -> 8279250 | I39: =I19*'Společná data'!$B$22 -> 8279250 | J39: =J19*'Společná data'!$B$22 -> 8279250 | K39: =K19*'Společná data'!$B$22 -> 8279250 | L39: =L19*'Společná data'!$B$22 -> 8279250 | M39: =M19*'Společná data'!$B$22 -> 8279250 | N39: =N19*'Společná data'!$B$22 -> 1985500 | O39: =O19*'Společná data'!$B$22 -> 3790500 | P39: =P19*'Společná data'!$B$22 -> 3790500 | Q39: =Q19*'Společná data'!$B$22 -> 3790500 | R39: =R19*'Společná data'!$B$22 -> 3790500 | S39: =S19*'Společná data'!$B$22 -> 3790500 | T39: =T19*'Společná data'!$B$22 -> 3790500 | U39: =U19*'Společná data'!$B$22 -> 3790500 | V39: =V19*'Společná data'!$B$22 -> 3790500 | W39: =W19*'Společná data'!$B$22 -> 3790500
B41: Daňový štít při zrychlených odpisech [Kč] | C41: =C21*'Společná data'!$B$22 -> 0 | D41: =D21*'Společná data'!$B$22 -> 7885000 | E41: =E21*'Společná data'!$B$22 -> 14193000 | F41: =F21*'Společná data'!$B$22 -> 12616000 | G41: =G21*'Společná data'!$B$22 -> 11039000 | H41: =H21*'Společná data'!$B$22 -> 9462000 | I41: =I21*'Společná data'!$B$22 -> 7885000 | J41: =J21*'Společná data'!$B$22 -> 6308000 | K41: =K21*'Společná data'!$B$22 -> 4731000 | L41: =L21*'Společná data'!$B$22 -> 3154000 | M41: =M21*'Společná data'!$B$22 -> 1577000 | N41: =N21*'Společná data'!$B$22 -> 3610000 | O41: =O21*'Společná data'!$B$22 -> 6498000 | P41: =P21*'Společná data'!$B$22 -> 5776000 | Q41: =Q21*'Společná data'!$B$22 -> 5054000 | R41: =R21*'Společná data'!$B$22 -> 4332000 | S41: =S21*'Společná data'!$B$22 -> 3610000 | T41: =T21*'Společná data'!$B$22 -> 2888000 | U41: =U21*'Společná data'!$B$22 -> 2166000 | V41: =V21*'Společná data'!$B$22 -> 1444000 | W41: =W21*'Společná data'!$B$22 -> 722000
B43: Diskontované roční výdaje při lineárních odpisech [Kč] | C43: =(C27-C19-C35+C35*'Společná data'!$B$22-C39-C37)/(POWER(1+'Společná data'!$C$37,Uhlí!C2)) -> 98889636.23 | D43: =(D27-D19-D35+D35*'Společná data'!$B$22-D39-D37)/(POWER(1+'Společná data'!$C$37,Uhlí!D2)) -> 132834714.1 | E43: =(E27-E19-E35+E35*'Společná data'!$B$22-E39-E37)/(POWER(1+'Společná data'!$C$37,Uhlí!E2)) -> 119885300.7 | F43: =(F27-F19-F35+F35*'Společná data'!$B$22-F39-F37)/(POWER(1+'Společná data'!$C$37,Uhlí!F2)) -> 111284373.1 | G43: =(G27-G19-G35+G35*'Společná data'!$B$22-G39-G37)/(POWER(1+'Společná data'!$C$37,Uhlí!G2)) -> 103327700.3 | H43: =(H27-H19-H35+H35*'Společná data'!$B$22-H39-H37)/(POWER(1+'Společná data'!$C$37,Uhlí!H2)) -> 95965714.95 | I43: =(I27-I19-I35+I35*'Společná data'!$B$22-I39-I37)/(POWER(1+'Společná data'!$C$37,Uhlí!I2)) -> 89152720.26 | J43: =(J27-J19-J35+J35*'Společná data'!$B$22-J39-J37)/(POWER(1+'Společná data'!$C$37,Uhlí!J2)) -> 82846585.35 | K43: =(K27-K19-K35+K35*'Společná data'!$B$22-K39-K37)/(POWER(1+'Společná data'!$C$37,Uhlí!K2)) -> 77008465.09 | L43: =(L27-L19-L35+L35*'Společná data'!$B$22-L39-L37)/(POWER(1+'Společná data'!$C$37,Uhlí!L2)) -> 71602541.75 | M43: =(M27-M19-M35+M35*'Společná data'!$B$22-M39-M37)/(POWER(1+'Společná data'!$C$37,Uhlí!M2)) -> 74952499.5 | N43: =(N27-N19-N35+N35*'Společná data'!$B$22-N39-N37)/(POWER(1+'Společná data'!$C$37,Uhlí!N2)) -> 64619075.34 | O43: =(O27-O19-O35+O35*'Společná data'!$B$22-O39-O37)/(POWER(1+'Společná data'!$C$37,Uhlí!O2)) -> 59613233.59 | P43: =(P27-P19-P35+P35*'Společná data'!$B$22-P39-P37)/(POWER(1+'Společná data'!$C$37,Uhlí!P2)) -> 55676149.84 | Q43: =(Q27-Q19-Q35+Q35*'Společná data'!$B$22-Q39-Q37)/(POWER(1+'Společná data'!$C$37,Uhlí!Q2)) -> 52012410.78 | R43: =(R27-R19-R35+R35*'Společná data'!$B$22-R39-R37)/(POWER(1+'Společná data'!$C$37,Uhlí!R2)) -> 48602312.78 | S43: =(S27-S19-S35+S35*'Společná data'!$B$22-S39-S37)/(POWER(1+'Společná data'!$C$37,Uhlí!S2)) -> 45427609.76 | T43: =(T27-T19-T35+T35*'Společná data'!$B$22-T39-T37)/(POWER(1+'Společná data'!$C$37,Uhlí!T2)) -> 42471403.48 | U43: =(U27-U19-U35+U35*'Společná data'!$B$22-U39-U37)/(POWER(1+'Společná data'!$C$37,Uhlí!U2)) -> 39718042.32 | V43: =(V27-V19-V35+V35*'Společná data'!$B$22-V39-V37)/(POWER(1+'Společná data'!$C$37,Uhlí!V2)) -> 37153027.63 | W43: =(W27-W19-W35+W35*'Společná data'!$B$22-W39-W37)/(POWER(1+'Společná data'!$C$37,Uhlí!W2)) -> 34762927.28
B45: Diskontované roční výdaje při zrychlených odpisech [Kč] | C45: =(C29-C21-C35+C35*'Společná data'!$B$22-C41-C37)/POWER(1+'Společná data'!$C$37,C2) -> 98889636.23 | D45: =(D29-D21-D35+D35*'Společná data'!$B$22-D41-D37)/POWER(1+'Společná data'!$C$37,D2) -> 129549297.4 | E45: =(E29-E21-E35+E35*'Společná data'!$B$22-E41-E37)/POWER(1+'Společná data'!$C$37,E2) -> 114815213.2 | F45: =(F29-F21-F35+F35*'Společná data'!$B$22-F41-F37)/POWER(1+'Společná data'!$C$37,F2) -> 107841721.1 | G45: =(G29-G21-G35+G35*'Společná data'!$B$22-G41-G37)/POWER(1+'Společná data'!$C$37,G2) -> 101299201.6 | H45: =(H29-H21-H35+H35*'Společná data'!$B$22-H41-H37)/POWER(1+'Společná data'!$C$37,H2) -> 95160755.18 | I45: =(I29-I21-I35+I35*'Společná data'!$B$22-I41-I37)/POWER(1+'Společná data'!$C$37,I2) -> 89401164.63 | J45: =(J29-J21-J35+J35*'Společná data'!$B$22-J41-J37)/POWER(1+'Společná data'!$C$37,J2) -> 83996790.79 | K45: =(K29-K21-K35+K35*'Společná data'!$B$22-K41-K37)/POWER(1+'Společná data'!$C$37,K2) -> 78925474.16 | L45: =(L29-L21-L35+L35*'Společná data'!$B$22-L41-L37)/POWER(1+'Společná data'!$C$37,L2) -> 74166442.77 | M45: =(M29-M21-M35+M35*'Společná data'!$B$22-M41-M37)/POWER(1+'Společná data'!$C$37,M2) -> 78056938.06 | N45: =(N29-N21-N35+N35*'Společná data'!$B$22-N41-N37)/POWER(1+'Společná data'!$C$37,N2) -> 63922355.13 | O45: =(O29-O21-O35+O35*'Společná data'!$B$22-O41-O37)/POWER(1+'Společná data'!$C$37,O2) -> 58538048.09 | P45: =(P29-P21-P35+P35*'Společná data'!$B$22-P41-P37)/POWER(1+'Společná data'!$C$37,P2) -> 54946085.61 | Q45: =(Q29-Q21-Q35+Q35*'Společná data'!$B$22-Q41-Q37)/POWER(1+'Společná data'!$C$37,Q2) -> 51582238.25 | R45: =(R29-R21-R35+R35*'Společná data'!$B$22-R41-R37)/POWER(1+'Společná data'!$C$37,R2) -> 48431609.4 | S45: =(S29-S21-S35+S35*'Společná data'!$B$22-S41-S37)/POWER(1+'Společná data'!$C$37,S2) -> 45480295.99 | T45: =(T29-T21-T35+T35*'Společná data'!$B$22-T41-T37)/POWER(1+'Společná data'!$C$37,T2) -> 42715321.21 | U45: =(U29-U21-U35+U35*'Společná data'!$B$22-U41-U37)/POWER(1+'Společná data'!$C$37,U2) -> 40124571.87 | V45: =(V29-V21-V35+V35*'Společná data'!$B$22-V41-V37)/POWER(1+'Společná data'!$C$37,V2) -> 37696739.99 | W45: =(W29-W21-W35+W35*'Společná data'!$B$22-W41-W37)/POWER(1+'Společná data'!$C$37,W2) -> 35421268.45
B47: Diskontované roční výdaje při lineárních odpisech bez půjčky [Kč] | C47: =(C31-C19+C3-C35+C35*'Společná data'!$B$22-C39-C37)/POWER(1+'Společná data'!$C$37,Uhlí!C2) -> 513889636.2 | D47: =(D31-D19+D3-D35+D35*'Společná data'!$B$22-D39-D37)/POWER(1+'Společná data'!$C$37,Uhlí!D2) -> 85570825.2 | E47: =(E31-E19+E3-E35+E35*'Společná data'!$B$22-E39-E37)/POWER(1+'Společná data'!$C$37,Uhlí!E2) -> 76940770.49 | F47: =(F31-F19+F3-F35+F35*'Společná data'!$B$22-F39-F37)/POWER(1+'Společná data'!$C$37,Uhlí!F2) -> 72278632.08 | G47: =(G31-G19+G3-G35+G35*'Společná data'!$B$22-G39-G37)/POWER(1+'Společná data'!$C$37,Uhlí!G2) -> 67912859.41 | H47: =(H31-H19+H3-H35+H35*'Společná data'!$B$22-H39-H37)/POWER(1+'Společná data'!$C$37,Uhlí!H2) -> 63823812.31 | I47: =(I31-I19+I3-I35+I35*'Společná data'!$B$22-I39-I37)/POWER(1+'Společná data'!$C$37,Uhlí!I2) -> 59993196.2 | J47: =(J31-J19+J3-J35+J35*'Společná data'!$B$22-J39-J37)/POWER(1+'Společná data'!$C$37,Uhlí!J2) -> 56403967.62 | K47: =(K31-K19+K3-K35+K35*'Společná data'!$B$22-K39-K37)/POWER(1+'Společná data'!$C$37,Uhlí!K2) -> 53040246.43 | L47: =(L31-L19+L3-L35+L35*'Společná data'!$B$22-L39-L37)/POWER(1+'Společná data'!$C$37,Uhlí!L2) -> 49887234.33 | M47: =(M31-M19+M3-M35+M35*'Společná data'!$B$22-M39-M37)/POWER(1+'Společná data'!$C$37,Uhlí!M2) -> 143294614.3 | N47: =(N31-N19+N3-N35+N35*'Společná data'!$B$22-N39-N37)/POWER(1+'Společná data'!$C$37,Uhlí!N2) -> 54596082.92 | O47: =(O31-O19+O3-O35+O35*'Společná data'!$B$22-O39-O37)/POWER(1+'Společná data'!$C$37,Uhlí!O2) -> 50506223.76 | P47: =(P31-P19+P3-P35+P35*'Společná data'!$B$22-P39-P37)/POWER(1+'Společná data'!$C$37,Uhlí!P2) -> 47404417.33 | Q47: =(Q31-Q19+Q3-Q35+Q35*'Společná data'!$B$22-Q39-Q37)/POWER(1+'Společná data'!$C$37,Uhlí!Q2) -> 44502180.66 | R47: =(R31-R19+R3-R35+R35*'Společná data'!$B$22-R39-R37)/POWER(1+'Společná data'!$C$37,Uhlí!R2) -> 41786156.64 | S47: =(S31-S19+S3-S35+S35*'Společná data'!$B$22-S39-S37)/POWER(1+'Společná data'!$C$37,Uhlí!S2) -> 39243910.2 | T47: =(T31-T19+T3-T35+T35*'Společná data'!$B$22-T39-T37)/POWER(1+'Společná data'!$C$37,Uhlí!T2) -> 36863863.28 | U47: =(U31-U19+U3-U35+U35*'Společná data'!$B$22-U39-U37)/POWER(1+'Společná data'!$C$37,Uhlí!U2) -> 34635234.29 | V47: =(V31-V19+V3-V35+V35*'Společná data'!$B$22-V39-V37)/POWER(1+'Společná data'!$C$37,Uhlí!V2) -> 32547982.07 | W47: =(W31-W19+W3-W35+W35*'Společná data'!$B$22-W39-W37)/POWER(1+'Společná data'!$C$37,Uhlí!W2) -> 30592753.77
B49: Diskontované roční výdaje při zrychlených odpisech bez půjčky [Kč] | C49: =(C33-C21+C3-C35+C35*'Společná data'!$B$22-C41-C37)/POWER(1+'Společná data'!$C$37,Uhlí!C2) -> 513889636.2 | D49: =(D33-D21+D3-D35+D35*'Společná data'!$B$22-D41-D37)/POWER(1+'Společná data'!$C$37,Uhlí!D2) -> 82285408.53 | E49: =(E33-E21+E3-E35+E35*'Společná data'!$B$22-E41-E37)/POWER(1+'Společná data'!$C$37,Uhlí!E2) -> 71870683.05 | F49: =(F33-F21+F3-F35+F35*'Společná data'!$B$22-F41-F37)/POWER(1+'Společná data'!$C$37,Uhlí!F2) -> 68835980.11 | G49: =(G33-G21+G3-G35+G35*'Společná data'!$B$22-G41-G37)/POWER(1+'Společná data'!$C$37,Uhlí!G2) -> 65884360.78 | H49: =(H33-H21+H3-H35+H35*'Společná data'!$B$22-H41-H37)/POWER(1+'Společná data'!$C$37,Uhlí!H2) -> 63018852.53 | I49: =(I33-I21+I3-I35+I35*'Společná data'!$B$22-I41-I37)/POWER(1+'Společná data'!$C$37,Uhlí!I2) -> 60241640.57 | J49: =(J33-J21+J3-J35+J35*'Společná data'!$B$22-J41-J37)/POWER(1+'Společná data'!$C$37,Uhlí!J2) -> 57554173.06 | K49: =(K33-K21+K3-K35+K35*'Společná data'!$B$22-K41-K37)/POWER(1+'Společná data'!$C$37,Uhlí!K2) -> 54957255.5 | L49: =(L33-L21+L3-L35+L35*'Společná data'!$B$22-L41-L37)/POWER(1+'Společná data'!$C$37,Uhlí!L2) -> 52451135.35 | M49: =(M33-M21+M3-M35+M35*'Společná data'!$B$22-M41-M37)/POWER(1+'Společná data'!$C$37,Uhlí!M2) -> 146399052.9 | N49: =(N33-N21+N3-N35+N35*'Společná data'!$B$22-N41-N37)/POWER(1+'Společná data'!$C$37,Uhlí!N2) -> 53899362.71 | O49: =(O33-O21+O3-O35+O35*'Společná data'!$B$22-O41-O37)/POWER(1+'Společná data'!$C$37,Uhlí!O2) -> 49431038.26 | P49: =(P33-P21+P3-P35+P35*'Společná data'!$B$22-P41-P37)/POWER(1+'Společná data'!$C$37,Uhlí!P2) -> 46674353.1 | Q49: =(Q33-Q21+Q3-Q35+Q35*'Společná data'!$B$22-Q41-Q37)/POWER(1+'Společná data'!$C$37,Uhlí!Q2) -> 44072008.14 | R49: =(R33-R21+R3-R35+R35*'Společná data'!$B$22-R41-R37)/POWER(1+'Společná data'!$C$37,Uhlí!R2) -> 41615453.25 | S49: =(S33-S21+S3-S35+S35*'Společná data'!$B$22-S41-S37)/POWER(1+'Společná data'!$C$37,Uhlí!S2) -> 39296596.43 | T49: =(T33-T21+T3-T35+T35*'Společná data'!$B$22-T41-T37)/POWER(1+'Společná data'!$C$37,Uhlí!T2) -> 37107781 | U49: =(U33-U21+U3-U35+U35*'Společná data'!$B$22-U41-U37)/POWER(1+'Společná data'!$C$37,Uhlí!U2) -> 35041763.84 | V49: =(V33-V21+V3-V35+V35*'Společná data'!$B$22-V41-V37)/POWER(1+'Společná data'!$C$37,Uhlí!V2) -> 33091694.43 | W49: =(W33-W21+W3-W35+W35*'Společná data'!$B$22-W41-W37)/POWER(1+'Společná data'!$C$37,Uhlí!W2) -> 31251094.94
B51: Výsledky
B52: S půjčkou
B53: Bilance při lineárních odpisech [Kč] | C53: =SUM(C43:W43) -> 1537806444
B55: Bilance při zrychlených odpisech [Kč] | C55: =SUM(C45:W45) -> 1530961169
B56: Bez půjčky
B57: Bilance při lineárních odpisech bez půjčky [Kč] | C57: =SUM(C47:W47) -> 1655714600
B59: Bilance při zrychlených odpisech bez půjčky [Kč] | C59: =SUM(C49:W49) -> 1648869325

Sheet Plyn
C2: 0 | D2: 1 | E2: 2 | F2: 3 | G2: 4 | H2: 5 | I2: 6 | J2: 7 | K2: 8 | L2: 9 | M2: 10 | N2: 11 | O2: 12 | P2: 13 | Q2: 14 | R2: 15 | S2: 16 | T2: 17 | U2: 18 | V2: 19 | W2: 20
B3: Investice [Kč] | C3: 600000000 | D3: 0 | E3: 0 | F3: 0 | G3: 0 | H3: 0 | I3: 0 | J3: 0 | K3: 0 | L3: 0 | M3: 0 | N3: 0 | O3: 0 | P3: 0 | Q3: 0 | R3: 0 | S3: 0 | T3: 0 | U3: 0 | V3: 0 | W3: 0
B5: Cena plynu [Kč/m3] | C5: ='Společná data'!$B$17 -> 7.6 | D5: ='Společná data'!$B$17 -> 7.6 | E5: ='Společná data'!$B$17 -> 7.6 | F5: ='Společná data'!$B$17 -> 7.6 | G5: ='Společná data'!$B$17 -> 7.6 | H5: ='Společná data'!$B$17 -> 7.6 | I5: ='Společná data'!$B$17 -> 7.6 | J5: ='Společná data'!$B$17 -> 7.6 | K5: ='Společná data'!$B$17 -> 7.6 | L5: ='Společná data'!$B$17 -> 7.6 | M5: =C5+3.372 -> 10.972 | N5: =D5+3.372 -> 10.972 | O5: 10.972 | P5: 10.972 | Q5: 10.972 | R5: 10.972 | S5: 10.972 | T5: 10.972 | U5: 10.972 | V5: 10.972 | W5: =M5 -> 10.972
B6: Množství spáleného plynu [m3] | C6: ='Společná data'!$B$3/('Společná data'!$B$16*'Společná data'!$B$15) -> 23312736.32 | D6: ='Společná data'!$B$3/('Společná data'!$B$16*'Společná data'!$B$15) -> 23312736.32 | E6: ='Společná data'!$B$3/('Společná data'!$B$16*'Společná data'!$B$15) -> 23312736.32 | F6: ='Společná data'!$B$3/('Společná data'!$B$16*'Společná data'!$B$15) -> 23312736.32 | G6: ='Společná data'!$B$3/('Společná data'!$B$16*'Společná data'!$B$15) -> 23312736.32 | H6: ='Společná data'!$B$3/('Společná data'!$B$16*'Společná data'!$B$15) -> 23312736.32 | I6: ='Společná data'!$B$3/('Společná data'!$B$16*'Společná data'!$B$15) -> 23312736.32 | J6: ='Společná data'!$B$3/('Společná data'!$B$16*'Společná data'!$B$15) -> 23312736.32 | K6: ='Společná data'!$B$3/('Společná data'!$B$16*'Společná data'!$B$15) -> 23312736.32 | L6: ='Společná data'!$B$3/('Společná data'!$B$16*'Společná data'!$B$15) -> 23312736.32 | M6: ='Společná data'!$B$3/('Společná data'!$B$16*'Společná data'!$B$15) -> 23312736.32 | N6: ='Společná data'!$B$3/('Společná data'!$B$16*'Společná data'!$B$15) -> 23312736.32 | O6: ='Společná data'!$B$3/('Společná data'!$B$16*'Společná data'!$B$15) -> 23312736.32 | P6: ='Společná data'!$B$3/('Společná data'!$B$16*'Společná data'!$B$15) -> 23312736.32 | Q6: ='Společná data'!$B$3/('Společná data'!$B$16*'Společná data'!$B$15) -> 23312736.32 | R6: ='Společná data'!$B$3/('Společná data'!$B$16*'Společná data'!$B$15) -> 23312736.32 | S6: ='Společná data'!$B$3/('Společná data'!$B$16*'Společná data'!$B$15) -> 23312736.32 | T6: ='Společná data'!$B$3/('Společná data'!$B$16*'Společná data'!$B$15) -> 23312736.32 | U6: ='Společná data'!$B$3/('Společná data'!$B$16*'Společná data'!$B$15) -> 23312736.32 | V6: ='Společná data'!$B$3/('Společná data'!$B$16*'Společná data'!$B$15) -> 23312736.32 | W6: ='Společná data'!$B$3/('Společná data'!$B$16*'Společná data'!$B$15) -> 23312736.32
B7: Cena odebraného plynu [Kč] | C7: =C6*C5 -> 177176796 | D7: =D6*D5 -> 177176796 | E7: 177176796 | F7: 177176796 | G7: 177176796 | H7: 177176796 | I7: 177176796 | J7: 177176796 | K7: 177176796 | L7: 177176796 | M7: 255787342.9 | N7: 255787342.9 | O7: 255787342.9 | P7: 255787342.9 | Q7: 255787342.9 | R7: 255787342.9 | S7: 255787342.9 | T7: 255787342.9 | U7: 255787342.9 | V7: 255787342.9 | W7: 255787342.9
B9: Cena použitých emisních povolenek [Kč] | C9: ='Společná data'!$B$3*'Společná data'!$B$18*HLOOKUP(Plyn!C2,'Společná data'!$B$44:$V$46,3,0) -> 29106521.1 | D9: ='Společná data'!$B$3*'Společná data'!$B$18*HLOOKUP(Plyn!D2,'Společná data'!$B$44:$V$46,3,0) -> 26777999.42 | E9: ='Společná data'!$B$3*'Společná data'!$B$18*HLOOKUP(Plyn!E2,'Společná data'!$B$44:$V$46,3,0) -> 27554561.4 | F9: ='Společná data'!$B$3*'Společná data'!$B$18*HLOOKUP(Plyn!F2,'Společná data'!$B$44:$V$46,3,0) -> 28353643.68 | G9: ='Společná data'!$B$3*'Společná data'!$B$18*HLOOKUP(Plyn!G2,'Společná data'!$B$44:$V$46,3,0) -> 29175899.35 | H9: ='Společná data'!$B$3*'Společná data'!$B$18*HLOOKUP(Plyn!H2,'Společná data'!$B$44:$V$46,3,0) -> 30022000.43 | I9: ='Společná data'!$B$3*'Společná data'!$B$18*HLOOKUP(Plyn!I2,'Společná data'!$B$44:$V$46,3,0) -> 30892638.44 | J9: ='Společná data'!$B$3*'Společná data'!$B$18*HLOOKUP(Plyn!J2,'Společná data'!$B$44:$V$46,3,0) -> 31788524.95 | K9: ='Společná data'!$B$3*'Společná data'!$B$18*HLOOKUP(Plyn!K2,'Společná data'!$B$44:$V$46,3,0) -> 32710392.18 | L9: ='Společná data'!$B$3*'Společná data'!$B$18*HLOOKUP(Plyn!L2,'Společná data'!$B$44:$V$46,3,0) -> 33658993.55 | M9: ='Společná data'!$B$3*'Společná data'!$B$18*HLOOKUP(Plyn!M2,'Společná data'!$B$44:$V$46,3,0) -> 34635104.36 | N9: ='Společná data'!$B$3*'Společná data'!$B$18*HLOOKUP(Plyn!N2,'Společná data'!$B$44:$V$46,3,0) -> 35639522.39 | O9: ='Společná data'!$B$3*'Společná data'!$B$18*HLOOKUP(Plyn!O2,'Společná data'!$B$44:$V$46,3,0) -> 36673068.54 | P9: ='Společná data'!$B$3*'Společná data'!$B$18*HLOOKUP(Plyn!P2,'Společná data'!$B$44:$V$46,3,0) -> 37736587.53 | Q9: ='Společná data'!$B$3*'Společná data'!$B$18*HLOOKUP(Plyn!Q2,'Společná data'!$B$44:$V$46,3,0) -> 38830948.57 | R9: ='Společná data'!$B$3*'Společná data'!$B$18*HLOOKUP(Plyn!R2,'Společná data'!$B$44:$V$46,3,0) -> 39957046.07 | S9: ='Společná data'!$B$3*'Společná data'!$B$18*HLOOKUP(Plyn!S2,'Společná data'!$B$44:$V$46,3,0) -> 41115800.41 | T9: ='Společná data'!$B$3*'Společná data'!$B$18*HLOOKUP(Plyn!T2,'Společná data'!$B$44:$V$46,3,0) -> 42308158.62 | U9: ='Společná data'!$B$3*'Společná data'!$B$18*HLOOKUP(Plyn!U2,'Společná data'!$B$44:$V$46,3,0) -> 43535095.22 | V9: ='Společná data'!$B$3*'Společná data'!$B$18*HLOOKUP(Plyn!V2,'Společná data'!$B$44:$V$46,3,0) -> 44797612.98 | W9: ='Společná data'!$B$3*'Společná data'!$B$18*HLOOKUP(Plyn!W2,'Společná data'!$B$44:$V$46,3,0) -> 46096743.76
B11: Údržba [Kč] | C11: =1000000 -> 1000000 | D11: =C11*(1+'Společná data'!$C$47) -> 1029000 | E11: =D11*(1+'Společná data'!$C$47) -> 1058841 | F11: =E11*(1+'Společná data'!$C$47) -> 1089547.389 | G11: =F11*(1+'Společná data'!$C$47) -> 1121144.263 | H11: =G11*(1+'Společná data'!$C$47) -> 1153657.447 | I11: =H11*(1+'Společná data'!$C$47) -> 1187113.513 | J11: =I11*(1+'Společná data'!$C$47) -> 1221539.805 | K11: =J11*(1+'Společná data'!$C$47) -> 1256964.459 | L11: =K11*(1+'Společná data'!$C$47) -> 1293416.428 | M11: =L11*(1+'Společná data'!$C$47) -> 1330925.505 | N11: =M11*(1+'Společná data'!$C$47) -> 1369522.344 | O11: =N11*(1+'Společná data'!$C$47) -> 1409238.492 | P11: =O11*(1+'Společná data'!$C$47) -> 1450106.409 | Q11: =P11*(1+'Společná data'!$C$47) -> 1492159.495 | R11: =Q11*(1+'Společná data'!$C$47) -> 1535432.12 | S11: =R11*(1+'Společná data'!$C$47) -> 1579959.651 | T11: =S11*(1+'Společná data'!$C$47) -> 1625778.481 | U11: =T11*(1+'Společná data'!$C$47) -> 1672926.057 | V11: =U11*(1+'Společná data'!$C$47) -> 1721440.913 | W11: =V11*(1+'Společná data'!$C$47) -> 1771362.699
B13: Výše lineárního odpisu [Kč] | C13: 0 | D13: =IF(D2=1,0.055,0.105)*$C$3 -> 33000000 | E13: 63000000 | F13: 63000000 | G13: 63000000 | H13: 63000000 | I13: 63000000 | J13: 63000000 | K13: 63000000 | L13: 63000000 | M13: 63000000 | N13: =IF(N2=11,0.055,0.105)*$M$3 -> 0 | O13: 0 | P13: 0 | Q13: 0 | R13: 0 | S13: 0 | T13: 0 | U13: 0 | V13: 0 | W13: 0
B15: Výše zrychleného odpisu [Kč] | C15: 0 | D15: =IF(D2=1,$C$3/10,(($C$3-(SUM($C$15:C15)))*2)/('Společná data'!$B$19+1-C2)) -> 60000000 | E15: =IF(E2=1,$C$3/10,(($C$3-(SUM($C$15:D15)))*2)/('Společná data'!$B$19+1-D2)) -> 108000000 | F15: =IF(F2=1,$C$3/10,(($C$3-(SUM($C$15:E15)))*2)/('Společná data'!$B$19+1-E2)) -> 96000000 | G15: =IF(G2=1,$C$3/10,(($C$3-(SUM($C$15:F15)))*2)/('Společná data'!$B$19+1-F2)) -> 84000000 | H15: =IF(H2=1,$C$3/10,(($C$3-(SUM($C$15:G15)))*2)/('Společná data'!$B$19+1-G2)) -> 72000000 | I15: =IF(I2=1,$C$3/10,(($C$3-(SUM($C$15:H15)))*2)/('Společná data'!$B$19+1-H2)) -> 60000000 | J15: =IF(J2=1,$C$3/10,(($C$3-(SUM($C$15:I15)))*2)/('Společná data'!$B$19+1-I2)) -> 48000000 | K15: =IF(K2=1,$C$3/10,(($C$3-(SUM($C$15:J15)))*2)/('Společná data'!$B$19+1-J2)) -> 36000000 | L15: =IF(L2=1,$C$3/10,(($C$3-(SUM($C$15:K15)))*2)/('Společná data'!$B$19+1-K2)) -> 24000000 | M15: =IF(M2=1,$C$3/10,(($C$3-(SUM($C$15:L15)))*2)/('Společná data'!$B$19+1-L2)) -> 12000000 | N15: =IF(N2=11,$M$3/10,(($M$3-(SUM($N$15:N15)))*2)/('Společná data'!$B$19+1-C2)) -> 0 | O15: =IF(O2=11,$M$3/10,(($M$3-(SUM($N$15:N15)))*2)/('Společná data'!$B$19+1-D2)) -> 0 | P15: =IF(P2=11,$M$3/10,(($M$3-(SUM($N$15:O15)))*2)/('Společná data'!$B$19+1-E2)) -> 0 | Q15: =IF(Q2=11,$M$3/10,(($M$3-(SUM($N$15:P15)))*2)/('Společná data'!$B$19+1-F2)) -> 0 | R15: =IF(R2=11,$M$3/10,(($M$3-(SUM($N$15:Q15)))*2)/('Společná data'!$B$19+1-G2)) -> 0 | S15: =IF(S2=11,$M$3/10,(($M$3-(SUM($N$15:R15)))*2)/('Společná data'!$B$19+1-H2)) -> 0 | T15: =IF(T2=11,$M$3/10,(($M$3-(SUM($N$15:S15)))*2)/('Společná data'!$B$19+1-I2)) -> 0 | U15: =IF(U2=11,$M$3/10,(($M$3-(SUM($N$15:T15)))*2)/('Společná data'!$B$19+1-J2)) -> 0 | V15: =IF(V2=11,$M$3/10,(($M$3-(SUM($N$15:U15)))*2)/('Společná data'!$B$19+1-K2)) -> 0 | W15: =IF(W2=11,$M$3/10,(($M$3-(SUM($N$15:V15)))*2)/('Společná data'!$B$19+1-L2)) -> 0
B17: Úmor [Kč] | C17: 0 | D17: =$C$3/'Společná data'!$B$21 -> 60000000 | E17: =$C$3/'Společná data'!$B$21 -> 60000000 | F17: =$C$3/'Společná data'!$B$21 -> 60000000 | G17: =$C$3/'Společná data'!$B$21 -> 60000000 | H17: =$C$3/'Společná data'!$B$21 -> 60000000 | I17: =$C$3/'Společná data'!$B$21 -> 60000000 | J17: =$C$3/'Společná data'!$B$21 -> 60000000 | K17: =$C$3/'Společná data'!$B$21 -> 60000000 | L17: =$C$3/'Společná data'!$B$21 -> 60000000 | M17: =$C$3/'Společná data'!$B$21 -> 60000000 | N17: =$M$3/'Společná data'!$B$21 -> 0 | O17: =$M$3/'Společná data'!$B$21 -> 0 | P17: =$M$3/'Společná data'!$B$21 -> 0 | Q17: =$M$3/'Společná data'!$B$21 -> 0 | R17: =$M$3/'Společná data'!$B$21 -> 0 | S17: =$M$3/'Společná data'!$B$21 -> 0 | T17: =$M$3/'Společná data'!$B$21 -> 0 | U17: =$M$3/'Společná data'!$B$21 -> 0 | V17: =$M$3/'Společná data'!$B$21 -> 0 | W17: =$M$3/'Společná data'!$B$21 -> 0
B19: Úrok [Kč] | C19: 0 | D19: =($C$3-SUM($C$17:C17))*'Společná data'!$B$20 -> 13800000 | E19: =($C$3-SUM($C$17:D17))*'Společná data'!$B$20 -> 12420000 | F19: =($C$3-SUM($C$17:E17))*'Společná data'!$B$20 -> 11040000 | G19: =($C$3-SUM($C$17:F17))*'Společná data'!$B$20 -> 9660000 | H19: =($C$3-SUM($C$17:G17))*'Společná data'!$B$20 -> 8280000 | I19: =($C$3-SUM($C$17:H17))*'Společná data'!$B$20 -> 6900000 | J19: =($C$3-SUM($C$17:I17))*'Společná data'!$B$20 -> 5520000 | K19: =($C$3-SUM($C$17:J17))*'Společná data'!$B$20 -> 4140000 | L19: =($C$3-SUM($C$17:K17))*'Společná data'!$B$20 -> 2760000 | M19: =($C$3-SUM($C$17:L17))*'Společná data'!$B$20 -> 1380000 | N19: =($M$3)*'Společná data'!$B$20 -> 0 | O19: =($M$3-SUM($N$17:N17))*'Společná data'!$B$20 -> 0 | P19: =($M$3-SUM($N$17:O17))*'Společná data'!$B$20 -> 0 | Q19: =($M$3-SUM($N$17:P17))*'Společná data'!$B$20 -> 0 | R19: =($M$3-SUM($N$17:Q17))*'Společná data'!$B$20 -> 0 | S19: =($M$3-SUM($N$17:R17))*'Společná data'!$B$20 -> 0 | T19: =($M$3-SUM($N$17:S17))*'Společná data'!$B$20 -> 0 | U19: =($M$3-SUM($N$17:T17))*'Společná data'!$B$20 -> 0 | V19: =($M$3-SUM($N$17:U17))*'Společná data'!$B$20 -> 0 | W19: =($M$3-SUM($N$17:V17))*'Společná data'!$B$20 -> 0
B21: Náklady při lineárních odpisech [Kč] | C21: =SUM(C7,C9,C11,C13,C17,C19) -> 207283317.1 | D21: =SUM(D7,D9,D11,D13,D17,D19) -> 311783795.4 | E21: =SUM(E7,E9,E11,E13,E17,E19) -> 341210198.4 | F21: 340659987.1 | G21: 340133839.6 | H21: 339632453.9 | I21: 339156548 | J21: 338706860.8 | K21: 338284152.7 | L21: 337889206 | M21: 416133372.8 | N21: 292796387.6 | O21: 293869649.9 | P21: 294974036.8 | Q21: 296110451 | R21: 297279821.1 | S21: 298483103 | T21: 299721280 | U21: 300995364.2 | V21: 302306396.8 | W21: 303655449.4
B23: Náklady při zrychlených odpisech [Kč] | C23: =SUM(C7,C9,C11,C15,C17,C19) -> 207283317.1 | D23: =SUM(D7,D9,D11,D15,D17,D19) -> 338783795.4 | E23: 386210198.4 | F23: 373659987.1 | G23: 361133839.6 | H23: 348632453.9 | I23: 336156548 | J23: 323706860.8 | K23: 311284152.7 | L23: 298889206 | M23: 365133372.8 | N23: 292796387.6 | O23: 293869649.9 | P23: 294974036.8 | Q23: 296110451 | R23: 297279821.1 | S23: 298483103 | T23: 299721280 | U23: 300995364.2 | V23: 302306396.8 | W23: 303655449.4
B25: Náklady při lineárních odpisech bez půjčky [Kč] | C25: =C21-C19-C17 -> 207283317.1 | D25: =D21-D19-D17 -> 237983795.4 | E25: 268790198.4 | F25: 269619987.1 | G25: 270473839.6 | H25: 271352453.9 | I25: 272256548 | J25: 273186860.8 | K25: 274144152.7 | L25: 275129206 | M25: 354753372.8 | N25: 292796387.6 | O25: 293869649.9 | P25: 294974036.8 | Q25: 296110451 | R25: 297279821.1 | S25: 298483103 | T25: 299721280 | U25: 300995364.2 | V25: 302306396.8 | W25: 303655449.4
B27: Náklady při zrychlených odpisech bez půjčky [Kč] | C27: =C23-C19-C17 -> 207283317.1 | D27: =D23-D19-D17 -> 264983795.4 | E27: 313790198.4 | F27: 302619987.1 | G27: 291473839.6 | H27: 280352453.9 | I27: 269256548 | J27: 258186860.8 | K27: 247144152.7 | L27: 236129206 | M27: 303753372.8 | N27: 292796387.6 | O27: 293869649.9 | P27: 294974036.8 | Q27: 296110451 | R27: 297279821.1 | S27: 298483103 | T27: 299721280 | U27: 300995364.2 | V27: 302306396.8 | W27: 303655449.4
B29: Daňový štít při lineárních odpisech [Kč] | C29: =C13*'Společná data'!$B$22 -> 0 | D29: =D13*'Společná data'!$B$22 -> 6270000 | E29: =E13*'Společná data'!$B$22 -> 11970000 | F29: =F13*'Společná data'!$B$22 -> 11970000 | G29: =G13*'Společná data'!$B$22 -> 11970000 | H29: =H13*'Společná data'!$B$22 -> 11970000 | I29: =I13*'Společná data'!$B$22 -> 11970000 | J29: =J13*'Společná data'!$B$22 -> 11970000 | K29: =K13*'Společná data'!$B$22 -> 11970000 | L29: =L13*'Společná data'!$B$22 -> 11970000 | M29: =M13*'Společná data'!$B$22 -> 11970000 | N29: =N13*'Společná data'!$B$22 -> 0 | O29: =O13*'Společná data'!$B$22 -> 0 | P29: =P13*'Společná data'!$B$22 -> 0 | Q29: =Q13*'Společná data'!$B$22 -> 0 | R29: =R13*'Společná data'!$B$22 -> 0 | S29: =S13*'Společná data'!$B$22 -> 0 | T29: =T13*'Společná data'!$B$22 -> 0 | U29: =U13*'Společná data'!$B$22 -> 0 | V29: =V13*'Společná data'!$B$22 -> 0 | W29: =W13*'Společná data'!$B$22 -> 0
B31: Daňový štít při zrychlených odpisech [Kč] | C31: =C15*'Společná data'!$B$22 -> 0 | D31: =D15*'Společná data'!$B$22 -> 11400000 | E31: =E15*'Společná data'!$B$22 -> 20520000 | F31: =F15*'Společná data'!$B$22 -> 18240000 | G31: =G15*'Společná data'!$B$22 -> 15960000 | H31: =H15*'Společná data'!$B$22 -> 13680000 | I31: =I15*'Společná data'!$B$22 -> 11400000 | J31: =J15*'Společná data'!$B$22 -> 9120000 | K31: =K15*'Společná data'!$B$22 -> 6840000 | L31: =L15*'Společná data'!$B$22 -> 4560000 | M31: =M15*'Společná data'!$B$22 -> 2280000 | N31: =N15*'Společná data'!$B$22 -> 0 | O31: =O15*'Společná data'!$B$22 -> 0 | P31: =P15*'Společná data'!$B$22 -> 0 | Q31: =Q15*'Společná data'!$B$22 -> 0 | R31: =R15*'Společná data'!$B$22 -> 0 | S31: =S15*'Společná data'!$B$22 -> 0 | T31: =T15*'Společná data'!$B$22 -> 0 | U31: =U15*'Společná data'!$B$22 -> 0 | V31: =V15*'Společná data'!$B$22 -> 0 | W31: =W15*'Společná data'!$B$22 -> 0
B33: Diskontované roční výdaje při lineárním odpisování s půjčkou [Kč] | C33: =(C21-C13-C29)/(POWER(1+'Společná data'!$C$37,Plyn!C2)) -> 207283317.1 | D33: =(D21-D13-D29)/(POWER(1+'Společná data'!$C$37,Plyn!D2)) -> 252327588.4 | E33: =(E21-E13-E29)/(POWER(1+'Společná data'!$C$37,Plyn!E2)) -> 228258057.6 | F33: =(F21-F13-F29)/(POWER(1+'Společná data'!$C$37,Plyn!F2)) -> 210913277.9 | G33: =(G21-G13-G29)/(POWER(1+'Společná data'!$C$37,Plyn!G2)) -> 194903338 | H33: =(H21-H13-H29)/(POWER(1+'Společná data'!$C$37,Plyn!H2)) -> 180124819 | I33: =(I21-I13-I29)/(POWER(1+'Společná data'!$C$37,Plyn!I2)) -> 166482338.4 | J33: =(J21-J13-J29)/(POWER(1+'Společná data'!$C$37,Plyn!J2)) -> 153887925.1 | K33: =(K21-K13-K29)/(POWER(1+'Společná data'!$C$37,Plyn!K2)) -> 142260443.5 | L33: =(L21-L13-L29)/(POWER(1+'Společná data'!$C$37,Plyn!L2)) -> 131525061.2 | M33: =(M21-M13-M29)/(POWER(1+'Společná data'!$C$37,Plyn!M2)) -> 158024652.6 | N33: =(N21-N13-N29)/(POWER(1+'Společná data'!$C$37,Plyn!N2)) -> 125575351.9 | O33: =(O21-O13-O29)/(POWER(1+'Společná data'!$C$37,Plyn!O2)) -> 116699681.2 | P33: =(P21-P13-P29)/(POWER(1+'Společná data'!$C$37,Plyn!P2)) -> 108461341.2 | Q33: =(Q21-Q13-Q29)/(POWER(1+'Společná data'!$C$37,Plyn!Q2)) -> 100814072.5 | R33: =(R21-R13-R29)/(POWER(1+'Společná data'!$C$37,Plyn!R2)) -> 93714997.65 | S33: =(S21-S13-S29)/(POWER(1+'Společná data'!$C$37,Plyn!S2)) -> 87124372.48 | T33: =(T21-T13-T29)/(POWER(1+'Společná data'!$C$37,Plyn!T2)) -> 81005356.07 | U33: =(U21-U13-U29)/(POWER(1+'Společná data'!$C$37,Plyn!U2)) -> 75323797.65 | V33: =(V21-V13-V29)/(POWER(1+'Společná data'!$C$37,Plyn!V2)) -> 70048039.16 | W33: =(W21-W13-W29)/(POWER(1+'Společná data'!$C$37,Plyn!W2)) -> 65148732.33
B35: Diskontované roční výdaje při zrychleném odpisování s půjčkou [Kč] | C35: =(C23-C15-C31)/(POWER(1+'Společná data'!$C$37,Plyn!C2)) -> 207283317.1 | D35: =(D23-D15-D31)/(POWER(1+'Společná data'!$C$37,Plyn!D2)) -> 247577588.4 | E35: =(E23-E15-E31)/(POWER(1+'Společná data'!$C$37,Plyn!E2)) -> 220927810.7 | F35: =(F23-F15-F31)/(POWER(1+'Společná data'!$C$37,Plyn!F2)) -> 205935949.7 | G35: =(G23-G15-G31)/(POWER(1+'Společná data'!$C$37,Plyn!G2)) -> 191970568.9 | H35: =(H23-H15-H31)/(POWER(1+'Společná data'!$C$37,Plyn!H2)) -> 178961021.7 | I35: =(I23-I15-I31)/(POWER(1+'Společná data'!$C$37,Plyn!I2)) -> 166841535.1 | J35: =(J23-J15-J31)/(POWER(1+'Společná data'!$C$37,Plyn!J2)) -> 155550872.8 | K35: =(K23-K15-K31)/(POWER(1+'Společná data'!$C$37,Plyn!K2)) -> 145032022.9 | L35: =(L23-L15-L31)/(POWER(1+'Společná data'!$C$37,Plyn!L2)) -> 135231906.1 | M35: =(M23-M15-M31)/(POWER(1+'Společná data'!$C$37,Plyn!M2)) -> 162512997.5 | N35: =(N23-N15-N31)/(POWER(1+'Společná data'!$C$37,Plyn!N2)) -> 125575351.9 | O35: =(O23-O15-O31)/(POWER(1+'Společná data'!$C$37,Plyn!O2)) -> 116699681.2 | P35: =(P23-P15-P31)/(POWER(1+'Společná data'!$C$37,Plyn!P2)) -> 108461341.2 | Q35: =(Q23-Q15-Q31)/(POWER(1+'Společná data'!$C$37,Plyn!Q2)) -> 100814072.5 | R35: =(R23-R15-R31)/(POWER(1+'Společná data'!$C$37,Plyn!R2)) -> 93714997.65 | S35: =(S23-S15-S31)/(POWER(1+'Společná data'!$C$37,Plyn!S2)) -> 87124372.48 | T35: =(T23-T15-T31)/(POWER(1+'Společná data'!$C$37,Plyn!T2)) -> 81005356.07 | U35: =(U23-U15-U31)/(POWER(1+'Společná data'!$C$37,Plyn!U2)) -> 75323797.65 | V35: =(V23-V15-V31)/(POWER(1+'Společná data'!$C$37,Plyn!V2)) -> 70048039.16 | W35: =(W23-W15-W31)/(POWER(1+'Společná data'!$C$37,Plyn!W2)) -> 65148732.33
B37: Diskontované roční výdaje při lineárním odpisování bez půjčky [Kč] | C37: =(C25-C13+C3-C29)/POWER(1+'Společná data'!$C$37,Plyn!C2) -> 807283317.1 | D37: =(D25-D13+D3-D29)/POWER(1+'Společná data'!$C$37,Plyn!D2) -> 183994255 | E37: =(E25-E13+E3-E29)/POWER(1+'Společná data'!$C$37,Plyn!E2) -> 166169580.3 | F37: =(F25-F13+F3-F29)/POWER(1+'Společná data'!$C$37,Plyn!F2) -> 154519435.5 | G37: =(G25-G13+G3-G29)/POWER(1+'Společná data'!$C$37,Plyn!G2) -> 143701158.5 | H37: =(H25-H13+H3-H29)/POWER(1+'Společná data'!$C$37,Plyn!H2) -> 133654598.3 | I37: =(I25-I13+I3-I29)/POWER(1+'Společná data'!$C$37,Plyn!I2) -> 124323990.3 | J37: =(J25-J13+J3-J29)/POWER(1+'Společná data'!$C$37,Plyn!J2) -> 115657634.4 | K37: =(K25-K13+K3-K29)/POWER(1+'Společná data'!$C$37,Plyn!K2) -> 107607597.3 | L37: =(L25-L13+L3-L29)/POWER(1+'Společná data'!$C$37,Plyn!L2) -> 100129436.1 | M37: =(M25-M13+M3-M29)/POWER(1+'Společná data'!$C$37,Plyn!M2) -> 129593836.3 | N37: =(N25-N13+N3-N29)/POWER(1+'Společná data'!$C$37,Plyn!N2) -> 125575351.9 | O37: =(O25-O13+O3-O29)/POWER(1+'Společná data'!$C$37,Plyn!O2) -> 116699681.2 | P37: =(P25-P13+P3-P29)/POWER(1+'Společná data'!$C$37,Plyn!P2) -> 108461341.2 | Q37: =(Q25-Q13+Q3-Q29)/POWER(1+'Společná data'!$C$37,Plyn!Q2) -> 100814072.5 | R37: =(R25-R13+R3-R29)/POWER(1+'Společná data'!$C$37,Plyn!R2) -> 93714997.65 | S37: =(S25-S13+S3-S29)/POWER(1+'Společná data'!$C$37,Plyn!S2) -> 87124372.48 | T37: =(T25-T13+T3-T29)/POWER(1+'Společná data'!$C$37,Plyn!T2) -> 81005356.07 | U37: =(U25-U13+U3-U29)/POWER(1+'Společná data'!$C$37,Plyn!U2) -> 75323797.65 | V37: =(V25-V13+V3-V29)/POWER(1+'Společná data'!$C$37,Plyn!V2) -> 70048039.16 | W37: =(W25-W13+W3-W29)/POWER(1+'Společná data'!$C$37,Plyn!W2) -> 65148732.33
B39: Diskontované roční výdaje bez půjčky [Kč] | C39: =(C27-C15+C3-C31)/POWER(1+'Společná data'!$C$37,Plyn!C2) -> 807283317.1 | D39: =(D27-D15+D3-D31)/POWER(1+'Společná data'!$C$37,Plyn!D2) -> 179244255 | E39: =(E27-E15+E3-E31)/POWER(1+'Společná data'!$C$37,Plyn!E2) -> 158839333.4 | F39: =(F27-F15+F3-F31)/POWER(1+'Společná data'!$C$37,Plyn!F2) -> 149542107.3 | G39: =(G27-G15+G3-G31)/POWER(1+'Společná data'!$C$37,Plyn!G2) -> 140768389.4 | H39: =(H27-H15+H3-H31)/POWER(1+'Společná data'!$C$37,Plyn!H2) -> 132490801 | I39: =(I27-I15+I3-I31)/POWER(1+'Společná data'!$C$37,Plyn!I2) -> 124683187 | J39: =(J27-J15+J3-J31)/POWER(1+'Společná data'!$C$37,Plyn!J2) -> 117320582.1 | K39: =(K27-K15+K3-K31)/POWER(1+'Společná data'!$C$37,Plyn!K2) -> 110379176.7 | L39: =(L27-L15+L3-L31)/POWER(1+'Společná data'!$C$37,Plyn!L2) -> 103836280.9 | M39: =(M27-M15+M3-M31)/POWER(1+'Společná data'!$C$37,Plyn!M2) -> 134082181.2 | N39: =(N27-N15+N3-N31)/POWER(1+'Společná data'!$C$37,Plyn!N2) -> 125575351.9 | O39: =(O27-O15+O3-O31)/POWER(1+'Společná data'!$C$37,Plyn!O2) -> 116699681.2 | P39: =(P27-P15+P3-P31)/POWER(1+'Společná data'!$C$37,Plyn!P2) -> 108461341.2 | Q39: =(Q27-Q15+Q3-Q31)/POWER(1+'Společná data'!$C$37,Plyn!Q2) -> 100814072.5 | R39: =(R27-R15+R3-R31)/POWER(1+'Společná data'!$C$37,Plyn!R2) -> 93714997.65 | S39: =(S27-S15+S3-S31)/POWER(1+'Společná data'!$C$37,Plyn!S2) -> 87124372.48 | T39: =(T27-T15+T3-T31)/POWER(1+'Společná data'!$C$37,Plyn!T2) -> 81005356.07 | U39: =(U27-U15+U3-U31)/POWER(1+'Společná data'!$C$37,Plyn!U2) -> 75323797.65 | V39: =(V27-V15+V3-V31)/POWER(1+'Společná data'!$C$37,Plyn!V2) -> 70048039.16 | W39: =(W27-W15+W3-W31)/POWER(1+'Společná data'!$C$37,Plyn!W2) -> 65148732.33
B41: Výsledky
B42: S půjčkou
B43: Bilance při lineárních odpisech [Kč] | C43: =SUM(C33:W33) -> 2949906561
B45: Bilance při zrychlených odpisech [Kč] | C45: =SUM(C35:W35) -> 2941741333
B46: Bez půjčky
B47: Bilance při lineárních odpisech bez půjčky [Kč] | C47: =SUM(C37:W37) -> 3090550581
B49: Bilance při zrychlených odpisech bez půjčky [Kč] | C49: =SUM(C39:W39) -> 3082385353

Sheet Zdroj
A1: NPV | B1: Uhlí | C1: Biomasa | D1: Plyn
A2: Lineární odpisy s půjčkou | B2: =Uhlí!C47/1000000 -> 1437.990541 | C2: =Biomasa!C53/1000000 -> 1537.806444 | D2: =Plyn!C43/1000000 -> 2949.906561
A3: Zrychlené odpisy s půjčkou | B3: =Uhlí!C49/1000000 -> 1431.412432 | C3: =Biomasa!C55/1000000 -> 1530.961169 | D3: =Plyn!C45/1000000 -> 2941.741333
A4: Lineární odpisy | B4: =Uhlí!C51/1000000 -> 1551.29684 | C4: =Biomasa!C57/1000000 -> 1655.7146 | D4: =Plyn!C47/1000000 -> 3090.550581
A5: Zrychlené odpisy | B5: =Uhlí!C53/1000000 -> 1544.71873 | C5: =Biomasa!C59/1000000 -> 1648.869325 | D5: =Plyn!C49/1000000 -> 3082.385353
A7: Počátek | B7: 0
A8: Konec | B8: 0.2
A10: Hodnota2
A11: Počátek
A12: Konec

Sheet Citlivostní analýza
A1: Poměr spalování
A2: Výše inflace [%] | B2: 0.002 | C2: 0.004 | D2: 0.006 | E2: 0.008 | F2: 0.01 | G2: 0.012 | H2: 0.014 | I2: 0.016 | J2: 0.018 | K2: 0.02 | L2: 0.022 | M2: 0.024 | N2: 0.026 | O2: 0.028 | P2: 0.03 | Q2: 0.032 | R2: 0.034 | S2: 0.036 | T2: 0.038 | U2: 0.04 | V2: 0.042 | W2: 0.044 | X2: 0.046 | Y2: 0.048 | Z2: 0.05 | AA2: 0.052 | AB2: 0.054 | AC2: 0.056 | AD2: 0.058 | AE2: 0.06 | AF2: 0.062 | AG2: 0.064 | AH2: 0.066 | AI2: 0.068 | AJ2: 0.07 | AK2: 0.072 | AL2: 0.074 | AM2: 0.076 | AN2: 0.078 | AO2: 0.08 | AP2: 0.082 | AQ2: 0.084 | AR2: 0.086 | AS2: 0.088 | AT2: 0.09 | AU2: 0.092 | AV2: 0.094 | AW2: 0.096 | AX2: 0.098 | AY2: 0.1 | AZ2: 0.102 | BA2: 0.104 | BB2: 0.106 | BC2: 0.108 | BD2: 0.11 | BE2: 0.112 | BF2: 0.114 | BG2: 0.116 | BH2: 0.118 | BI2: 0.12 | BJ2: 0.122 | BK2: 0.124 | BL2: 0.126 | BM2: 0.128 | BN2: 0.13 | BO2: 0.132 | BP2: 0.134 | BQ2: 0.136 | BR2: 0.138 | BS2: 0.14 | BT2: 0.142 | BU2: 0.144 | BV2: 0.146 | BW2: 0.148 | BX2: 0.15 | BY2: 0.152 | BZ2: 0.154 | CA2: 0.156 | CB2: 0.158 | CC2: 0.16 | CD2: 0.162 | CE2: 0.164 | CF2: 0.166 | CG2: 0.168 | CH2: 0.17 | CI2: 0.172 | CJ2: 0.174 | CK2: 0.176 | CL2: 0.178 | CM2: 0.18 | CN2: 0.182 | CO2: 0.184 | CP2: 0.186 | CQ2: 0.188 | CR2: 0.19 | CS2: 0.192 | CT2: 0.194 | CU2: 0.196 | CV2: 0.198 | CW2: 0.2
A3: Uhlí - Lineární odpisy s půjčkou | B3: 1484.702732 | C3: 1487.063847 | D3: 1489.476463 | E3: 1491.941855 | F3: 1494.461333 | G3: 1497.036241 | H3: 1499.667956 | I3: 1502.357891 | J3: 1505.107498 | K3: 1507.918262 | L3: 1510.79171 | M3: 1513.729406 | N3: 1516.732956 | O3: 1519.804006 | P3: 1522.944244 | Q3: 1526.155405 | R3: 1529.439264 | S3: 1532.797644 | T3: 1536.232415 | U3: 1539.745495 | V3: 1543.33885 | W3: 1547.014498 | X3: 1550.77451 | Y3: 1554.621007 | Z3: 1558.556166 | AA3: 1562.582221 | AB3: 1566.701462 | AC3: 1570.916238 | AD3: 1575.228959 | AE3: 1579.642096 | AF3: 1584.158182 | AG3: 1588.779819 | AH3: 1593.509671 | AI3: 1598.350474 | AJ3: 1603.30503 | AK3: 1608.376217 | AL3: 1613.566984 | AM3: 1618.880355 | AN3: 1624.319433 | AO3: 1629.887399 | AP3: 1635.587516 | AQ3: 1641.423129 | AR3: 1647.397669 | AS3: 1653.514655 | AT3: 1659.777694 | AU3: 1666.190487 | AV3: 1672.756828 | AW3: 1679.480606 | AX3: 1686.365812 | AY3: 1693.416535 | AZ3: 1700.63697 | BA3: 1708.031419 | BB3: 1715.60429 | BC3: 1723.360106 | BD3: 1731.303502 | BE3: 1739.439232 | BF3: 1747.77217 | BG3: 1756.307311 | BH3: 1765.04978 | BI3: 1774.004828 | BJ3: 1783.17784 | BK3: 1792.574337 | BL3: 1802.199977 | BM3: 1812.060564 | BN3: 1822.162045 | BO3: 1832.510518 | BP3: 1843.112233 | BQ3: 1853.973597 | BR3: 1865.10118 | BS3: 1876.501714 | BT3: 1888.182101 | BU3: 1900.149414 | BV3: 1912.410907 | BW3: 1924.974011 | BX3: 1937.846344 | BY3: 1951.035714 | BZ3: 1964.550126 | CA3: 1978.397781 | CB3: 1992.587086 | CC3: 2007.126657 | CD3: 2022.025325 | CE3: 2037.292138 | CF3: 2052.936371 | CG3: 2068.967528 | CH3: 2085.395349 | CI3: 2102.229814 | CJ3: 2119.481152 | CK3: 2137.159842 | CL3: 2155.276625 | CM3: 2173.842505 | CN3: 2192.868758 | CO3: 2212.366938 | CP3: 2232.348883 | CQ3: 2252.826723 | CR3: 2273.812885 | CS3: 2295.320102 | CT3: 2317.361419 | CU3: 2339.950201 | CV3: 2363.10014 | CW3: 2386.825264
A4: Biomasa - Lineární odpisy s půjčkou | B4: 1502.114014 | C4: 1504.412647 | D4: 1506.761417 | E4: 1509.161567 | F4: 1511.614372 | G4: 1514.12114 | H4: 1516.683211 | I4: 1519.301963 | J4: 1521.978806 | K4: 1524.715189 | L4: 1527.512597 | M4: 1530.372552 | N4: 1533.296619 | O4: 1536.286399 | P4: 1539.343537 | Q4: 1542.469721 | R4: 1545.666678 | S4: 1548.936185 | T4: 1552.280062 | U4: 1555.700174 | V4: 1559.198438 | W4: 1562.776818 | X4: 1566.437328 | Y4: 1570.182034 | Z4: 1574.013057 | AA4: 1577.93257 | AB4: 1581.942803 | AC4: 1586.046044 | AD4: 1590.244636 | AE4: 1594.540988 | AF4: 1598.937565 | AG4: 1603.436899 | AH4: 1608.041584 | AI4: 1612.754284 | AJ4: 1617.577728 | AK4: 1622.514716 | AL4: 1627.568118 | AM4: 1632.740882 | AN4: 1638.036025 | AO4: 1643.456645 | AP4: 1649.005919 | AQ4: 1654.687103 | AR4: 1660.503539 | AS4: 1666.45865 | AT4: 1672.55595 | AU4: 1678.799041 | AV4: 1685.191615 | AW4: 1691.737462 | AX4: 1698.440463 | AY4: 1705.304603 | AZ4: 1712.333963 | BA4: 1719.532732 | BB4: 1726.905201 | BC4: 1734.455774 | BD4: 1742.188963 | BE4: 1750.109397 | BF4: 1758.221819 | BG4: 1766.531094 | BH4: 1775.04221 | BI4: 1783.76028 | BJ4: 1792.690545 | BK4: 1801.838382 | BL4: 1811.209298 | BM4: 1820.808943 | BN4: 1830.643108 | BO4: 1840.717728 | BP4: 1851.038888 | BQ4: 1861.612827 | BR4: 1872.44594 | BS4: 1883.54478 | BT4: 1894.916068 | BU4: 1906.566689 | BV4: 1918.503705 | BW4: 1930.73435 | BX4: 1943.266041 | BY4: 1956.10638 | BZ4: 1969.263158 | CA4: 1982.744362 | CB4: 1996.558174 | CC4: 2010.712983 | CD4: 2025.217385 | CE4: 2040.080191 | CF4: 2055.31043 | CG4: 2070.917352 | CH4: 2086.910442 | CI4: 2103.299415 | CJ4: 2120.094229 | CK4: 2137.305086 | CL4: 2154.942443 | CM4: 2173.017012 | CN4: 2191.539772 | CO4: 2210.52197 | CP4: 2229.975131 | CQ4: 2249.911063 | CR4: 2270.341866 | CS4: 2291.279935 | CT4: 2312.737971 | CU4: 2334.728984 | CV4: 2357.266304 | CW4: 2380.363588
A5: Plyn - lineární s půjčkou | B5: 2947.375681 | C5: 2947.538672 | D5: 2947.705219 | E5: 2947.875409 | F5: 2948.049332 | G5: 2948.227082 | H5: 2948.408754 | I5: 2948.594444 | J5: 2948.784254 | K5: 2948.978286 | L5: 2949.176644 | M5: 2949.379438 | N5: 2949.586778 | O5: 2949.798778 | P5: 2950.015553 | Q5: 2950.237225 | R5: 2950.463915 | S5: 2950.695749 | T5: 2950.932857 | U5: 2951.175371 | V5: 2951.423426 | W5: 2951.677162 | X5: 2951.936721 | Y5: 2952.202251 | Z5: 2952.473901 | AA5: 2952.751826 | AB5: 2953.036184 | AC5: 2953.327137 | AD5: 2953.624851 | AE5: 2953.929497 | AF5: 2954.24125 | AG5: 2954.560289 | AH5: 2954.886798 | AI5: 2955.220966 | AJ5: 2955.562987 | AK5: 2955.913059 | AL5: 2956.271386 | AM5: 2956.638177 | AN5: 2957.013645 | AO5: 2957.398011 | AP5: 2957.791499 | AQ5: 2958.194341 | AR5: 2958.606773 | AS5: 2959.029038 | AT5: 2959.461386 | AU5: 2959.904071 | AV5: 2960.357356 | AW5: 2960.821509 | AX5: 2961.296806 | AY5: 2961.783529 | AZ5: 2962.281967 | BA5: 2962.792418 | BB5: 2963.315185 | BC5: 2963.850581 | BD5: 2964.398927 | BE5: 2964.960549 | BF5: 2965.535785 | BG5: 2966.12498 | BH5: 2966.728486 | BI5: 2967.346668 | BJ5: 2967.979895 | BK5: 2968.628551 | BL5: 2969.293024 | BM5: 2969.973716 | BN5: 2970.671038 | BO5: 2971.385409 | BP5: 2972.117263 | BQ5: 2972.86704 | BR5: 2973.635195 | BS5: 2974.422192 | BT5: 2975.228508 | BU5: 2976.054631 | BV5: 2976.901061 | BW5: 2977.768312 | BX5: 2978.65691 | BY5: 2979.567393 | BZ5: 2980.500315 | CA5: 2981.456241 | CB5: 2982.435751 | CC5: 2983.439441 | CD5: 2984.46792 | CE5: 2985.521812 | CF5: 2986.601759 | CG5: 2987.708415 | CH5: 2988.842454 | CI5: 2990.004564 | CJ5: 2991.195452 | CK5: 2992.41584 | CL5: 2993.666471 | CM5: 2994.948103 | CN5: 2996.261516 | CO5: 2997.607506 | CP5: 2998.986892 | CQ5: 3000.40051 | CR5: 3001.849219 | CS5: 3003.333896 | CT5: 3004.855444 | CU5: 3006.414783 | CV5: 3008.012861 | CW5: 3009.650644
A6: Uhlí | B6: 1394.749794 | C6: 1397.11091 | D6: 1399.523526 | E6: 1401.988918 | F6: 1404.508396 | G6: 1407.083303 | H6: 1409.715018 | I6: 1412.404954 | J6: 1415.15456 | K6: 1417.965325 | L6: 1420.838772 | M6: 1423.776469 | N6: 1426.780018 | O6: 1429.851068 | P6: 1432.991307 | Q6: 1436.202468 | R6: 1439.486326 | S6: 1442.844707 | T6: 1446.279478 | U6: 1449.792557 | V6: 1453.385912 | W6: 1457.061561 | X6: 1460.821572 | Y6: 1464.668069 | Z6: 1468.603229 | AA6: 1472.629284 | AB6: 1476.748525 | AC6: 1480.963301 | AD6: 1485.276022 | AE6: 1489.689158 | AF6: 1494.205245 | AG6: 1498.826882 | AH6: 1503.556734 | AI6: 1508.397536 | AJ6: 1513.352093 | AK6: 1518.42328 | AL6: 1523.614047 | AM6: 1528.927418 | AN6: 1534.366496 | AO6: 1539.934462 | AP6: 1545.634579 | AQ6: 1551.470192 | AR6: 1557.444732 | AS6: 1563.561717 | AT6: 1569.824757 | AU6: 1576.23755 | AV6: 1582.80389 | AW6: 1589.527669 | AX6: 1596.412874 | AY6: 1603.463598 | AZ6: 1610.684033 | BA6: 1618.078482 | BB6: 1625.651353 | BC6: 1633.407169 | BD6: 1641.350565 | BE6: 1649.486295 | BF6: 1657.819232 | BG6: 1666.354374 | BH6: 1675.096843 | BI6: 1684.051891 | BJ6: 1693.224903 | BK6: 1702.621399 | BL6: 1712.24704 | BM6: 1722.107627 | BN6: 1732.209108 | BO6: 1742.55758 | BP6: 1753.159295 | BQ6: 1764.02066 | BR6: 1775.148243 | BS6: 1786.548777 | BT6: 1798.229163 | BU6: 1810.196477 | BV6: 1822.45797 | BW6: 1835.021073 | BX6: 1847.893406 | BY6: 1861.082777 | BZ6: 1874.597189 | CA6: 1888.444844 | CB6: 1902.634149 | CC6: 1917.17372 | CD6: 1932.072388 | CE6: 1947.339201 | CF6: 1962.983434 | CG6: 1979.014591 | CH6: 1995.442412 | CI6: 2012.276877 | CJ6: 2029.528214 | CK6: 2047.206905 | CL6: 2065.323688 | CM6: 2083.889568 | CN6: 2102.915821 | CO6: 2122.414001 | CP6: 2142.395946 | CQ6: 2162.873786 | CR6: 2183.859948 | CS6: 2205.367165 | CT6: 2227.408481 | CU6: 2249.997263 | CV6: 2273.147203 | CW6: 2296.872327
A7: Biomasa | B7: 1495.268739 | C7: 1497.567372 | D7: 1499.916142 | E7: 1502.316292 | F7: 1504.769097 | G7: 1507.275865 | H7: 1509.837937 | I7: 1512.456688 | J7: 1515.133531 | K7: 1517.869914 | L7: 1520.667322 | M7: 1523.527277 | N7: 1526.451344 | O7: 1529.441124 | P7: 1532.498263 | Q7: 1535.624446 | R7: 1538.821404 | S7: 1542.09091 | T7: 1545.434787 | U7: 1548.854899 | V7: 1552.353163 | W7: 1555.931543 | X7: 1559.592053 | Y7: 1563.336759 | Z7: 1567.167782 | AA7: 1571.087295 | AB7: 1575.097528 | AC7: 1579.200769 | AD7: 1583.399361 | AE7: 1587.695713 | AF7: 1592.09229 | AG7: 1596.591624 | AH7: 1601.19631 | AI7: 1605.909009 | AJ7: 1610.732453 | AK7: 1615.669441 | AL7: 1620.722844 | AM7: 1625.895607 | AN7: 1631.19075 | AO7: 1636.61137 | AP7: 1642.160644 | AQ7: 1647.841829 | AR7: 1653.658264 | AS7: 1659.613375 | AT7: 1665.710675 | AU7: 1671.953766 | AV7: 1678.34634 | AW7: 1684.892187 | AX7: 1691.595189 | AY7: 1698.459328 | AZ7: 1705.488688 | BA7: 1712.687457 | BB7: 1720.059926 | BC7: 1727.610499 | BD7: 1735.343689 | BE7: 1743.264122 | BF7: 1751.376544 | BG7: 1759.685819 | BH7: 1768.196935 | BI7: 1776.915005 | BJ7: 1785.84527 | BK7: 1794.993107 | BL7: 1804.364023 | BM7: 1813.963668 | BN7: 1823.797833 | BO7: 1833.872453 | BP7: 1844.193613 | BQ7: 1854.767552 | BR7: 1865.600665 | BS7: 1876.699505 | BT7: 1888.070793 | BU7: 1899.721415 | BV7: 1911.65843 | BW7: 1923.889075 | BX7: 1936.420766 | BY7: 1949.261105 | BZ7: 1962.417884 | CA7: 1975.899087 | CB7: 1989.712899 | CC7: 2003.867708 | CD7: 2018.372111 | CE7: 2033.234917 | CF7: 2048.465155 | CG7: 2064.072078 | CH7: 2080.065167 | CI7: 2096.45414 | CJ7: 2113.248954 | CK7: 2130.459812 | CL7: 2148.097168 | CM7: 2166.171738 | CN7: 2184.694497 | CO7: 2203.676695 | CP7: 2223.129856 | CQ7: 2243.065788 | CR7: 2263.496591 | CS7: 2284.434661 | CT7: 2305.892696 | CU7: 2327.883709 | CV7: 2350.421029 | CW7: 2373.518313
A8: Uhlí - Lineární odpisy bez půjčky | B8: 1598.00903 | C8: 1600.370146 | D8: 1602.782761 | E8: 1605.248153 | F8: 1607.767632 | G8: 1610.342539 | H8: 1612.974254 | I8: 1615.66419 | J8: 1618.413796 | K8: 1621.22456 | L8: 1624.098008 | M8: 1627.035704 | N8: 1630.039254 | O8: 1633.110304 | P8: 1636.250543 | Q8: 1639.461703 | R8: 1642.745562 | S8: 1646.103942 | T8: 1649.538713 | U8: 1653.051793 | V8: 1656.645148 | W8: 1660.320797 | X8: 1664.080808 | Y8: 1667.927305 | Z8: 1671.862464 | AA8: 1675.888519 | AB8: 1680.00776 | AC8: 1684.222537 | AD8: 1688.535257 | AE8: 1692.948394 | AF8: 1697.464481 | AG8: 1702.086117 | AH8: 1706.81597 | AI8: 1711.656772 | AJ8: 1716.611329 | AK8: 1721.682516 | AL8: 1726.873283 | AM8: 1732.186654 | AN8: 1737.625732 | AO8: 1743.193698 | AP8: 1748.893814 | AQ8: 1754.729427 | AR8: 1760.703967 | AS8: 1766.820953 | AT8: 1773.083993 | AU8: 1779.496786 | AV8: 1786.063126 | AW8: 1792.786904 | AX8: 1799.67211 | AY8: 1806.722833 | AZ8: 1813.943269 | BA8: 1821.337717 | BB8: 1828.910589 | BC8: 1836.666404 | BD8: 1844.609801 | BE8: 1852.745531 | BF8: 1861.078468 | BG8: 1869.61361 | BH8: 1878.356078 | BI8: 1887.311126 | BJ8: 1896.484138 | BK8: 1905.880635 | BL8: 1915.506276 | BM8: 1925.366863 | BN8: 1935.468344 | BO8: 1945.816816 | BP8: 1956.418531 | BQ8: 1967.279896 | BR8: 1978.407478 | BS8: 1989.808012 | BT8: 2001.488399 | BU8: 2013.455713 | BV8: 2025.717205 | BW8: 2038.280309 | BX8: 2051.152642 | BY8: 2064.342013 | BZ8: 2077.856424 | CA8: 2091.704079 | CB8: 2105.893385 | CC8: 2120.432956 | CD8: 2135.331623 | CE8: 2150.598436 | CF8: 2166.24267 | CG8: 2182.273827 | CH8: 2198.701647 | CI8: 2215.536112 | CJ8: 2232.78745 | CK8: 2250.46614 | CL8: 2268.582923 | CM8: 2287.148803 | CN8: 2306.175057 | CO8: 2325.673237 | CP8: 2345.655182 | CQ8: 2366.133021 | CR8: 2387.119183 | CS8: 2408.6264 | CT8: 2430.667717 | CU8: 2453.256499 | CV8: 2476.406439 | CW8: 2500.131563
A9: Biomasa - Zrychlené odpisy bez půjčky | B9: 1620.022169 | C9: 1622.320802 | D9: 1624.669573 | E9: 1627.069723 | F9: 1629.522528 | G9: 1632.029295 | H9: 1634.591367 | I9: 1637.210119 | J9: 1639.886962 | K9: 1642.623345 | L9: 1645.420752 | M9: 1648.280708 | N9: 1651.204774 | O9: 1654.194554 | P9: 1657.251693 | Q9: 1660.377876 | R9: 1663.574834 | S9: 1666.844341 | T9: 1670.188217 | U9: 1673.60833 | V9: 1677.106594 | W9: 1680.684973 | X9: 1684.345483 | Y9: 1688.09019 | Z9: 1691.921213 | AA9: 1695.840726 | AB9: 1699.850959 | AC9: 1703.954199 | AD9: 1708.152792 | AE9: 1712.449143 | AF9: 1716.84572 | AG9: 1721.345054 | AH9: 1725.94974 | AI9: 1730.66244 | AJ9: 1735.485883 | AK9: 1740.422871 | AL9: 1745.476274 | AM9: 1750.649037 | AN9: 1755.94418 | AO9: 1761.364801 | AP9: 1766.914074 | AQ9: 1772.595259 | AR9: 1778.411694 | AS9: 1784.366805 | AT9: 1790.464105 | AU9: 1796.707196 | AV9: 1803.099771 | AW9: 1809.645617 | AX9: 1816.348619 | AY9: 1823.212758 | AZ9: 1830.242119 | BA9: 1837.440887 | BB9: 1844.813357 | BC9: 1852.36393 | BD9: 1860.097119 | BE9: 1868.017552 | BF9: 1876.129974 | BG9: 1884.43925 | BH9: 1892.950365 | BI9: 1901.668435 | BJ9: 1910.598701 | BK9: 1919.746537 | BL9: 1929.117454 | BM9: 1938.717099 | BN9: 1948.551263 | BO9: 1958.625883 | BP9: 1968.947044 | BQ9: 1979.520983 | BR9: 1990.354095 | BS9: 2001.452936 | BT9: 2012.824223 | BU9: 2024.474845 | BV9: 2036.41186 | BW9: 2048.642505 | BX9: 2061.174196 | BY9: 2074.014536 | BZ9: 2087.171314 | CA9: 2100.652517 | CB9: 2114.466329 | CC9: 2128.621138 | CD9: 2143.125541 | CE9: 2157.988347 | CF9: 2173.218585 | CG9: 2188.825508 | CH9: 2204.818598 | CI9: 2221.207571 | CJ9: 2238.002384 | CK9: 2255.213242 | CL9: 2272.850599 | CM9: 2290.925168 | CN9: 2309.447927 | CO9: 2328.430125 | CP9: 2347.883286 | CQ9: 2367.819219 | CR9: 2388.250022 | CS9: 2409.188091 | CT9: 2430.646126 | CU9: 2452.637139 | CV9: 2475.174459 | CW9: 2498.271743
A10: Uhlí - Zrychlené odpisy bez půjčky | B10: 1508.056093 | C10: 1510.417208 | D10: 1512.829824 | E10: 1515.295216 | F10: 1517.814694 | G10: 1520.389602 | H10: 1523.021317 | I10: 1525.711252 | J10: 1528.460859 | K10: 1531.271623 | L10: 1534.145071 | M10: 1537.082767 | N10: 1540.086317 | O10: 1543.157367 | P10: 1546.297606 | Q10: 1549.508766 | R10: 1552.792625 | S10: 1556.151005 | T10: 1559.585776 | U10: 1563.098856 | V10: 1566.692211 | W10: 1570.36786 | X10: 1574.127871 | Y10: 1577.974368 | Z10: 1581.909527 | AA10: 1585.935582 | AB10: 1590.054823 | AC10: 1594.269599 | AD10: 1598.58232 | AE10: 1602.995457 | AF10: 1607.511543 | AG10: 1612.13318 | AH10: 1616.863032 | AI10: 1621.703835 | AJ10: 1626.658392 | AK10: 1631.729579 | AL10: 1636.920345 | AM10: 1642.233716 | AN10: 1647.672795 | AO10: 1653.240761 | AP10: 1658.940877 | AQ10: 1664.77649 | AR10: 1670.75103 | AS10: 1676.868016 | AT10: 1683.131055 | AU10: 1689.543848 | AV10: 1696.110189 | AW10: 1702.833967 | AX10: 1709.719173 | AY10: 1716.769896 | AZ10: 1723.990332 | BA10: 1731.38478 | BB10: 1738.957651 | BC10: 1746.713467 | BD10: 1754.656863 | BE10: 1762.792593 | BF10: 1771.125531 | BG10: 1779.660672 | BH10: 1788.403141 | BI10: 1797.358189 | BJ10: 1806.531201 | BK10: 1815.927698 | BL10: 1825.553338 | BM10: 1835.413925 | BN10: 1845.515406 | BO10: 1855.863879 | BP10: 1866.465594 | BQ10: 1877.326958 | BR10: 1888.454541 | BS10: 1899.855075 | BT10: 1911.535462 | BU10: 1923.502776 | BV10: 1935.764268 | BW10: 1948.327372 | BX10: 1961.199705 | BY10: 1974.389075 | BZ10: 1987.903487 | CA10: 2001.751142 | CB10: 2015.940447 | CC10: 2030.480018 | CD10: 2045.378686 | CE10: 2060.645499 | CF10: 2076.289732 | CG10: 2092.320889 | CH10: 2108.74871 | CI10: 2125.583175 | CJ10: 2142.834513 | CK10: 2160.513203 | CL10: 2178.629986 | CM10: 2197.195866 | CN10: 2216.222119 | CO10: 2235.720299 | CP10: 2255.702244 | CQ10: 2276.180084 | CR10: 2297.166246 | CS10: 2318.673463 | CT10: 2340.71478 | CU10: 2363.303562 | CV10: 2386.453501 | CW10: 2410.178625
A11: Biomasa - Lineární odpisy bez půjčky | B11: 1613.176894 | C11: 1615.475527 | D11: 1617.824298 | E11: 1620.224448 | F11: 1622.677253 | G11: 1625.18402 | H11: 1627.746092 | I11: 1630.364844 | J11: 1633.041687 | K11: 1635.77807 | L11: 1638.575477 | M11: 1641.435433 | N11: 1644.359499 | O11: 1647.34928 | P11: 1650.406418 | Q11: 1653.532601 | R11: 1656.729559 | S11: 1659.999066 | T11: 1663.342942 | U11: 1666.763055 | V11: 1670.261319 | W11: 1673.839699 | X11: 1677.500208 | Y11: 1681.244915 | Z11: 1685.075938 | AA11: 1688.995451 | AB11: 1693.005684 | AC11: 1697.108924 | AD11: 1701.307517 | AE11: 1705.603868 | AF11: 1710.000445 | AG11: 1714.499779 | AH11: 1719.104465 | AI11: 1723.817165 | AJ11: 1728.640609 | AK11: 1733.577596 | AL11: 1738.630999 | AM11: 1743.803762 | AN11: 1749.098905 | AO11: 1754.519526 | AP11: 1760.0688 | AQ11: 1765.749984 | AR11: 1771.566419 | AS11: 1777.521531 | AT11: 1783.618831 | AU11: 1789.861921 | AV11: 1796.254496 | AW11: 1802.800342 | AX11: 1809.503344 | AY11: 1816.367483 | AZ11: 1823.396844 | BA11: 1830.595612 | BB11: 1837.968082 | BC11: 1845.518655 | BD11: 1853.251844 | BE11: 1861.172277 | BF11: 1869.284699 | BG11: 1877.593975 | BH11: 1886.105091 | BI11: 1894.82316 | BJ11: 1903.753426 | BK11: 1912.901262 | BL11: 1922.272179 | BM11: 1931.871824 | BN11: 1941.705988 | BO11: 1951.780608 | BP11: 1962.101769 | BQ11: 1972.675708 | BR11: 1983.50882 | BS11: 1994.607661 | BT11: 2005.978948 | BU11: 2017.62957 | BV11: 2029.566585 | BW11: 2041.79723 | BX11: 2054.328922 | BY11: 2067.169261 | BZ11: 2080.326039 | CA11: 2093.807242 | CB11: 2107.621054 | CC11: 2121.775864 | CD11: 2136.280266 | CE11: 2151.143072 | CF11: 2166.37331 | CG11: 2181.980233 | CH11: 2197.973323 | CI11: 2214.362296 | CJ11: 2231.157109 | CK11: 2248.367967 | CL11: 2266.005324 | CM11: 2284.079893 | CN11: 2302.602653 | CO11: 2321.58485 | CP11: 2341.038011 | CQ11: 2360.973944 | CR11: 2381.404747 | CS11: 2402.342816 | CT11: 2423.800852 | CU11: 2445.791864 | CV11: 2468.329184 | CW11: 2491.426468
A12: Plyn - bez půjčky lineární | B12: 3088.019701 | C12: 3088.182692 | D12: 3088.349239 | E12: 3088.519429 | F12: 3088.693353 | G12: 3088.871103 | H12: 3089.052774 | I12: 3089.238465 | J12: 3089.428274 | K12: 3089.622306 | L12: 3089.820665 | M12: 3090.023459 | N12: 3090.230798 | O12: 3090.442798 | P12: 3090.659574 | Q12: 3090.881245 | R12: 3091.107935 | S12: 3091.33977 | T12: 3091.576877 | U12: 3091.819391 | V12: 3092.067446 | W12: 3092.321182 | X12: 3092.580741 | Y12: 3092.846271 | Z12: 3093.117922 | AA12: 3093.395847 | AB12: 3093.680204 | AC12: 3093.971157 | AD12: 3094.268871 | AE12: 3094.573517 | AF12: 3094.88527 | AG12: 3095.204309 | AH12: 3095.530818 | AI12: 3095.864986 | AJ12: 3096.207007 | AK12: 3096.55708 | AL12: 3096.915406 | AM12: 3097.282197 | AN12: 3097.657665 | AO12: 3098.042031 | AP12: 3098.435519 | AQ12: 3098.838361 | AR12: 3099.250793 | AS12: 3099.673058 | AT12: 3100.105406 | AU12: 3100.548091 | AV12: 3101.001376 | AW12: 3101.465529 | AX12: 3101.940826 | AY12: 3102.427549 | AZ12: 3102.925987 | BA12: 3103.436438 | BB12: 3103.959205 | BC12: 3104.494602 | BD12: 3105.042947 | BE12: 3105.604569 | BF12: 3106.179805 | BG12: 3106.769 | BH12: 3107.372507 | BI12: 3107.990688 | BJ12: 3108.623916 | BK12: 3109.272571 | BL12: 3109.937044 | BM12: 3110.617736 | BN12: 3111.315058 | BO12: 3112.029429 | BP12: 3112.761283 | BQ12: 3113.51106 | BR12: 3114.279215 | BS12: 3115.066212 | BT12: 3115.872528 | BU12: 3116.698651 | BV12: 3117.545081 | BW12: 3118.412332 | BX12: 3119.30093 | BY12: 3120.211414 | BZ12: 3121.144335 | CA12: 3122.100261 | CB12: 3123.079771 | CC12: 3124.083461 | CD12: 3125.11194 | CE12: 3126.165833 | CF12: 3127.245779 | CG12: 3128.352436 | CH12: 3129.486474 | CI12: 3130.648584 | CJ12: 3131.839472 | CK12: 3133.05986 | CL12: 3134.310491 | CM12: 3135.592123 | CN12: 3136.905536 | CO12: 3138.251527 | CP12: 3139.630912 | CQ12: 3141.04453 | CR12: 3142.493239 | CS12: 3143.977916 | CT12: 3145.499464 | CU12: 3147.058804 | CV12: 3148.656881 | CW12: 3150.294664
A13: Plyn | B13: 2939.210453 | C13: 2939.373444 | D13: 2939.539991 | E13: 2939.710181 | F13: 2939.884104 | G13: 2940.061854 | H13: 2940.243526 | I13: 2940.429216 | J13: 2940.619026 | K13: 2940.813058 | L13: 2941.011416 | M13: 2941.21421 | N13: 2941.42155 | O13: 2941.63355 | P13: 2941.850325 | Q13: 2942.071997 | R13: 2942.298687 | S13: 2942.530521 | T13: 2942.767629 | U13: 2943.010143 | V13: 2943.258198 | W13: 2943.511934 | X13: 2943.771493 | Y13: 2944.037023 | Z13: 2944.308673 | AA13: 2944.586598 | AB13: 2944.870956 | AC13: 2945.161909 | AD13: 2945.459623 | AE13: 2945.764269 | AF13: 2946.076022 | AG13: 2946.395061 | AH13: 2946.72157 | AI13: 2947.055738 | AJ13: 2947.397759 | AK13: 2947.747831 | AL13: 2948.106158 | AM13: 2948.472949 | AN13: 2948.848417 | AO13: 2949.232783 | AP13: 2949.626271 | AQ13: 2950.029113 | AR13: 2950.441545 | AS13: 2950.86381 | AT13: 2951.296158 | AU13: 2951.738843 | AV13: 2952.192128 | AW13: 2952.656281 | AX13: 2953.131578 | AY13: 2953.618301 | AZ13: 2954.116739 | BA13: 2954.62719 | BB13: 2955.149957 | BC13: 2955.685353 | BD13: 2956.233699 | BE13: 2956.795321 | BF13: 2957.370557 | BG13: 2957.959752 | BH13: 2958.563258 | BI13: 2959.18144 | BJ13: 2959.814667 | BK13: 2960.463323 | BL13: 2961.127796 | BM13: 2961.808488 | BN13: 2962.50581 | BO13: 2963.220181 | BP13: 2963.952035 | BQ13: 2964.701812 | BR13: 2965.469967 | BS13: 2966.256964 | BT13: 2967.06328 | BU13: 2967.889403 | BV13: 2968.735833 | BW13: 2969.603084 | BX13: 2970.491682 | BY13: 2971.402165 | BZ13: 2972.335087 | CA13: 2973.291013 | CB13: 2974.270523 | CC13: 2975.274213 | CD13: 2976.302692 | CE13: 2977.356584 | CF13: 2978.436531 | CG13: 2979.543187 | CH13: 2980.677226 | CI13: 2981.839336 | CJ13: 2983.030224 | CK13: 2984.250612 | CL13: 2985.501243 | CM13: 2986.782875 | CN13: 2988.096288 | CO13: 2989.442278 | CP13: 2990.821664 | CQ13: 2992.235282 | CR13: 2993.683991 | CS13: 2995.168668 | CT13: 2996.690216 | CU13: 2998.249555 | CV13: 2999.847633 | CW13: 3001.485416
A14: Plyn bez půjčky zrychlený | B14: 3079.854473 | C14: 3080.017464 | D14: 3080.184011 | E14: 3080.354201 | F14: 3080.528125 | G14: 3080.705875 | H14: 3080.887546 | I14: 3081.073237 | J14: 3081.263046 | K14: 3081.457078 | L14: 3081.655437 | M14: 3081.858231 | N14: 3082.06557 | O14: 3082.27757 | P14: 3082.494346 | Q14: 3082.716017 | R14: 3082.942707 | S14: 3083.174542 | T14: 3083.411649 | U14: 3083.654163 | V14: 3083.902218 | W14: 3084.155954 | X14: 3084.415513 | Y14: 3084.681043 | Z14: 3084.952694 | AA14: 3085.230619 | AB14: 3085.514976 | AC14: 3085.805929 | AD14: 3086.103643 | AE14: 3086.408289 | AF14: 3086.720042 | AG14: 3087.039081 | AH14: 3087.36559 | AI14: 3087.699758 | AJ14: 3088.041779 | AK14: 3088.391852 | AL14: 3088.750178 | AM14: 3089.116969 | AN14: 3089.492437 | AO14: 3089.876803 | AP14: 3090.270291 | AQ14: 3090.673133 | AR14: 3091.085565 | AS14: 3091.50783 | AT14: 3091.940178 | AU14: 3092.382863 | AV14: 3092.836148 | AW14: 3093.300301 | AX14: 3093.775598 | AY14: 3094.262321 | AZ14: 3094.760759 | BA14: 3095.27121 | BB14: 3095.793977 | BC14: 3096.329374 | BD14: 3096.877719 | BE14: 3097.439341 | BF14: 3098.014577 | BG14: 3098.603772 | BH14: 3099.207279 | BI14: 3099.82546 | BJ14: 3100.458688 | BK14: 3101.107343 | BL14: 3101.771816 | BM14: 3102.452508 | BN14: 3103.14983 | BO14: 3103.864201 | BP14: 3104.596055 | BQ14: 3105.345832 | BR14: 3106.113987 | BS14: 3106.900984 | BT14: 3107.7073 | BU14: 3108.533423 | BV14: 3109.379853 | BW14: 3110.247104 | BX14: 3111.135702 | BY14: 3112.046186 | BZ14: 3112.979107 | CA14: 3113.935033 | CB14: 3114.914543 | CC14: 3115.918233 | CD14: 3116.946712 | CE14: 3118.000605 | CF14: 3119.080551 | CG14: 3120.187208 | CH14: 3121.321246 | CI14: 3122.483356 | CJ14: 3123.674244 | CK14: 3124.894632 | CL14: 3126.145263 | CM14: 3127.426895 | CN14: 3128.740308 | CO14: 3130.086299 | CP14: 3131.465684 | CQ14: 3132.879302 | CR14: 3134.328011 | CS14: 3135.812688 | CT14: 3137.334236 | CU14: 3138.893576 | CV14: 3140.491653 | CW14: 3142.129436
A15: Uhlí - Lineární odpisy s půjčkou | B15: =RANK(B3,B$3:B$14,1) -> 2 | C15: =RANK(C3,C$3:C$14,1) -> 2 | D15: 2 | E15: 2 | F15: 2 | G15: 2 | H15: 2 | I15: 2 | J15: 2 | K15: 2 | L15: 2 | M15: 2 | N15: 2 | O15: 2 | P15: 2 | Q15: 2 | R15: 2 | S15: 2 | T15: 2 | U15: 2 | V15: 2 | W15: 2 | X15: 2 | Y15: 2 | Z15: 2 | AA15: 2 | AB15: 2 | AC15: 2 | AD15: 2 | AE15: 2 | AF15: 2 | AG15: 2 | AH15: 2 | AI15: 2 | AJ15: 2 | AK15: 2 | AL15: 2 | AM15: 2 | AN15: 2 | AO15: 2 | AP15: 2 | AQ15: 2 | AR15: 2 | AS15: 2 | AT15: 2 | AU15: 2 | AV15: 2 | AW15: 2 | AX15: 2 | AY15: 2 | AZ15: 2 | BA15: 2 | BB15: 2 | BC15: 2 | BD15: 2 | BE15: 2 | BF15: 2 | BG15: 2 | BH15: 2 | BI15: 2 | BJ15: 2 | BK15: 2 | BL15: 2 | BM15: 2 | BN15: 2 | BO15: =RANK(BO3,BO$3:BO$14,1) -> 2 | BP15: 2 | BQ15: 2 | BR15: 2 | BS15: 2 | BT15: 3 | BU15: 3 | BV15: 3 | BW15: 3 | BX15: 3 | BY15: 3 | BZ15: 3 | CA15: 3 | CB15: 3 | CC15: 3 | CD15: 3 | CE15: 3 | CF15: 3 | CG15: 3 | CH15: 3 | CI15: 3 | CJ15: 3 | CK15: 3 | CL15: 4 | CM15: 4 | CN15: 4 | CO15: 4 | CP15: 4 | CQ15: 4 | CR15: 4 | CS15: 4 | CT15: 4 | CU15: 4 | CV15: 4 | CW15: 4
A16: Biomasa - Lineární odpisy s půjčkou | B16: =RANK(B4,B$3:B$14,1) -> 4 | C16: 4 | D16: 4 | E16: 4 | F16: 4 | G16: 4 | H16: 4 | I16: 4 | J16: 4 | K16: 4 | L16: 4 | M16: 4 | N16: 4 | O16: 4 | P16: 4 | Q16: 4 | R16: 4 | S16: 4 | T16: 4 | U16: 4 | V16: 4 | W16: 4 | X16: 4 | Y16: 4 | Z16: 4 | AA16: 4 | AB16: 4 | AC16: 4 | AD16: 4 | AE16: 4 | AF16: 4 | AG16: 4 | AH16: 4 | AI16: 4 | AJ16: 4 | AK16: 4 | AL16: 4 | AM16: 4 | AN16: 4 | AO16: 4 | AP16: 4 | AQ16: 4 | AR16: 4 | AS16: 4 | AT16: 4 | AU16: 4 | AV16: 4 | AW16: 4 | AX16: 4 | AY16: 4 | AZ16: 4 | BA16: 4 | BB16: 4 | BC16: 4 | BD16: 4 | BE16: 4 | BF16: 4 | BG16: 4 | BH16: 4 | BI16: 4 | BJ16: 4 | BK16: 4 | BL16: 4 | BM16: 4 | BN16: 4 | BO16: 4 | BP16: 4 | BQ16: 4 | BR16: 4 | BS16: 4 | BT16: 4 | BU16: 4 | BV16: 4 | BW16: 4 | BX16: 4 | BY16: 4 | BZ16: 4 | CA16: 4 | CB16: 4 | CC16: 4 | CD16: 4 | CE16: 4 | CF16: 4 | CG16: 4 | CH16: 4 | CI16: 4 | CJ16: 4 | CK16: 4 | CL16: 3 | CM16: 3 | CN16: 3 | CO16: 3 | CP16: 3 | CQ16: 3 | CR16: 3 | CS16: 3 | CT16: 3 | CU16: 3 | CV16: 3 | CW16: 3
A17: Plyn - s půjčkou | B17: 10 | C17: =RANK(C5,C$3:C$14,1) -> 10 | D17: 10 | E17: 10 | F17: 10 | G17: 10 | H17: 10 | I17: 10 | J17: 10 | K17: 10 | L17: 10 | M17: 10 | N17: 10 | O17: 10 | P17: 10 | Q17: 10 | R17: 10 | S17: 10 | T17: 10 | U17: 10 | V17: 10 | W17: 10 | X17: 10 | Y17: 10 | Z17: 10 | AA17: 10 | AB17: 10 | AC17: 10 | AD17: 10 | AE17: 10 | AF17: 10 | AG17: 10 | AH17: 10 | AI17: 10 | AJ17: 10 | AK17: 10 | AL17: 10 | AM17: 10 | AN17: 10 | AO17: 10 | AP17: 10 | AQ17: 10 | AR17: 10 | AS17: 10 | AT17: 10 | AU17: 10 | AV17: 10 | AW17: 10 | AX17: 10 | AY17: 10 | AZ17: 10 | BA17: 10 | BB17: 10 | BC17: 10 | BD17: 10 | BE17: 10 | BF17: 10 | BG17: 10 | BH17: 10 | BI17: 10 | BJ17: 10 | BK17: 10 | BL17: 10 | BM17: 10 | BN17: 10 | BO17: 10 | BP17: 10 | BQ17: 10 | BR17: 10 | BS17: 10 | BT17: 10 | BU17: 10 | BV17: 10 | BW17: 10 | BX17: 10 | BY17: 10 | BZ17: 10 | CA17: 10 | CB17: 10 | CC17: 10 | CD17: 10 | CE17: 10 | CF17: 10 | CG17: 10 | CH17: 10 | CI17: 10 | CJ17: 10 | CK17: 10 | CL17: 10 | CM17: 10 | CN17: 10 | CO17: 10 | CP17: 10 | CQ17: 10 | CR17: 10 | CS17: 10 | CT17: 10 | CU17: 10 | CV17: 10 | CW17: 10
A18: Uhlí - Zrychlené odpisy s půjčkou | B18: 1 | C18: 1 | D18: 1 | E18: 1 | F18: 1 | G18: 1 | H18: 1 | I18: 1 | J18: 1 | K18: 1 | L18: 1 | M18: 1 | N18: 1 | O18: 1 | P18: 1 | Q18: 1 | R18: 1 | S18: 1 | T18: 1 | U18: 1 | V18: 1 | W18: 1 | X18: 1 | Y18: 1 | Z18: 1 | AA18: 1 | AB18: 1 | AC18: 1 | AD18: 1 | AE18: 1 | AF18: 1 | AG18: 1 | AH18: 1 | AI18: 1 | AJ18: 1 | AK18: 1 | AL18: 1 | AM18: 1 | AN18: 1 | AO18: 1 | AP18: 1 | AQ18: 1 | AR18: 1 | AS18: 1 | AT18: 1 | AU18: 1 | AV18: 1 | AW18: 1 | AX18: 1 | AY18: 1 | AZ18: 1 | BA18: 1 | BB18: 1 | BC18: 1 | BD18: 1 | BE18: 1 | BF18: 1 | BG18: 1 | BH18: 1 | BI18: 1 | BJ18: 1 | BK18: 1 | BL18: 1 | BM18: 1 | BN18: 1 | BO18: 1 | BP18: 1 | BQ18: 1 | BR18: 1 | BS18: 1 | BT18: 1 | BU18: 1 | BV18: 1 | BW18: 1 | BX18: 1 | BY18: 1 | BZ18: 1 | CA18: 1 | CB18: 1 | CC18: 1 | CD18: 1 | CE18: 1 | CF18: 1 | CG18: 1 | CH18: 1 | CI18: 1 | CJ18: 1 | CK18: 1 | CL18: 1 | CM18: 1 | CN18: 1 | CO18: 1 | CP18: 1 | CQ18: 1 | CR18: 1 | CS18: 1 | CT18: 1 | CU18: 1 | CV18: 1 | CW18: 1
A19: Biomasa - Zrychlené odpisy s půjčkou | B19: 3 | C19: 3 | D19: 3 | E19: 3 | F19: 3 | G19: 3 | H19: 3 | I19: 3 | J19: 3 | K19: 3 | L19: 3 | M19: 3 | N19: 3 | O19: 3 | P19: 3 | Q19: 3 | R19: 3 | S19: 3 | T19: 3 | U19: 3 | V19: 3 | W19: 3 | X19: 3 | Y19: 3 | Z19: 3 | AA19: 3 | AB19: 3 | AC19: 3 | AD19: 3 | AE19: 3 | AF19: 3 | AG19: 3 | AH19: 3 | AI19: 3 | AJ19: 3 | AK19: 3 | AL19: 3 | AM19: 3 | AN19: 3 | AO19: 3 | AP19: 3 | AQ19: 3 | AR19: 3 | AS19: 3 | AT19: 3 | AU19: 3 | AV19: 3 | AW19: 3 | AX19: 3 | AY19: 3 | AZ19: 3 | BA19: 3 | BB19: 3 | BC19: 3 | BD19: 3 | BE19: 3 | BF19: 3 | BG19: 3 | BH19: 3 | BI19: 3 | BJ19: 3 | BK19: 3 | BL19: 3 | BM19: 3 | BN19: 3 | BO19: 3 | BP19: 3 | BQ19: 3 | BR19: 3 | BS19: 3 | BT19: 2 | BU19: 2 | BV19: 2 | BW19: 2 | BX19: 2 | BY19: 2 | BZ19: 2 | CA19: 2 | CB19: 2 | CC19: 2 | CD19: 2 | CE19: 2 | CF19: 2 | CG19: 2 | CH19: 2 | CI19: 2 | CJ19: 2 | CK19: 2 | CL19: 2 | CM19: 2 | CN19: 2 | CO19: 2 | CP19: 2 | CQ19: 2 | CR19: 2 | CS19: 2 | CT19: 2 | CU19: 2 | CV19: 2 | CW19: 2
A20: Uhlí - Lineární odpisy bez půjčky | B20: 6 | C20: 6 | D20: 6 | E20: 6 | F20: 6 | G20: 6 | H20: 6 | I20: 6 | J20: 6 | K20: 6 | L20: 6 | M20: 6 | N20: 6 | O20: 6 | P20: 6 | Q20: 6 | R20: 6 | S20: 6 | T20: 6 | U20: 6 | V20: 6 | W20: 6 | X20: 6 | Y20: 6 | Z20: 6 | AA20: 6 | AB20: 6 | AC20: 6 | AD20: 6 | AE20: 6 | AF20: 6 | AG20: 6 | AH20: 6 | AI20: 6 | AJ20: 6 | AK20: 6 | AL20: 6 | AM20: 6 | AN20: 6 | AO20: 6 | AP20: 6 | AQ20: 6 | AR20: 6 | AS20: 6 | AT20: 6 | AU20: 6 | AV20: 6 | AW20: 6 | AX20: 6 | AY20: 6 | AZ20: 6 | BA20: 6 | BB20: 6 | BC20: 6 | BD20: 6 | BE20: 6 | BF20: 6 | BG20: 6 | BH20: 6 | BI20: 6 | BJ20: 6 | BK20: 6 | BL20: 6 | BM20: 6 | BN20: =RANK(BN8,BN$3:BN$14,1) -> 6 | BO20: 6 | BP20: 6 | BQ20: 6 | BR20: 6 | BS20: 6 | BT20: 6 | BU20: 6 | BV20: 6 | BW20: 6 | BX20: 6 | BY20: 6 | BZ20: 6 | CA20: 6 | CB20: 6 | CC20: 6 | CD20: 6 | CE20: 6 | CF20: 6 | CG20: 7 | CH20: 7 | CI20: 7 | CJ20: 7 | CK20: 7 | CL20: 7 | CM20: 7 | CN20: 7 | CO20: 7 | CP20: 7 | CQ20: 7 | CR20: 7 | CS20: 7 | CT20: 8 | CU20: 8 | CV20: 8 | CW20: 8
A21: Biomasa - Zrychlené odpisy bez půjčky | B21: 8 | C21: =RANK(C9,C$3:C$14,1) -> 8 | D21: 8 | E21: 8 | F21: 8 | G21: 8 | H21: 8 | I21: 8 | J21: 8 | K21: 8 | L21: 8 | M21: 8 | N21: 8 | O21: 8 | P21: 8 | Q21: 8 | R21: 8 | S21: 8 | T21: 8 | U21: 8 | V21: 8 | W21: 8 | X21: 8 | Y21: 8 | Z21: 8 | AA21: 8 | AB21: 8 | AC21: 8 | AD21: 8 | AE21: 8 | AF21: 8 | AG21: 8 | AH21: 8 | AI21: 8 | AJ21: 8 | AK21: 8 | AL21: 8 | AM21: 8 | AN21: 8 | AO21: 8 | AP21: 8 | AQ21: 8 | AR21: 8 | AS21: 8 | AT21: 8 | AU21: 8 | AV21: 8 | AW21: 8 | AX21: 8 | AY21: 8 | AZ21: 8 | BA21: 8 | BB21: 8 | BC21: 8 | BD21: 8 | BE21: 8 | BF21: 8 | BG21: 8 | BH21: 8 | BI21: 8 | BJ21: 8 | BK21: 8 | BL21: 8 | BM21: 8 | BN21: 8 | BO21: 8 | BP21: 8 | BQ21: 8 | BR21: 8 | BS21: 8 | BT21: 8 | BU21: 8 | BV21: 8 | BW21: 8 | BX21: 8 | BY21: 8 | BZ21: 8 | CA21: 8 | CB21: 8 | CC21: 8 | CD21: 8 | CE21: 8 | CF21: 8 | CG21: 8 | CH21: 8 | CI21: 8 | CJ21: 8 | CK21: 8 | CL21: 8 | CM21: 8 | CN21: 8 | CO21: 8 | CP21: 8 | CQ21: 8 | CR21: 8 | CS21: 8 | CT21: 7 | CU21: 7 | CV21: 7 | CW21: 7
A22: Uhlí - Zrychlené odpisy bez půjčky | B22: 5 | C22: 5 | D22: 5 | E22: 5 | F22: 5 | G22: 5 | H22: 5 | I22: 5 | J22: 5 | K22: 5 | L22: 5 | M22: 5 | N22: 5 | O22: 5 | P22: 5 | Q22: 5 | R22: 5 | S22: 5 | T22: 5 | U22: 5 | V22: 5 | W22: 5 | X22: 5 | Y22: 5 | Z22: 5 | AA22: 5 | AB22: 5 | AC22: 5 | AD22: 5 | AE22: 5 | AF22: 5 | AG22: 5 | AH22: 5 | AI22: 5 | AJ22: 5 | AK22: 5 | AL22: 5 | AM22: 5 | AN22: 5 | AO22: 5 | AP22: 5 | AQ22: 5 | AR22: 5 | AS22: 5 | AT22: 5 | AU22: 5 | AV22: 5 | AW22: 5 | AX22: 5 | AY22: 5 | AZ22: 5 | BA22: 5 | BB22: 5 | BC22: 5 | BD22: 5 | BE22: 5 | BF22: 5 | BG22: 5 | BH22: 5 | BI22: 5 | BJ22: 5 | BK22: 5 | BL22: 5 | BM22: 5 | BN22: 5 | BO22: 5 | BP22: 5 | BQ22: 5 | BR22: 5 | BS22: 5 | BT22: 5 | BU22: 5 | BV22: 5 | BW22: 5 | BX22: 5 | BY22: 5 | BZ22: 5 | CA22: 5 | CB22: 5 | CC22: 5 | CD22: 5 | CE22: 5 | CF22: 5 | CG22: 5 | CH22: 5 | CI22: 5 | CJ22: 5 | CK22: 5 | CL22: 5 | CM22: 5 | CN22: 5 | CO22: 5 | CP22: 5 | CQ22: 5 | CR22: 5 | CS22: 5 | CT22: 5 | CU22: 5 | CV22: 5 | CW22: 5
A23: Biomasa - Lineární odpisy bez půjčky | B23: 7 | C23: 7 | D23: 7 | E23: 7 | F23: 7 | G23: 7 | H23: 7 | I23: 7 | J23: 7 | K23: 7 | L23: 7 | M23: 7 | N23: 7 | O23: 7 | P23: 7 | Q23: 7 | R23: 7 | S23: 7 | T23: 7 | U23: 7 | V23: 7 | W23: 7 | X23: 7 | Y23: 7 | Z23: 7 | AA23: 7 | AB23: 7 | AC23: 7 | AD23: 7 | AE23: 7 | AF23: 7 | AG23: 7 | AH23: 7 | AI23: 7 | AJ23: 7 | AK23: 7 | AL23: 7 | AM23: 7 | AN23: 7 | AO23: 7 | AP23: 7 | AQ23: 7 | AR23: 7 | AS23: 7 | AT23: 7 | AU23: 7 | AV23: 7 | AW23: 7 | AX23: 7 | AY23: 7 | AZ23: 7 | BA23: 7 | BB23: 7 | BC23: 7 | BD23: 7 | BE23: 7 | BF23: 7 | BG23: 7 | BH23: 7 | BI23: 7 | BJ23: 7 | BK23: 7 | BL23: 7 | BM23: 7 | BN23: 7 | BO23: 7 | BP23: 7 | BQ23: 7 | BR23: 7 | BS23: 7 | BT23: 7 | BU23: 7 | BV23: 7 | BW23: 7 | BX23: 7 | BY23: 7 | BZ23: 7 | CA23: 7 | CB23: 7 | CC23: 7 | CD23: 7 | CE23: 7 | CF23: 7 | CG23: 6 | CH23: 6 | CI23: 6 | CJ23: 6 | CK23: 6 | CL23: 6 | CM23: 6 | CN23: 6 | CO23: 6 | CP23: 6 | CQ23: 6 | CR23: 6 | CS23: 6 | CT23: 6 | CU23: 6 | CV23: 6 | CW23: 6
A24: Plyn - bez půjčky | B24: 12 | C24: 12 | D24: 12 | E24: 12 | F24: 12 | G24: 12 | H24: 12 | I24: 12 | J24: 12 | K24: 12 | L24: 12 | M24: 12 | N24: 12 | O24: 12 | P24: 12 | Q24: 12 | R24: 12 | S24: 12 | T24: 12 | U24: 12 | V24: 12 | W24: 12 | X24: 12 | Y24: 12 | Z24: 12 | AA24: 12 | AB24: 12 | AC24: 12 | AD24: 12 | AE24: 12 | AF24: 12 | AG24: 12 | AH24: 12 | AI24: 12 | AJ24: 12 | AK24: 12 | AL24: 12 | AM24: 12 | AN24: 12 | AO24: 12 | AP24: 12 | AQ24: 12 | AR24: 12 | AS24: 12 | AT24: 12 | AU24: 12 | AV24: 12 | AW24: 12 | AX24: 12 | AY24: 12 | AZ24: 12 | BA24: 12 | BB24: 12 | BC24: 12 | BD24: 12 | BE24: 12 | BF24: 12 | BG24: 12 | BH24: 12 | BI24: 12 | BJ24: 12 | BK24: 12 | BL24: 12 | BM24: 12 | BN24: =RANK(BN12,BN$3:BN$14,1) -> 12 | BO24: 12 | BP24: 12 | BQ24: 12 | BR24: 12 | BS24: 12 | BT24: 12 | BU24: 12 | BV24: 12 | BW24: 12 | BX24: 12 | BY24: 12 | BZ24: 12 | CA24: 12 | CB24: 12 | CC24: 12 | CD24: 12 | CE24: 12 | CF24: 12 | CG24: 12 | CH24: 12 | CI24: 12 | CJ24: 12 | CK24: 12 | CL24: 12 | CM24: 12 | CN24: 12 | CO24: 12 | CP24: 12 | CQ24: 12 | CR24: 12 | CS24: 12 | CT24: 12 | CU24: 12 | CV24: 12 | CW24: 12
A25: =A13 -> Plyn | B25: 9 | C25: =RANK(C13,C$3:C$14,1) -> 9 | D25: 9 | E25: 9 | F25: 9 | G25: 9 | H25: 9 | I25: 9 | J25: 9 | K25: 9 | L25: 9 | M25: 9 | N25: 9 | O25: 9 | P25: 9 | Q25: 9 | R25: 9 | S25: 9 | T25: 9 | U25: 9 | V25: 9 | W25: 9 | X25: 9 | Y25: 9 | Z25: 9 | AA25: 9 | AB25: 9 | AC25: 9 | AD25: 9 | AE25: 9 | AF25: 9 | AG25: 9 | AH25: 9 | AI25: 9 | AJ25: 9 | AK25: 9 | AL25: 9 | AM25: 9 | AN25: 9 | AO25: 9 | AP25: 9 | AQ25: 9 | AR25: 9 | AS25: 9 | AT25: 9 | AU25: 9 | AV25: 9 | AW25: 9 | AX25: 9 | AY25: 9 | AZ25: 9 | BA25: 9 | BB25: 9 | BC25: 9 | BD25: 9 | BE25: 9 | BF25: 9 | BG25: 9 | BH25: 9 | BI25: 9 | BJ25: 9 | BK25: 9 | BL25: 9 | BM25: 9 | BN25: 9 | BO25: =RANK(BO13,BO$3:BO$14,1) -> 9 | BP25: 9 | BQ25: 9 | BR25: 9 | BS25: 9 | BT25: 9 | BU25: 9 | BV25: 9 | BW25: 9 | BX25: 9 | BY25: 9 | BZ25: 9 | CA25: 9 | CB25: 9 | CC25: 9 | CD25: 9 | CE25: 9 | CF25: 9 | CG25: 9 | CH25: 9 | CI25: 9 | CJ25: 9 | CK25: 9 | CL25: 9 | CM25: 9 | CN25: 9 | CO25: 9 | CP25: 9 | CQ25: 9 | CR25: 9 | CS25: 9 | CT25: 9 | CU25: 9 | CV25: 9 | CW25: 9
A26: =A5 -> Plyn - lineární s půjčkou | B26: =RANK(B5,B$3:B$14,1) -> 10 | C26: =RANK(C5,C$3:C$14,1) -> 10 | D26: 10 | E26: 10 | F26: 10 | G26: 10 | H26: 10 | I26: 10 | J26: 10 | K26: 10 | L26: 10 | M26: 10 | N26: 10 | O26: 10 | P26: 10 | Q26: 10 | R26: 10 | S26: 10 | T26: 10 | U26: 10 | V26: 10 | W26: 10 | X26: 10 | Y26: 10 | Z26: 10 | AA26: 10 | AB26: 10 | AC26: 10 | AD26: 10 | AE26: 10 | AF26: 10 | AG26: 10 | AH26: 10 | AI26: 10 | AJ26: 10 | AK26: 10 | AL26: 10 | AM26: 10 | AN26: 10 | AO26: 10 | AP26: 10 | AQ26: 10 | AR26: 10 | AS26: 10 | AT26: 10 | AU26: 10 | AV26: 10 | AW26: 10 | AX26: 10 | AY26: 10 | AZ26: 10 | BA26: 10 | BB26: 10 | BC26: 10 | BD26: 10 | BE26: 10 | BF26: 10 | BG26: 10 | BH26: 10 | BI26: 10 | BJ26: 10 | BK26: 10 | BL26: 10 | BM26: 10 | BN26: 10 | BO26: =RANK(BO5,BO$3:BO$14,1) -> 10 | BP26: 10 | BQ26: 10 | BR26: 10 | BS26: 10 | BT26: 10 | BU26: 10 | BV26: 10 | BW26: 10 | BX26: 10 | BY26: 10 | BZ26: 10 | CA26: 10 | CB26: 10 | CC26: 10 | CD26: 10 | CE26: 10 | CF26: 10 | CG26: 10 | CH26: 10 | CI26: 10 | CJ26: 10 | CK26: 10 | CL26: 10 | CM26: 10 | CN26: 10 | CO26: 10 | CP26: 10 | CQ26: 10 | CR26: 10 | CS26: 10 | CT26: 10 | CU26: 10 | CV26: 10 | CW26: 10
A28: Varianta uhlí | B28: =IF(B18<B15,$A$18,$A$15) -> Uhlí - Zrychlené odpisy s půjčkou | C28: =IF(C18<C15,$A$18,$A$15) -> Uhlí - Zrychlené odpisy s půjčkou | D28: Uhlí - Zrychlené odpisy s půjčkou | E28: Uhlí - Zrychlené odpisy s půjčkou | F28: Uhlí - Zrychlené odpisy s půjčkou | G28: Uhlí - Zrychlené odpisy s půjčkou | H28: Uhlí - Zrychlené odpisy s půjčkou | I28: Uhlí - Zrychlené odpisy s půjčkou | J28: Uhlí - Zrychlené odpisy s půjčkou | K28: Uhlí - Zrychlené odpisy s půjčkou | L28: Uhlí - Zrychlené odpisy s půjčkou | M28: Uhlí - Zrychlené odpisy s půjčkou | N28: Uhlí - Zrychlené odpisy s půjčkou | O28: Uhlí - Zrychlené odpisy s půjčkou | P28: Uhlí - Zrychlené odpisy s půjčkou | Q28: Uhlí - Zrychlené odpisy s půjčkou | R28: Uhlí - Zrychlené odpisy s půjčkou | S28: Uhlí - Zrychlené odpisy s půjčkou | T28: Uhlí - Zrychlené odpisy s půjčkou | U28: Uhlí - Zrychlené odpisy s půjčkou | V28: Uhlí - Zrychlené odpisy s půjčkou | W28: Uhlí - Zrychlené odpisy s půjčkou | X28: Uhlí - Zrychlené odpisy s půjčkou | Y28: Uhlí - Zrychlené odpisy s půjčkou | Z28: Uhlí - Zrychlené odpisy s půjčkou | AA28: Uhlí - Zrychlené odpisy s půjčkou | AB28: Uhlí - Zrychlené odpisy s půjčkou | AC28: Uhlí - Zrychlené odpisy s půjčkou | AD28: Uhlí - Zrychlené odpisy s půjčkou | AE28: Uhlí - Zrychlené odpisy s půjčkou | AF28: Uhlí - Zrychlené odpisy s půjčkou | AG28: Uhlí - Zrychlené odpisy s půjčkou | AH28: Uhlí - Zrychlené odpisy s půjčkou | AI28: Uhlí - Zrychlené odpisy s půjčkou | AJ28: Uhlí - Zrychlené odpisy s půjčkou | AK28: Uhlí - Zrychlené odpisy s půjčkou | AL28: Uhlí - Zrychlené odpisy s půjčkou | AM28: Uhlí - Zrychlené odpisy s půjčkou | AN28: Uhlí - Zrychlené odpisy s půjčkou | AO28: Uhlí - Zrychlené odpisy s půjčkou | AP28: Uhlí - Zrychlené odpisy s půjčkou | AQ28: Uhlí - Zrychlené odpisy s půjčkou | AR28: Uhlí - Zrychlené odpisy s půjčkou | AS28: Uhlí - Zrychlené odpisy s půjčkou | AT28: Uhlí - Zrychlené odpisy s půjčkou | AU28: Uhlí - Zrychlené odpisy s půjčkou | AV28: Uhlí - Zrychlené odpisy s půjčkou | AW28: Uhlí - Zrychlené odpisy s půjčkou | AX28: Uhlí - Zrychlené odpisy s půjčkou | AY28: Uhlí - Zrychlené odpisy s půjčkou | AZ28: Uhlí - Zrychlené odpisy s půjčkou | BA28: Uhlí - Zrychlené odpisy s půjčkou | BB28: Uhlí - Zrychlené odpisy s půjčkou | BC28: Uhlí - Zrychlené odpisy s půjčkou | BD28: Uhlí - Zrychlené odpisy s půjčkou | BE28: Uhlí - Zrychlené odpisy s půjčkou | BF28: Uhlí - Zrychlené odpisy s půjčkou | BG28: Uhlí - Zrychlené odpisy s půjčkou | BH28: Uhlí - Zrychlené odpisy s půjčkou | BI28: Uhlí - Zrychlené odpisy s půjčkou | BJ28: Uhlí - Zrychlené odpisy s půjčkou | BK28: Uhlí - Zrychlené odpisy s půjčkou | BL28: Uhlí - Zrychlené odpisy s půjčkou | BM28: Uhlí - Zrychlené odpisy s půjčkou | BN28: Uhlí - Zrychlené odpisy s půjčkou | BO28: =IF(BO18<BO15,$A$18,$A$15) -> Uhlí - Zrychlené odpisy s půjčkou | BP28: Uhlí - Zrychlené odpisy s půjčkou | BQ28: Uhlí - Zrychlené odpisy s půjčkou | BR28: Uhlí - Zrychlené odpisy s půjčkou | BS28: Uhlí - Zrychlené odpisy s půjčkou | BT28: Uhlí - Zrychlené odpisy s půjčkou | BU28: Uhlí - Zrychlené odpisy s půjčkou | BV28: Uhlí - Zrychlené odpisy s půjčkou | BW28: Uhlí - Zrychlené odpisy s půjčkou | BX28: Uhlí - Zrychlené odpisy s půjčkou | BY28: Uhlí - Zrychlené odpisy s půjčkou | BZ28: Uhlí - Zrychlené odpisy s půjčkou | CA28: Uhlí - Zrychlené odpisy s půjčkou | CB28: Uhlí - Zrychlené odpisy s půjčkou | CC28: Uhlí - Zrychlené odpisy s půjčkou | CD28: Uhlí - Zrychlené odpisy s půjčkou | CE28: Uhlí - Zrychlené odpisy s půjčkou | CF28: Uhlí - Zrychlené odpisy s půjčkou | CG28: Uhlí - Zrychlené odpisy s půjčkou | CH28: Uhlí - Zrychlené odpisy s půjčkou | CI28: Uhlí - Zrychlené odpisy s půjčkou | CJ28: Uhlí - Zrychlené odpisy s půjčkou | CK28: Uhlí - Zrychlené odpisy s půjčkou | CL28: Uhlí - Zrychlené odpisy s půjčkou | CM28: Uhlí - Zrychlené odpisy s půjčkou | CN28: Uhlí - Zrychlené odpisy s půjčkou | CO28: Uhlí - Zrychlené odpisy s půjčkou | CP28: Uhlí - Zrychlené odpisy s půjčkou | CQ28: Uhlí - Zrychlené odpisy s půjčkou | CR28: Uhlí - Zrychlené odpisy s půjčkou | CS28: Uhlí - Zrychlené odpisy s půjčkou | CT28: Uhlí - Zrychlené odpisy s půjčkou | CU28: Uhlí - Zrychlené odpisy s půjčkou | CV28: Uhlí - Zrychlené odpisy s půjčkou | CW28: Uhlí - Zrychlené odpisy s půjčkou
A29: Varianta biomasa | B29: =IF(B16<B19,$A$16,$A$19) -> Biomasa - Zrychlené odpisy s půjčkou | C29: =IF(C16<C19,$A$16,$A$19) -> Biomasa - Zrychlené odpisy s půjčkou | D29: Biomasa - Zrychlené odpisy s půjčkou | E29: Biomasa - Zrychlené odpisy s půjčkou | F29: Biomasa - Zrychlené odpisy s půjčkou | G29: Biomasa - Zrychlené odpisy s půjčkou | H29: Biomasa - Zrychlené odpisy s půjčkou | I29: Biomasa - Zrychlené odpisy s půjčkou | J29: Biomasa - Zrychlené odpisy s půjčkou | K29: Biomasa - Zrychlené odpisy s půjčkou | L29: Biomasa - Zrychlené odpisy s půjčkou | M29: Biomasa - Zrychlené odpisy s půjčkou | N29: Biomasa - Zrychlené odpisy s půjčkou | O29: Biomasa - Zrychlené odpisy s půjčkou | P29: Biomasa - Zrychlené odpisy s půjčkou | Q29: Biomasa - Zrychlené odpisy s půjčkou | R29: Biomasa - Zrychlené odpisy s půjčkou | S29: Biomasa - Zrychlené odpisy s půjčkou | T29: Biomasa - Zrychlené odpisy s půjčkou | U29: Biomasa - Zrychlené odpisy s půjčkou | V29: Biomasa - Zrychlené odpisy s půjčkou | W29: Biomasa - Zrychlené odpisy s půjčkou | X29: Biomasa - Zrychlené odpisy s půjčkou | Y29: Biomasa - Zrychlené odpisy s půjčkou | Z29: Biomasa - Zrychlené odpisy s půjčkou | AA29: Biomasa - Zrychlené odpisy s půjčkou | AB29: Biomasa - Zrychlené odpisy s půjčkou | AC29: Biomasa - Zrychlené odpisy s půjčkou | AD29: Biomasa - Zrychlené odpisy s půjčkou | AE29: Biomasa - Zrychlené odpisy s půjčkou | AF29: Biomasa - Zrychlené odpisy s půjčkou | AG29: Biomasa - Zrychlené odpisy s půjčkou | AH29: Biomasa - Zrychlené odpisy s půjčkou | AI29: Biomasa - Zrychlené odpisy s půjčkou | AJ29: Biomasa - Zrychlené odpisy s půjčkou | AK29: Biomasa - Zrychlené odpisy s půjčkou | AL29: Biomasa - Zrychlené odpisy s půjčkou | AM29: Biomasa - Zrychlené odpisy s půjčkou | AN29: Biomasa - Zrychlené odpisy s půjčkou | AO29: Biomasa - Zrychlené odpisy s půjčkou | AP29: Biomasa - Zrychlené odpisy s půjčkou | AQ29: Biomasa - Zrychlené odpisy s půjčkou | AR29: Biomasa - Zrychlené odpisy s půjčkou | AS29: Biomasa - Zrychlené odpisy s půjčkou | AT29: Biomasa - Zrychlené odpisy s půjčkou | AU29: Biomasa - Zrychlené odpisy s půjčkou | AV29: Biomasa - Zrychlené odpisy s půjčkou | AW29: Biomasa - Zrychlené odpisy s půjčkou | AX29: Biomasa - Zrychlené odpisy s půjčkou | AY29: Biomasa - Zrychlené odpisy s půjčkou | AZ29: Biomasa - Zrychlené odpisy s půjčkou | BA29: Biomasa - Zrychlené odpisy s půjčkou | BB29: Biomasa - Zrychlené odpisy s půjčkou | BC29: Biomasa - Zrychlené odpisy s půjčkou | BD29: Biomasa - Zrychlené odpisy s půjčkou | BE29: Biomasa - Zrychlené odpisy s půjčkou | BF29: Biomasa - Zrychlené odpisy s půjčkou | BG29: Biomasa - Zrychlené odpisy s půjčkou | BH29: Biomasa - Zrychlené odpisy s půjčkou | BI29: Biomasa - Zrychlené odpisy s půjčkou | BJ29: Biomasa - Zrychlené odpisy s půjčkou | BK29: Biomasa - Zrychlené odpisy s půjčkou | BL29: Biomasa - Zrychlené odpisy s půjčkou | BM29: Biomasa - Zrychlené odpisy s půjčkou | BN29: Biomasa - Zrychlené odpisy s půjčkou | BO29: =IF(BO16<BO19,$A$16,$A$19) -> Biomasa - Zrychlené odpisy s půjčkou | BP29: Biomasa - Zrychlené odpisy s půjčkou | BQ29: Biomasa - Zrychlené odpisy s půjčkou | BR29: Biomasa - Zrychlené odpisy s půjčkou | BS29: Biomasa - Zrychlené odpisy s půjčkou | BT29: Biomasa - Zrychlené odpisy s půjčkou | BU29: Biomasa - Zrychlené odpisy s půjčkou | BV29: Biomasa - Zrychlené odpisy s půjčkou | BW29: Biomasa - Zrychlené odpisy s půjčkou | BX29: Biomasa - Zrychlené odpisy s půjčkou | BY29: Biomasa - Zrychlené odpisy s půjčkou | BZ29: Biomasa - Zrychlené odpisy s půjčkou | CA29: Biomasa - Zrychlené odpisy s půjčkou | CB29: Biomasa - Zrychlené odpisy s půjčkou | CC29: Biomasa - Zrychlené odpisy s půjčkou | CD29: Biomasa - Zrychlené odpisy s půjčkou | CE29: Biomasa - Zrychlené odpisy s půjčkou | CF29: Biomasa - Zrychlené odpisy s půjčkou | CG29: Biomasa - Zrychlené odpisy s půjčkou | CH29: Biomasa - Zrychlené odpisy s půjčkou | CI29: Biomasa - Zrychlené odpisy s půjčkou | CJ29: Biomasa - Zrychlené odpisy s půjčkou | CK29: Biomasa - Zrychlené odpisy s půjčkou | CL29: Biomasa - Zrychlené odpisy s půjčkou | CM29: Biomasa - Zrychlené odpisy s půjčkou | CN29: Biomasa - Zrychlené odpisy s půjčkou | CO29: Biomasa - Zrychlené odpisy s půjčkou | CP29: Biomasa - Zrychlené odpisy s půjčkou | CQ29: Biomasa - Zrychlené odpisy s půjčkou | CR29: Biomasa - Zrychlené odpisy s půjčkou | CS29: Biomasa - Zrychlené odpisy s půjčkou | CT29: Biomasa - Zrychlené odpisy s půjčkou | CU29: Biomasa - Zrychlené odpisy s půjčkou | CV29: Biomasa - Zrychlené odpisy s půjčkou | CW29: Biomasa - Zrychlené odpisy s půjčkou
C30: =IF(B28=C28,1,0) -> 1 | D30: =IF(C28=D28,1,0) -> 1 | E30: 1 | F30: 1 | G30: 1 | H30: =IF(G28=H28,1,0) -> 1 | I30: 1 | J30: 1 | K30: 1 | L30: 1 | M30: 1 | N30: 1 | O30: 1 | P30: 1 | Q30: 1 | R30: 1 | S30: 1 | T30: 1 | U30: 1 | V30: 1 | W30: 1 | X30: 1 | Y30: 1 | Z30: 1 | AA30: 1 | AB30: 1 | AC30: 1 | AD30: 1 | AE30: 1 | AF30: 1 | AG30: 1 | AH30: 1 | AI30: 1 | AJ30: 1 | AK30: 1 | AL30: 1 | AM30: 1 | AN30: 1 | AO30: 1 | AP30: 1 | AQ30: 1 | AR30: 1 | AS30: 1 | AT30: 1 | AU30: 1 | AV30: 1 | AW30: 1 | AX30: 1 | AY30: 1 | AZ30: 1 | BA30: 1 | BB30: 1 | BC30: 1 | BD30: 1 | BE30: 1 | BF30: 1 | BG30: 1 | BH30: 1 | BI30: 1 | BJ30: 1 | BK30: 1 | BL30: 1 | BM30: 1 | BN30: 1 | BO30: 1 | BP30: =IF(BO28=BP28,1,0) -> 1 | BQ30: 1 | BR30: 1 | BS30: 1 | BT30: 1 | BU30: 1 | BV30: 1 | BW30: 1 | BX30: 1 | BY30: 1 | BZ30: 1 | CA30: 1 | CB30: 1 | CC30: 1 | CD30: 1 | CE30: 1 | CF30: 1 | CG30: 1 | CH30: 1 | CI30: 1 | CJ30: 1 | CK30: 1 | CL30: 1 | CM30: 1 | CN30: 1 | CO30: 1 | CP30: 1 | CQ30: 1 | CR30: 1 | CS30: 1 | CT30: 1 | CU30: 1 | CV30: 1 | CW30: 1
C31: =IF(B29=C29,1,0) -> 1 | D31: =IF(C29=D29,1,0) -> 1 | E31: 1 | F31: 1 | G31: 1 | H31: =IF(G29=H29,1,0) -> 1 | I31: 1 | J31: 1 | K31: 1 | L31: 1 | M31: 1 | N31: 1 | O31: 1 | P31: 1 | Q31: 1 | R31: 1 | S31: 1 | T31: 1 | U31: 1 | V31: 1 | W31: 1 | X31: 1 | Y31: 1 | Z31: 1 | AA31: 1 | AB31: 1 | AC31: 1 | AD31: 1 | AE31: 1 | AF31: 1 | AG31: 1 | AH31: 1 | AI31: 1 | AJ31: 1 | AK31: 1 | AL31: 1 | AM31: 1 | AN31: 1 | AO31: 1 | AP31: 1 | AQ31: 1 | AR31: 1 | AS31: 1 | AT31: 1 | AU31: 1 | AV31: 1 | AW31: 1 | AX31: 1 | AY31: 1 | AZ31: 1 | BA31: 1 | BB31: 1 | BC31: 1 | BD31: 1 | BE31: 1 | BF31: 1 | BG31: 1 | BH31: 1 | BI31: 1 | BJ31: 1 | BK31: 1 | BL31: 1 | BM31: 1 | BN31: 1 | BO31: 1 | BP31: =IF(BO29=BP29,1,0) -> 1 | BQ31: 1 | BR31: 1 | BS31: 1 | BT31: 1 | BU31: 1 | BV31: 1 | BW31: 1 | BX31: 1 | BY31: 1 | BZ31: 1 | CA31: 1 | CB31: 1 | CC31: 1 | CD31: 1 | CE31: 1 | CF31: 1 | CG31: 1 | CH31: 1 | CI31: 1 | CJ31: 1 | CK31: 1 | CL31: 1 | CM31: 1 | CN31: 1 | CO31: 1 | CP31: 1 | CQ31: 1 | CR31: 1 | CS31: 1 | CT31: 1 | CU31: 1 | CV31: 1 | CW31: 1
A32: Varianta Plynu | B32: =IF(B25<B26,$A$25,$A$26) -> Plyn | C32: =IF(C25<C26,$A$25,$A$26) -> Plyn | D32: Plyn | E32: Plyn | F32: Plyn | G32: Plyn | H32: Plyn | I32: Plyn | J32: Plyn | K32: Plyn | L32: Plyn | M32: Plyn | N32: Plyn | O32: Plyn | P32: Plyn | Q32: Plyn | R32: Plyn | S32: Plyn | T32: Plyn | U32: Plyn | V32: Plyn | W32: Plyn | X32: Plyn | Y32: Plyn | Z32: Plyn | AA32: Plyn | AB32: Plyn | AC32: Plyn | AD32: Plyn | AE32: Plyn | AF32: Plyn | AG32: Plyn | AH32: Plyn | AI32: Plyn | AJ32: Plyn | AK32: Plyn | AL32: Plyn | AM32: Plyn | AN32: Plyn | AO32: Plyn | AP32: Plyn | AQ32: Plyn | AR32: Plyn | AS32: Plyn | AT32: Plyn | AU32: Plyn | AV32: Plyn | AW32: Plyn | AX32: Plyn | AY32: Plyn | AZ32: Plyn | BA32: Plyn | BB32: Plyn | BC32: Plyn | BD32: Plyn | BE32: Plyn | BF32: Plyn | BG32: Plyn | BH32: Plyn | BI32: Plyn | BJ32: Plyn | BK32: Plyn | BL32: Plyn | BM32: Plyn | BN32: Plyn | BO32: =IF(BO25<BO26,$A$25,$A$26) -> Plyn | BP32: Plyn | BQ32: Plyn | BR32: Plyn | BS32: Plyn | BT32: Plyn | BU32: Plyn | BV32: Plyn | BW32: Plyn | BX32: Plyn | BY32: Plyn | BZ32: Plyn | CA32: Plyn | CB32: Plyn | CC32: Plyn | CD32: Plyn | CE32: Plyn | CF32: Plyn | CG32: Plyn | CH32: Plyn | CI32: Plyn | CJ32: Plyn | CK32: Plyn | CL32: Plyn | CM32: Plyn | CN32: Plyn | CO32: Plyn | CP32: Plyn | CQ32: Plyn | CR32: Plyn | CS32: Plyn | CT32: Plyn | CU32: Plyn | CV32: Plyn | CW32: Plyn
C34: =IF(B32=C32,1,0) -> 1 | D34: =IF(C32=D32,1,0) -> 1 | E34: 1 | F34: 1 | G34: 1 | H34: 1 | I34: 1 | J34: 1 | K34: 1 | L34: 1 | M34: 1 | N34: 1 | O34: 1 | P34: 1 | Q34: 1 | R34: 1 | S34: 1 | T34: 1 | U34: 1 | V34: 1 | W34: 1 | X34: 1 | Y34: 1 | Z34: 1 | AA34: 1 | AB34: 1 | AC34: 1 | AD34: 1 | AE34: 1 | AF34: 1 | AG34: 1 | AH34: 1 | AI34: 1 | AJ34: 1 | AK34: 1 | AL34: 1 | AM34: 1 | AN34: 1 | AO34: 1 | AP34: 1 | AQ34: 1 | AR34: 1 | AS34: 1 | AT34: 1 | AU34: 1 | AV34: 1 | AW34: 1 | AX34: 1 | AY34: 1 | AZ34: 1 | BA34: 1 | BB34: 1 | BC34: 1 | BD34: 1 | BE34: 1 | BF34: 1 | BG34: 1 | BH34: 1 | BI34: 1 | BJ34: 1 | BK34: 1 | BL34: 1 | BM34: 1 | BN34: 1 | BO34: 1 | BP34: =IF(BO32=BP32,1,0) -> 1 | BQ34: 1 | BR34: 1 | BS34: 1 | BT34: 1 | BU34: 1 | BV34: 1 | BW34: 1 | BX34: 1 | BY34: 1 | BZ34: 1 | CA34: 1 | CB34: 1 | CC34: 1 | CD34: 1 | CE34: 1 | CF34: 1 | CG34: 1 | CH34: 1 | CI34: 1 | CJ34: 1 | CK34: 1 | CL34: 1 | CM34: 1 | CN34: 1 | CO34: 1 | CP34: 1 | CQ34: 1 | CR34: 1 | CS34: 1 | CT34: 1 | CU34: 1 | CV34: 1 | CW34: 1
A35: Dojde ke změně v průběhu u uhlí | B35: =IF(SUM(C30:CW30)=99,"NE","ANO") -> NE | C35: Doporučená varianta | D35: =B28 -> Uhlí - Zrychlené odpisy s půjčkou
A36: Dojde ke změně v průběhu u biomasy | B36: =IF(SUM(C31:CW31)=99,"NE","ANO") -> NE | C36: Doporučená varianta | D36: =B29 -> Biomasa - Zrychlené odpisy s půjčkou
A37: Dojde ke změně v průběhu u plynu | B37: =IF(SUM(C34:CW34)=99,"NE","ANO") -> NE | C37: Doporučená varianta | D37: =B32 -> Plyn

Sheet Výsledky
I1: 2020 | J1: 2021 | K1: 2022 | L1: 2023 | M1: 2024 | N1: 2025 | O1: 2026 | P1: 2027 | Q1: 2028 | R1: 2029 | S1: 2030 | T1: 2031 | U1: 2032 | V1: 2033 | W1: 2034 | X1: 2035 | Y1: 2036 | Z1: 2037 | AA1: 2038 | AB1: 2039 | AC1: 2040
C2: Uhlí | D2: Biomasa | E2: Plyn | H2: Uhlí | I2: =Uhlí!C39 -> 91443938.07 | J2: =Uhlí!D39 -> 119963352.1 | K2: =Uhlí!E39 -> 106562548.2 | L2: =Uhlí!F39 -> 100561860.3 | M2: =Uhlí!G39 -> 94903494.4 | N2: =Uhlí!H39 -> 89567865.6 | O2: =Uhlí!I39 -> 84536496.9 | P2: =Uhlí!J39 -> 79791958.63 | Q2: =Uhlí!K39 -> 75317810.8 | R2: =Uhlí!L39 -> 71098548.52 | S2: =Uhlí!M39 -> 71467798.93 | T2: =Uhlí!N39 -> 58266557.44 | U2: =Uhlí!O39 -> 53616148.66 | V2: =Uhlí!P39 -> 50617120.28 | W2: =Uhlí!Q39 -> 47791650.93 | X2: =Uhlí!R39 -> 45129376.44 | Y2: =Uhlí!S39 -> 42620568.04 | Z2: =Uhlí!T39 -> 40256092.64 | AA2: =Uhlí!U39 -> 38027375.6 | AB2: =Uhlí!V39 -> 35926365.89 | AC2: =Uhlí!W39 -> 33945503.4 | AD2: =Uhlí!X39 -> 0 | AE2: =Uhlí!Y39 -> 0 | AF2: =Uhlí!Z39 -> 0 | AG2: =Uhlí!AA39 -> 0 | AH2: =Uhlí!AB39 -> 0 | AI2: =Uhlí!AC39 -> 0 | AJ2: =Uhlí!AD39 -> 0 | AK2: =Uhlí!AE39 -> 0 | AL2: =Uhlí!AF39 -> 0
B3: NPV | C3: =Uhlí!C49 -> 1431412432 | D3: =Biomasa!C55 -> 1530961169 | E3: =Plyn!C45 -> 2941741333 | H3: Biomasa | I3: =Biomasa!C45 -> 98889636.23 | J3: =Biomasa!D45 -> 129549297.4 | K3: =Biomasa!E45 -> 114815213.2 | L3: =Biomasa!F45 -> 107841721.1 | M3: =Biomasa!G45 -> 101299201.6 | N3: =Biomasa!H45 -> 95160755.18 | O3: =Biomasa!I45 -> 89401164.63 | P3: =Biomasa!J45 -> 83996790.79 | Q3: =Biomasa!K45 -> 78925474.16 | R3: =Biomasa!L45 -> 74166442.77 | S3: =Biomasa!M45 -> 78056938.06 | T3: =Biomasa!N45 -> 63922355.13 | U3: =Biomasa!O45 -> 58538048.09 | V3: =Biomasa!P45 -> 54946085.61 | W3: =Biomasa!Q45 -> 51582238.25 | X3: =Biomasa!R45 -> 48431609.4 | Y3: =Biomasa!S45 -> 45480295.99 | Z3: =Biomasa!T45 -> 42715321.21 | AA3: =Biomasa!U45 -> 40124571.87 | AB3: =Biomasa!V45 -> 37696739.99 | AC3: =Biomasa!W45 -> 35421268.45
H4: Plyn | I4: =Plyn!C35 -> 207283317.1 | J4: =Plyn!D35 -> 247577588.4 | K4: =Plyn!E35 -> 220927810.7 | L4: =Plyn!F35 -> 205935949.7 | M4: =Plyn!G35 -> 191970568.9 | N4: =Plyn!H35 -> 178961021.7 | O4: =Plyn!I35 -> 166841535.1 | P4: =Plyn!J35 -> 155550872.8 | Q4: =Plyn!K35 -> 145032022.9 | R4: =Plyn!L35 -> 135231906.1 | S4: =Plyn!M35 -> 162512997.5 | T4: =Plyn!N35 -> 125575351.9 | U4: =Plyn!O35 -> 116699681.2 | V4: =Plyn!P35 -> 108461341.2 | W4: =Plyn!Q35 -> 100814072.5 | X4: =Plyn!R35 -> 93714997.65 | Y4: =Plyn!S35 -> 87124372.48 | Z4: =Plyn!T35 -> 81005356.07 | AA4: =Plyn!U35 -> 75323797.65 | AB4: =Plyn!V35 -> 70048039.16 | AC4: =Plyn!W35 -> 65148732.33

Sheet Přehledy
B2: Společná vstupní data
B3: Roční inflace | C3: 2.9 | D3: %
B4: Vychozí cena emisní povolenky | C4: 641 | D4: Kč
B5: Roční nárůst ceny povolenky | C5: 2.9 | D5: %
B6: Diskontní míra | C6: 8 | D6: %
B7: Teplo vyrobené na K1 a K4 | C7: 756745 | D7: GJ
B9: Data jednotlivých variant
B10: Varianta/parametr | C10: Uhlí | D10: Biomasa | E10: Plyn | F10: Jednotka
B11: Výše investice 0. rok | C11: 400 | D11: 415 | E11: 600 | F11: mil. Kč
B12: Výše investice 10. rok | C12: 180 | D12: 190 | E12: 0 | F12: mil. Kč
B13: Výhřevnost jednotky paliva při zahrnutí účinnosti | C13: 12.11 | D13: 11.64 | E13: 0.03 | F13: GJ
B14: Cena jednotky paliva | C14: 450 | D14: 7.6 | E14: 1450 | F14: Kč
B15: Emisní faktor | C15: 0.1 | D15: 0.06 | E15: 0 | F15: t/GJ
